Transaction Number,Service - Fund ,Service  - Function ,Service - Cost Centre,Expense Type ,Expense Description,Supplier Name,Supplier Post Code (first 4 digits),Payment Date,Amount �
96362233,Youth Offending,"Children, Families and Community Health Services",YJS - Effective Practise,Supplies and Services,Design & Printing Costs,1 RAJ LTD T/A MINUTEMAN PRESS SWINDON,SN1 ,21/07/2023,550.00
96377233,Museums & Heritage,Culture & Heritage,Steam:Education & Curatorial,Supplies and Services,Hire / Rental,1ST IMPRESSIONS SIGNS & GRAPHICS LTD,SN1 ,21/07/2023,"1,242.00"
95752241,Physical Support,Adults,Physical Support 18 - 64,3rd Party Payments,Carers,247 HOME CARE LTD,SN5 ,21/07/2023,151.44
93753258,Physical Support,Adults,Physical Support 65 and over,3rd Party Payments,Personal Budget - Domiciliary care,247 HOME CARE LTD,SN5 ,07/07/2023,897.87
95752242,Physical Support,Adults,Physical Support 65 and over,3rd Party Payments,Personal Budget - Domiciliary care,247 HOME CARE LTD,SN5 ,21/07/2023,"1,099.98"
95752243,Physical Support,Adults,Physical Support 65 and over,3rd Party Payments,Personal Budget - Domiciliary care,247 HOME CARE LTD,SN5 ,21/07/2023,897.87
93753255,Physical Support,Adults,Physical Support 18 - 64,3rd Party Payments,Personal Budget - Domiciliary care,247 HOME CARE LTD,SN5 ,07/07/2023,"1,140.18"
95016253,Physical Support,Adults,Physical Support 65 and over,3rd Party Payments,Personal Budget - Domiciliary care,247 HOME CARE LTD,SN5 ,14/07/2023,897.87
95752241,Physical Support,Adults,Physical Support 18 - 64,3rd Party Payments,Personal Budget - Domiciliary care,247 HOME CARE LTD,SN5 ,21/07/2023,897.86
95752241,Physical Support,Adults,Physical Support 18 - 64,3rd Party Payments,Personal Budget - Domiciliary care,247 HOME CARE LTD,SN5 ,21/07/2023,-3.80
96765246,Physical Support,Adults,Physical Support 65 and over,3rd Party Payments,Personal Budget - Domiciliary care,247 HOME CARE LTD,SN5 ,28/07/2023,"1,099.98"
95752243,Physical Support,Adults,Physical Support 65 and over,3rd Party Payments,Personal Budget - Domiciliary care,247 HOME CARE LTD,SN5 ,21/07/2023,-162.87
93753255,Physical Support,Adults,Physical Support 18 - 64,3rd Party Payments,Personal Budget - Domiciliary care,247 HOME CARE LTD,SN5 ,07/07/2023,-3.80
96765247,Physical Support,Adults,Physical Support 65 and over,3rd Party Payments,Personal Budget - Domiciliary care,247 HOME CARE LTD,SN5 ,28/07/2023,-162.87
95016252,Physical Support,Adults,Physical Support 65 and over,3rd Party Payments,Personal Budget - Domiciliary care,247 HOME CARE LTD,SN5 ,14/07/2023,"1,099.98"
93753258,Physical Support,Adults,Physical Support 65 and over,3rd Party Payments,Personal Budget - Domiciliary care,247 HOME CARE LTD,SN5 ,07/07/2023,-162.87
93753255,Physical Support,Adults,Physical Support 18 - 64,3rd Party Payments,Carers,247 HOME CARE LTD,SN5 ,07/07/2023,75.32
96765245,Physical Support,Adults,Physical Support 18 - 64,3rd Party Payments,Personal Budget - Domiciliary care,247 HOME CARE LTD,SN5 ,28/07/2023,"1,128.92"
93753257,Physical Support,Adults,Physical Support 65 and over,3rd Party Payments,Personal Budget - Domiciliary care,247 HOME CARE LTD,SN5 ,07/07/2023,"1,099.98"
96765245,Physical Support,Adults,Physical Support 18 - 64,3rd Party Payments,Carers,247 HOME CARE LTD,SN5 ,28/07/2023,126.20
96765245,Physical Support,Adults,Physical Support 18 - 64,3rd Party Payments,Personal Budget - Domiciliary care,247 HOME CARE LTD,SN5 ,28/07/2023,-3.80
95016251,Physical Support,Adults,Physical Support 18 - 64,3rd Party Payments,Carers,247 HOME CARE LTD,SN5 ,14/07/2023,114.94
95016251,Physical Support,Adults,Physical Support 18 - 64,3rd Party Payments,Personal Budget - Domiciliary care,247 HOME CARE LTD,SN5 ,14/07/2023,"1,140.18"
95016253,Physical Support,Adults,Physical Support 18 - 64,3rd Party Payments,Personal Budget - Domiciliary care,247 HOME CARE LTD,SN5 ,14/07/2023,-162.87
96765247,Physical Support,Adults,Physical Support 65 and over,3rd Party Payments,Personal Budget - Domiciliary care,247 HOME CARE LTD,SN5 ,28/07/2023,897.87
95016251,Physical Support,Adults,Physical Support 18 - 64,3rd Party Payments,Personal Budget - Domiciliary care,247 HOME CARE LTD,SN5 ,14/07/2023,-3.80
93321233,Highways & Transport,Highways & Transport,Bridge Inspection and Maintenance,Supplies and Services,Repairs & Maintenance,4 ACRE ECOLOGY LTD,OX29,03/07/2023,436.20
93141237,DSG Other Funding,DSG Skills and Attainment,LAC pupil premium,Supplies and Services,Services,4D CARE LTD,PE14,07/07/2023,600.00
94012233,School Transport,"Education, Inclusion and Skills",Mainstream School Transport,Transport Costs,Home to School Transport,4K TRAVEL LTD,SN2 ,07/07/2023,"5,676.00"
94013233,School Transport,"Education, Inclusion and Skills",Special Educational Needs Transport,Transport Costs,Home to School Transport,4K TRAVEL LTD,SN2 ,07/07/2023,"2,362.50"
95974233,Town Centre,"Economy, Growth and Place",Fleming Way Improvement Scheme,Capital,Professional Fees,A PLUS SAFETY & TRAINING SERVICES LTD,SN3 ,19/07/2023,549.00
96744342,Homelessness and Travellers,Housing Services,Private Sector Landlords,Transfer Payments,Payment of Costs,REDACTED PERSONAL DATA,SN3 ,26/07/2023,800.00
95586233,Other Repairs,Repairs,Cyclical Maintenance,Supplies and Services,Testing / Inspection,ABBEY ELECTRICAL (SWINDON) LTD T/A ABBEY ELECTRICAL UK,SN6 ,17/07/2023,518.10
93872237,Other Repairs,Repairs,Cyclical Maintenance,Supplies and Services,Testing / Inspection,ABBEY ELECTRICAL (SWINDON) LTD T/A ABBEY ELECTRICAL UK,SN6 ,07/07/2023,"1,049.03"
95581233,Other Repairs,Repairs,Cyclical Maintenance,Supplies and Services,Testing / Inspection,ABBEY ELECTRICAL (SWINDON) LTD T/A ABBEY ELECTRICAL UK,SN6 ,17/07/2023,"2,228.62"
97676236,Other Repairs,Repairs,Cyclical Maintenance,Supplies and Services,Testing / Inspection,ABBEY ELECTRICAL (SWINDON) LTD T/A ABBEY ELECTRICAL UK,SN6 ,31/07/2023,"1,232.88"
93872238,Other Repairs,Repairs,Cyclical Maintenance,Supplies and Services,Testing / Inspection,ABBEY ELECTRICAL (SWINDON) LTD T/A ABBEY ELECTRICAL UK,SN6 ,07/07/2023,"1,317.02"
96763234,Other Repairs,Repairs,Cyclical Maintenance,Supplies and Services,Testing / Inspection,ABBEY ELECTRICAL (SWINDON) LTD T/A ABBEY ELECTRICAL UK,SN6 ,26/07/2023,"1,265.14"
94019234,Other Repairs,Repairs,Cyclical Maintenance,Supplies and Services,Testing / Inspection,ABBEY ELECTRICAL (SWINDON) LTD T/A ABBEY ELECTRICAL UK,SN6 ,07/07/2023,959.70
97609237,Other Repairs,Repairs,Cyclical Maintenance,Supplies and Services,Testing / Inspection,ABBEY ELECTRICAL (SWINDON) LTD T/A ABBEY ELECTRICAL UK,SN6 ,31/07/2023,590.90
94524233,Early Years Block,DSG Skills and Attainment,Free Nursery Education Commissioning - three & four  year olds,3rd Party Payments,Contracts - Child Care,ABBEY FARM EDUCATE TOGETHER PRIMARY,SN25,12/07/2023,"7,013.71"
94972233,Early Years Block,DSG Skills and Attainment,Free Nursery Education Commissioning - three & four  year olds,3rd Party Payments,Contracts - Child Care,ABBEY MEADS COMMUNITY PRIMARY SCHOOL,SN25,12/07/2023,"4,784.96"
94972234,Early Years Block,DSG Skills and Attainment,Free Nursery Education Commissioning - three & four  year olds,3rd Party Payments,Contracts - Child Care,ABBEY MEADS COMMUNITY PRIMARY SCHOOL,SN25,12/07/2023,608.40
95416292,High Needs Block,DSG Skills and Attainment,SEN Resourcing Assessment Panel,3rd Party Payments,Top up funding - Academies and Free Schools Pre 16,ABBEY MEADS COMMUNITY PRIMARY SCHOOL,SN25,14/07/2023,"6,215.42"
95138233,Public Health,Public Health,Sexual Health & Health Protection Budget,3rd Party Payments,Contract Payments,ABBEY MEADS MEDICAL GROUP,SN25,14/07/2023,574.00
95016242,Physical Support,Adults,Physical Support 18 - 64,3rd Party Payments,Personal Budget - Domiciliary care,ABICARE SERVICES LTD,BS32,12/07/2023,558.29
93914233,Physical Support,Adults,Physical Support 18 - 64,3rd Party Payments,Personal Budget - Domiciliary care,ABICARE SERVICES LTD,BS32,07/07/2023,576.84
96212233,Physical Support,Adults,Physical Support 18 - 64,3rd Party Payments,Personal Budget - Domiciliary care,ABICARE SERVICES LTD,BS32,21/07/2023,571.78
96957241,Physical Support,Adults,Physical Support 18 - 64,3rd Party Payments,Personal Budget - Domiciliary care,ABICARE SERVICES LTD,BS32,28/07/2023,571.78
95016248,Mental Health,Adults,Mental Health 65 and over,3rd Party Payments,Personal Budget - Domiciliary care,ABICARE SERVICES LTD (LIVE IN),SP2 ,12/07/2023,"1,106.00"
95016247,Physical Support,Adults,Physical Support 18 - 64,3rd Party Payments,Personal Budget - Domiciliary care,ABICARE SERVICES LTD (LIVE IN),SP2 ,12/07/2023,"1,106.00"
93920233,Mental Health,Adults,Mental Health 65 and over,3rd Party Payments,Personal Budget - Domiciliary care,ABICARE SERVICES LTD (LIVE IN),SP2 ,07/07/2023,"1,106.00"
93919233,Mental Health,Adults,Mental Health 65 and over,3rd Party Payments,Personal Budget - Domiciliary care,ABICARE SERVICES LTD (LIVE IN),SP2 ,07/07/2023,"1,106.00"
93918233,Physical Support,Adults,Physical Support 18 - 64,3rd Party Payments,Personal Budget - Domiciliary care,ABICARE SERVICES LTD (LIVE IN),SP2 ,07/07/2023,"1,106.00"
95016246,Physical Support,Adults,Physical Support 18 - 64,3rd Party Payments,Personal Budget - Domiciliary care,ABICARE SERVICES LTD (LIVE IN),SP2 ,12/07/2023,"1,200.00"
96957244,Physical Support,Adults,Physical Support 18 - 64,3rd Party Payments,Personal Budget - Domiciliary care,ABICARE SERVICES LTD (LIVE IN),SP2 ,28/07/2023,"1,200.00"
96216233,Physical Support,Adults,Physical Support 18 - 64,3rd Party Payments,Personal Budget - Domiciliary care,ABICARE SERVICES LTD (LIVE IN),SP2 ,21/07/2023,"1,106.00"
96215233,Physical Support,Adults,Physical Support 18 - 64,3rd Party Payments,Personal Budget - Domiciliary care,ABICARE SERVICES LTD (LIVE IN),SP2 ,21/07/2023,"1,200.00"
96217233,Mental Health,Adults,Mental Health 65 and over,3rd Party Payments,Personal Budget - Domiciliary care,ABICARE SERVICES LTD (LIVE IN),SP2 ,21/07/2023,"1,106.00"
93917233,Physical Support,Adults,Physical Support 18 - 64,3rd Party Payments,Personal Budget - Domiciliary care,ABICARE SERVICES LTD (LIVE IN),SP2 ,07/07/2023,"1,200.00"
96957245,Physical Support,Adults,Physical Support 18 - 64,3rd Party Payments,Personal Budget - Domiciliary care,ABICARE SERVICES LTD (LIVE IN),SP2 ,28/07/2023,"1,106.00"
96957247,Mental Health,Adults,Mental Health 65 and over,3rd Party Payments,Personal Budget - Domiciliary care,ABICARE SERVICES LTD (LIVE IN),SP2 ,28/07/2023,"1,106.00"
96218233,Mental Health,Adults,Mental Health 65 and over,3rd Party Payments,Personal Budget - Domiciliary care,ABICARE SERVICES LTD (LIVE IN),SP2 ,21/07/2023,"1,106.00"
96957246,Mental Health,Adults,Mental Health 65 and over,3rd Party Payments,Personal Budget - Domiciliary care,ABICARE SERVICES LTD (LIVE IN),SP2 ,28/07/2023,"1,106.00"
95016249,Mental Health,Adults,Mental Health 65 and over,3rd Party Payments,Personal Budget - Domiciliary care,ABICARE SERVICES LTD (LIVE IN),SP2 ,12/07/2023,"1,106.00"
96982233,Social Care,"Children, Families and Community Health Services",Unaccompanied Asylum Seeking Children (UASC),3rd Party Payments,Festival Payment,ABIDING LIMITED T/A ABIDING CARE,OX4 ,28/07/2023,15.00
96982233,Social Care,"Children, Families and Community Health Services",Unaccompanied Asylum Seeking Children (UASC),Transport Costs,Client Costs of Public Transport,ABIDING LIMITED T/A ABIDING CARE,OX4 ,28/07/2023,40.00
96982233,Social Care,"Children, Families and Community Health Services",Unaccompanied Asylum Seeking Children (UASC),3rd Party Payments,Clothing,ABIDING LIMITED T/A ABIDING CARE,OX4 ,28/07/2023,130.00
96982233,Social Care,"Children, Families and Community Health Services",Unaccompanied Asylum Seeking Children (UASC),3rd Party Payments,Cash Support,ABIDING LIMITED T/A ABIDING CARE,OX4 ,28/07/2023,592.20
94525233,Early Years Block,DSG Skills and Attainment,Free Nursery Education Commissioning - three & four  year olds,3rd Party Payments,Contracts - Child Care,REDACTED PERSONAL DATA,SN2 ,12/07/2023,"1,050.80"
96861233,Customer Strategy & Operations,"People, Culture and Organisational Resilience",Registrar of Births etc.,Supplies and Services,Materials,ACORN PRESS SWINDON LTD,SN5 ,26/07/2023,536.00
96744401,Homelessness and Travellers,Housing Services,Private Sector Landlords,Transfer Payments,Payment of Costs,REDACTED PERSONAL DATA,SN8 ,26/07/2023,650.00
96744363,Homelessness and Travellers,Housing Services,Private Sector Landlords,Transfer Payments,Payment of Costs,REDACTED PERSONAL DATA,SN8 ,26/07/2023,700.00
95436233,Human Resources and Organisational Development,"People, Culture and Organisational Resilience",Organisational Development,Employees,Training,ACT NOW TRAINING LTD,WF12,14/07/2023,"1,605.00"
95959233,Disabled Children,"Children, Families and Community Health Services",ICES Paediatric,Supplies and Services,Equipment,ACTIVATE FOR KIDS LTD,SP2 ,19/07/2023,435.66
95416349,High Needs Block,DSG Skills and Attainment,SEN Resourcing Assessment Panel,3rd Party Payments,Top up funding - Academies and Free Schools Post 16,ACTIVATE LEARNING EDUCATION TRUST,OX1 ,14/07/2023,660.83
95149233,DSG Other Funding,DSG Skills and Attainment,LAC pupil premium,3rd Party Payments,Education / Training,ACTIVE SUPPORT (LUTON) LIMITED,LU3 ,14/07/2023,800.00
97349325,Learning Disabilities,Adults,Learning Disability 18 - 64,Transfer Payments,Personal Budget - Direct Payments - Domiciliary Care,REDACTED PERSONAL DATA,SN4 ,31/07/2023,"1,290.77"
97349606,Learning Disabilities,Adults,Learning Disability 18 - 64,Transfer Payments,Personal Budget - Direct Payments - Domiciliary Care,REDACTED PERSONAL DATA,SN3 ,31/07/2023,"2,219.29"
96965233,Senior Management Team,"Children, Families and Community Health Services",Senior Management Team - Non Staffing,Supplies and Services,Consultants,REDACTED PERSONAL DATA,NE30,28/07/2023,"6,142.90"
96744362,Homelessness and Travellers,Housing Services,Private Sector Landlords,Transfer Payments,Payment of Costs,ADVANCE HOUSING & SUPPORT LTD,OX28,26/07/2023,"1,074.00"
93538234,Other Repairs,Repairs,Unallocated job costs from OPEN system,Premises Costs,Maintenance - Buildings,AEGIR TECHNICAL SERVICES LTD,BA14,05/07/2023,150.00
96457233,NEV,"Economy, Growth and Place",Package 2 - Nythe Road Junction and Piccadilly Roundabout,Capital,"Equipment, Fixtures & Fittings",AFFLECK ELECTRICAL LTD,SN3 ,24/07/2023,"1,568.00"
96454234,NEV,"Economy, Growth and Place",Package 2 - Nythe Road Junction and Piccadilly Roundabout,Capital,"Equipment, Fixtures & Fittings",AFFLECK ELECTRICAL LTD,SN3 ,24/07/2023,"1,668.60"
95347265,Learning Disabilities,Adults,Learning Disability 65 and over,3rd Party Payments,Supported Lodgings (Childrens)/Supported Living (Adults),AGINCARE ENABLE LTD,DT5 ,14/07/2023,"10,293.92"
95347265,Learning Disabilities,Adults,Learning Disability 65 and over,Income,Client Contribution - Supported Living,AGINCARE ENABLE LTD,DT5 ,14/07/2023,"-1,872.36"
95347265,Learning Disabilities,Adults,Learning Disability 65 and over,Income,Client Contribution - Supported Living,AGINCARE ENABLE LTD,DT5 ,14/07/2023,-595.75
95347265,Learning Disabilities,Adults,Learning Disability 65 and over,3rd Party Payments,Supported Lodgings (Childrens)/Supported Living (Adults),AGINCARE ENABLE LTD,DT5 ,14/07/2023,"-23,340.00"
95347265,Learning Disabilities,Adults,Learning Disability 65 and over,Income,Client Contribution - Supported Living,AGINCARE ENABLE LTD,DT5 ,14/07/2023,85.11
95347265,Learning Disabilities,Adults,Learning Disability 65 and over,3rd Party Payments,Supported Lodgings (Childrens)/Supported Living (Adults),AGINCARE ENABLE LTD,DT5 ,14/07/2023,"7,623.75"
95347265,Learning Disabilities,Adults,Learning Disability 65 and over,3rd Party Payments,Supported Lodgings (Childrens)/Supported Living (Adults),AGINCARE ENABLE LTD,DT5 ,14/07/2023,"24,396.00"
95347265,Learning Disabilities,Adults,Learning Disability 65 and over,Income,Client Contribution - Supported Living,AGINCARE ENABLE LTD,DT5 ,14/07/2023,34.04
95347265,Learning Disabilities,Adults,Learning Disability 65 and over,3rd Party Payments,Supported Lodgings (Childrens)/Supported Living (Adults),AGINCARE ENABLE LTD,DT5 ,14/07/2023,"3,216.85"
95347265,Learning Disabilities,Adults,Learning Disability 65 and over,Income,Client Contribution - Supported Living,AGINCARE ENABLE LTD,DT5 ,14/07/2023,-119.15
95347265,Learning Disabilities,Adults,Learning Disability 65 and over,3rd Party Payments,Supported Lodgings (Childrens)/Supported Living (Adults),AGINCARE ENABLE LTD,DT5 ,14/07/2023,-175.90
95347265,Learning Disabilities,Adults,Learning Disability 65 and over,Income,Client Contribution - Supported Living,AGINCARE ENABLE LTD,DT5 ,14/07/2023,"1,991.51"
95347265,Learning Disabilities,Adults,Learning Disability 65 and over,3rd Party Payments,Supported Lodgings (Childrens)/Supported Living (Adults),AGINCARE ENABLE LTD,DT5 ,14/07/2023,"-9,674.50"
95308233,Physical Support,Adults,Physical Support 65 and over,3rd Party Payments,Residential Care,AGINCARE LTD,DT5 ,14/07/2023,"4,500.00"
95308233,Physical Support,Adults,Physical Support 65 and over,Income,Client Contribution - Residential,AGINCARE LTD,DT5 ,14/07/2023,"-1,538.90"
Corporate Card Transaction,Early Help,"Children, Families and Community Health Services",Integrated Adolescents Service,Supplies and Services,Materials,Airbnb * Hmmddrjxrx,,19/07/2023,"1,040.43"
Corporate Card Transaction,Social Care,"Children, Families and Community Health Services",Placement - Care Leaver Team,Supplies and Services,Materials,Airbnb * Hmyccher43,,06/07/2023,"3,995.88"
95385233,Travel,Highways & Transport,Concessionary Travel,3rd Party Payments,Concessionary Travel Subsidy,AKCESS CIC,SN2 ,14/07/2023,614.91
94002234,School Transport,"Education, Inclusion and Skills",Special Educational Needs Transport,Transport Costs,Home to School Transport,AKCESS CIC,SN2 ,07/07/2023,"2,565.00"
94653233,School Transport,"Education, Inclusion and Skills",Special Educational Needs Transport,Transport Costs,Home to School Transport,AKCESS CIC,SN2 ,12/07/2023,"64,598.21"
94007233,School Transport,"Education, Inclusion and Skills",Special Educational Needs Transport,Transport Costs,Home to School Transport,AKCESS CIC,SN2 ,07/07/2023,"6,323.63"
94008233,School Transport,"Education, Inclusion and Skills",Special Educational Needs Transport,Employees,Temporary / Agency - by Accounts Payable,AKCESS CIC,SN2 ,07/07/2023,"13,566.00"
93884233,Physical Support,Adults,Physical Support 65 and over,Transport Costs,Home to Centre Transport,AKCESS CIC,SN2 ,07/07/2023,"2,968.29"
93884233,Learning Disabilities,Adults,Learning Disability 18 - 64,Transport Costs,Home to Centre Transport,AKCESS CIC,SN2 ,07/07/2023,"20,778.01"
93884233,Learning Disabilities,Adults,Learning Disability 18 - 64,Transport Costs,Home to Centre Transport,AKCESS CIC,SN2 ,07/07/2023,"5,934.71"
94006233,School Transport,"Education, Inclusion and Skills",Mainstream School Transport,Transport Costs,Home to School Transport,AKCESS CIC,SN2 ,07/07/2023,"2,165.63"
94294233,Travel,Highways & Transport,Public Transport,3rd Party Payments,Contract Payments,AKCESS CIC,SN2 ,10/07/2023,"15,023.18"
93884233,Physical Support,Adults,Physical Support 65 and over,Transport Costs,Home to Centre Transport,AKCESS CIC,SN2 ,07/07/2023,"5,934.71"
97037233,Senior Management Team,"Children, Families and Community Health Services",Family Safeguarding Model,Supplies and Services,Services,ALASDAIR CANT & ASSOCIATES LIMITED,CB2 ,28/07/2023,575.00
97036234,Senior Management Team,"Children, Families and Community Health Services",Family Safeguarding Model,Supplies and Services,Services,ALASDAIR CANT & ASSOCIATES LIMITED,CB2 ,28/07/2023,"4,053.67"
95738234,Learning Disabilities,Adults,Learning Disability 18 - 64,3rd Party Payments,Supported Accommodation Scheme,REDACTED PERSONAL DATA,SN2 ,21/07/2023,"2,280.00"
95000234,Disabled Children,"Children, Families and Community Health Services",DCT Daytime Short Breaks,Transfer Payments,Personal Budget - Direct Payments - Other,REDACTED PERSONAL DATA,SN1 ,14/07/2023,"1,646.00"
97349627,Learning Disabilities,Adults,Learning Disability 18 - 64,Transfer Payments,Personal Budget - Direct Payments - Domiciliary Care,REDACTED PERSONAL DATA,SN25,31/07/2023,"1,135.30"
94528233,Early Years Block,DSG Skills and Attainment,Free Nursery Education Commissioning - three & four  year olds,3rd Party Payments,Contracts - Child Care,ALFRESCO CHILDCARE,SN6 ,12/07/2023,"7,495.21"
96532233,Early Help,Early Intervention & Prevention,"Holiday, Activities & Food Grant",3rd Party Payments,Contracts - Child Care,ALFRESCO CHILDCARE,SN6 ,26/07/2023,"1,206.00"
95861233,Learning Disabilities,Adults,Learning Disability 18 - 64,3rd Party Payments,Supported Accommodation Scheme,REDACTED PERSONAL DATA,SN1 ,21/07/2023,"2,666.00"
97349720,Learning Disabilities,Adults,Learning Disability 18 - 64,Transfer Payments,Personal Budget - Direct Payments - Domiciliary Care,REDACTED PERSONAL DATA,SN4 ,31/07/2023,"7,944.44"
95862233,Learning Disabilities,Adults,Learning Disability 18 - 64,3rd Party Payments,Supported Accommodation Scheme,REDACTED PERSONAL DATA,SN2 ,21/07/2023,"1,480.00"
95862233,Learning Disabilities,Adults,Learning Disability 18 - 64,3rd Party Payments,Supported Accommodation Scheme,REDACTED PERSONAL DATA,SN2 ,21/07/2023,"2,226.00"
95862233,Learning Disabilities,Adults,Learning Disability 18 - 64,3rd Party Payments,Supported Accommodation Scheme,REDACTED PERSONAL DATA,SN2 ,21/07/2023,"1,840.00"
97349327,Learning Disabilities,Adults,Learning Disability 18 - 64,Transfer Payments,Personal Budget - Direct Payments - Domiciliary Care,REDACTED PERSONAL DATA,SN5 ,31/07/2023,"9,929.70"
94972235,Early Years Block,DSG Skills and Attainment,Free Nursery Education Commissioning - two year olds,3rd Party Payments,Contracts - Child Care,REDACTED PERSONAL DATA,SN25,12/07/2023,507.19
94972236,Early Years Block,DSG Skills and Attainment,Free Nursery Education Commissioning - three & four  year olds,3rd Party Payments,Contracts - Child Care,REDACTED PERSONAL DATA,SN25,12/07/2023,"1,464.22"
94530233,Early Years Block,DSG Skills and Attainment,Free Nursery Education Commissioning - three & four  year olds,3rd Party Payments,Contracts - Child Care,REDACTED PERSONAL DATA,SN1 ,12/07/2023,"1,623.96"
97349504,Learning Disabilities,Adults,Learning Disability 18 - 64,Transfer Payments,Personal Budget - Direct Payments - Domiciliary Care,REDACTED PERSONAL DATA,SN5 ,31/07/2023,"3,844.76"
95173258,Streetsmart,Streetsmart,Waterside Fleet Workshops,Supplies and Services,Equipment,ALLIANCE AUTOMOTIVE UK T/A BRAYMARC,BD4 ,14/07/2023,695.00
94748234,Streetsmart,Streetsmart,Waterside Fleet Workshops,Supplies and Services,Materials,ALLIANCE AUTOMOTIVE UK T/A BRAYMARC,BD4 ,12/07/2023,421.28
95173258,Streetsmart,Streetsmart,Waterside Fleet Workshops,Supplies and Services,Materials,ALLIANCE AUTOMOTIVE UK T/A BRAYMARC,BD4 ,14/07/2023,220.00
95253233,Landlord Services,Supervision & Management,Estate Management Team,Supplies and Services,Contracts,ALLPAY-NET LIMITED,HR1 ,14/07/2023,"1,924.52"
93791233,Treasury,Corporate Finance,Treasury,Supplies and Services,Bank Charges,ALLPAY-NET LIMITED,HR1 ,05/07/2023,"1,229.58"
94972239,Early Years Block,DSG Skills and Attainment,Free Nursery Education Commissioning - three & four  year olds,3rd Party Payments,Contracts - Child Care,ALPHA PRE-SCHOOL,SN5 ,12/07/2023,"1,368.18"
94972238,Early Years Block,DSG Skills and Attainment,Free Nursery Education Commissioning - two year olds,3rd Party Payments,Contracts - Child Care,ALPHA PRE-SCHOOL,SN5 ,12/07/2023,"-1,239.81"
96813233,Disabled Children,"Children, Families and Community Health Services",DCT Daytime Short Breaks,3rd Party Payments,Respite Care,ALPHA24 HEALTHCARE LTD,EC1M,26/07/2023,"1,080.00"
96817234,Disabled Children,"Children, Families and Community Health Services",DCT Daytime Short Breaks,3rd Party Payments,Respite Care,ALPHA24 HEALTHCARE LTD,EC1M,26/07/2023,"1,080.00"
95829233,Disabled Children,"Children, Families and Community Health Services",DCT Daytime Short Breaks,3rd Party Payments,Respite Care,ALPHA24 HEALTHCARE LTD,EC1M,19/07/2023,720.00
95824234,Disabled Children,"Children, Families and Community Health Services",DCT Daytime Short Breaks,3rd Party Payments,Respite Care,ALPHA24 HEALTHCARE LTD,EC1M,19/07/2023,"1,440.00"
94365233,Disabled Children,"Children, Families and Community Health Services",DCT Daytime Short Breaks,3rd Party Payments,Respite Care,ALPHA24 HEALTHCARE LTD,EC1M,10/07/2023,"1,740.00"
93796233,Disabled Children,"Children, Families and Community Health Services",DCT Daytime Short Breaks,3rd Party Payments,Respite Care,ALPHA24 HEALTHCARE LTD,EC1M,07/07/2023,"1,440.00"
93795233,Disabled Children,"Children, Families and Community Health Services",DCT Daytime Short Breaks,3rd Party Payments,Respite Care,ALPHA24 HEALTHCARE LTD,EC1M,07/07/2023,"1,800.00"
93695233,Disabled Children,"Children, Families and Community Health Services",DCT Daytime Short Breaks,3rd Party Payments,Respite Care,ALPHA24 HEALTHCARE LTD,EC1M,05/07/2023,"2,160.00"
96815233,Disabled Children,"Children, Families and Community Health Services",DCT Daytime Short Breaks,3rd Party Payments,Respite Care,ALPHA24 HEALTHCARE LTD,EC1M,26/07/2023,"1,440.00"
95825233,Disabled Children,"Children, Families and Community Health Services",DCT Daytime Short Breaks,3rd Party Payments,Respite Care,ALPHA24 HEALTHCARE LTD,EC1M,19/07/2023,"1,080.00"
93799233,Disabled Children,"Children, Families and Community Health Services",DCT Daytime Short Breaks,3rd Party Payments,Respite Care,ALPHA24 HEALTHCARE LTD,EC1M,07/07/2023,"1,080.00"
93715233,Disabled Children,"Children, Families and Community Health Services",DCT Daytime Short Breaks,3rd Party Payments,Respite Care,ALPHA24 HEALTHCARE LTD,EC1M,05/07/2023,720.00
93695237,Disabled Children,"Children, Families and Community Health Services",DCT Daytime Short Breaks,3rd Party Payments,Respite Care,ALPHA24 HEALTHCARE LTD,EC1M,05/07/2023,720.00
96816233,Disabled Children,"Children, Families and Community Health Services",DCT Daytime Short Breaks,3rd Party Payments,Respite Care,ALPHA24 HEALTHCARE LTD,EC1M,26/07/2023,"1,080.00"
94333233,Disabled Children,"Children, Families and Community Health Services",DCT Daytime Short Breaks,3rd Party Payments,Respite Care,ALPHA24 HEALTHCARE LTD,EC1M,10/07/2023,"1,080.00"
93695236,Disabled Children,"Children, Families and Community Health Services",DCT Daytime Short Breaks,3rd Party Payments,Respite Care,ALPHA24 HEALTHCARE LTD,EC1M,05/07/2023,"1,080.00"
93695238,Disabled Children,"Children, Families and Community Health Services",DCT Daytime Short Breaks,3rd Party Payments,Respite Care,ALPHA24 HEALTHCARE LTD,EC1M,05/07/2023,720.00
96812234,Disabled Children,"Children, Families and Community Health Services",DCT Daytime Short Breaks,3rd Party Payments,Respite Care,ALPHA24 HEALTHCARE LTD,EC1M,26/07/2023,"1,080.00"
96811234,Disabled Children,"Children, Families and Community Health Services",DCT Daytime Short Breaks,3rd Party Payments,Respite Care,ALPHA24 HEALTHCARE LTD,EC1M,26/07/2023,"1,440.00"
95823233,Disabled Children,"Children, Families and Community Health Services",DCT Daytime Short Breaks,3rd Party Payments,Respite Care,ALPHA24 HEALTHCARE LTD,EC1M,19/07/2023,"1,440.00"
94348233,Disabled Children,"Children, Families and Community Health Services",DCT Daytime Short Breaks,3rd Party Payments,Respite Care,ALPHA24 HEALTHCARE LTD,EC1M,10/07/2023,720.00
93797233,Disabled Children,"Children, Families and Community Health Services",DCT Daytime Short Breaks,3rd Party Payments,Respite Care,ALPHA24 HEALTHCARE LTD,EC1M,07/07/2023,"1,440.00"
93714233,Disabled Children,"Children, Families and Community Health Services",DCT Daytime Short Breaks,3rd Party Payments,Respite Care,ALPHA24 HEALTHCARE LTD,EC1M,05/07/2023,"1,080.00"
93695234,Disabled Children,"Children, Families and Community Health Services",DCT Daytime Short Breaks,3rd Party Payments,Respite Care,ALPHA24 HEALTHCARE LTD,EC1M,05/07/2023,"1,800.00"
96814233,Disabled Children,"Children, Families and Community Health Services",DCT Daytime Short Breaks,3rd Party Payments,Respite Care,ALPHA24 HEALTHCARE LTD,EC1M,26/07/2023,720.00
95826233,Disabled Children,"Children, Families and Community Health Services",DCT Daytime Short Breaks,3rd Party Payments,Respite Care,ALPHA24 HEALTHCARE LTD,EC1M,19/07/2023,"1,800.00"
94367233,Disabled Children,"Children, Families and Community Health Services",DCT Daytime Short Breaks,3rd Party Payments,Respite Care,ALPHA24 HEALTHCARE LTD,EC1M,10/07/2023,"1,080.00"
94334233,Disabled Children,"Children, Families and Community Health Services",DCT Daytime Short Breaks,3rd Party Payments,Respite Care,ALPHA24 HEALTHCARE LTD,EC1M,10/07/2023,"1,080.00"
93801233,Disabled Children,"Children, Families and Community Health Services",DCT Daytime Short Breaks,3rd Party Payments,Respite Care,ALPHA24 HEALTHCARE LTD,EC1M,07/07/2023,720.00
93695235,Disabled Children,"Children, Families and Community Health Services",DCT Daytime Short Breaks,3rd Party Payments,Respite Care,ALPHA24 HEALTHCARE LTD,EC1M,05/07/2023,"1,080.00"
95828233,Disabled Children,"Children, Families and Community Health Services",DCT Daytime Short Breaks,3rd Party Payments,Respite Care,ALPHA24 HEALTHCARE LTD,EC1M,19/07/2023,720.00
94366233,Disabled Children,"Children, Families and Community Health Services",DCT Daytime Short Breaks,3rd Party Payments,Respite Care,ALPHA24 HEALTHCARE LTD,EC1M,10/07/2023,"1,080.00"
96818233,Disabled Children,"Children, Families and Community Health Services",DCT Daytime Short Breaks,3rd Party Payments,Respite Care,ALPHA24 HEALTHCARE LTD,EC1M,26/07/2023,"1,440.00"
95829234,Disabled Children,"Children, Families and Community Health Services",DCT Daytime Short Breaks,3rd Party Payments,Respite Care,ALPHA24 HEALTHCARE LTD,EC1M,19/07/2023,720.00
95821233,Disabled Children,"Children, Families and Community Health Services",DCT Daytime Short Breaks,3rd Party Payments,Respite Care,ALPHA24 HEALTHCARE LTD,EC1M,19/07/2023,"1,440.00"
93686233,Disabled Children,"Children, Families and Community Health Services",DCT Daytime Short Breaks,3rd Party Payments,Respite Care,ALPHA24 HEALTHCARE LTD,EC1M,05/07/2023,"1,440.00"
94368233,Disabled Children,"Children, Families and Community Health Services",DCT Daytime Short Breaks,3rd Party Payments,Respite Care,ALPHA24 HEALTHCARE LTD,EC1M,10/07/2023,720.00
94332233,Disabled Children,"Children, Families and Community Health Services",DCT Daytime Short Breaks,3rd Party Payments,Respite Care,ALPHA24 HEALTHCARE LTD,EC1M,10/07/2023,"2,160.00"
93798233,Disabled Children,"Children, Families and Community Health Services",DCT Daytime Short Breaks,3rd Party Payments,Respite Care,ALPHA24 HEALTHCARE LTD,EC1M,07/07/2023,"1,440.00"
95347269,Physical Support,Adults,Physical Support 65 and over,3rd Party Payments,Nursing Care,ALTOGETHER CARE WEYMOUTH CARE HOME,DT4 ,14/07/2023,"5,029.10"
95347269,Physical Support,Adults,Physical Support 65 and over,Income,Client Contribution - Nursing,ALTOGETHER CARE WEYMOUTH CARE HOME,DT4 ,14/07/2023,-784.75
94178247,Social Care,"Children, Families and Community Health Services",Children's Resource and Home Finding Team,3rd Party Payments,Residential Care,AMBERLEIGH CARE LTD,TF2 ,10/07/2023,"20,340.00"
96152234,Responsive Repairs,Repairs,Responsive Repairs,Premises Costs,Repairs - Buildings,AMELIO UTILITIES(GLOU) LTD T/A 3 COUNTIES DRAIN SERVICES,GL1 ,21/07/2023,412.00
96152234,Responsive Repairs,Repairs,Responsive Repairs,Premises Costs,Repairs - Buildings,AMELIO UTILITIES(GLOU) LTD T/A 3 COUNTIES DRAIN SERVICES,GL1 ,21/07/2023,140.60
96152234,Responsive Repairs,Repairs,Responsive Repairs,Premises Costs,Repairs - Buildings,AMELIO UTILITIES(GLOU) LTD T/A 3 COUNTIES DRAIN SERVICES,GL1 ,21/07/2023,176.57
96152234,Responsive Repairs,Repairs,Responsive Repairs,Premises Costs,Repairs - Buildings,AMELIO UTILITIES(GLOU) LTD T/A 3 COUNTIES DRAIN SERVICES,GL1 ,21/07/2023,210.89
93708233,Routes to Employment,"Education, Inclusion and Skills",Multiply,Supplies and Services,Materials,AMENA HANMAN (DYSLEXIA ASSESSOR),SN3 ,05/07/2023,"1,440.00"
97643233,NEV,"Economy, Growth and Place",Gablecross Junction,Capital,Professional Fees,AMEY OW LTD,L19 ,31/07/2023,"2,102.94"
97643233,NEV,"Economy, Growth and Place",Southern Connector Road,Capital,Professional Fees,AMEY OW LTD,L19 ,31/07/2023,"32,471.19"
93398233,NEV,"Economy, Growth and Place",Southern Connector Road,Capital,Professional Fees,AMEY OW LTD,L19 ,03/07/2023,"75,251.95"
93398233,NEV,"Economy, Growth and Place",Package 2 - Nythe Road Junction and Piccadilly Roundabout,Capital,Professional Fees,AMEY OW LTD,L19 ,03/07/2023,"1,715.78"
97643233,Town Centre,"Economy, Growth and Place",Fleming Way Improvement Scheme,Capital,Professional Fees,AMEY OW LTD,L19 ,31/07/2023,"17,529.42"
93398233,NEV,"Economy, Growth and Place",Gablecross Junction,Capital,Professional Fees,AMEY OW LTD,L19 ,03/07/2023,"5,580.48"
97644233,Highways & Transport,Highways & Transport,Project Delivery,Supplies and Services,Services,AMEY OW LTD,L19 ,31/07/2023,"67,634.89"
93398233,NEV,"Economy, Growth and Place",White Hart Junction,Capital,Professional Fees,AMEY OW LTD,L19 ,03/07/2023,"4,002.68"
93398233,Town Centre,"Economy, Growth and Place",Fleming Way Improvement Scheme,Capital,Professional Fees,AMEY OW LTD,L19 ,03/07/2023,"41,292.61"
96380233,Property Estates,Property,Estates - Corporate Property General,Premises Costs,Rents,AMEY TPT,EC4A,21/07/2023,"2,785.00"
96739233,Disabled Children,"Children, Families and Community Health Services",DCT Daytime Short Breaks,3rd Party Payments,Respite Care,AMICUS FOSTER CARE,BS2 ,26/07/2023,"2,600.00"
96013233,Social Care,"Children, Families and Community Health Services",Children's Resource and Home Finding Team,3rd Party Payments,Independent Fostering Agency Placements,AMICUS FOSTER CARE,BS2 ,19/07/2023,"5,086.50"
96014233,Social Care,"Children, Families and Community Health Services",Children's Resource and Home Finding Team,3rd Party Payments,Independent Fostering Agency Placements,AMICUS FOSTER CARE,BS2 ,19/07/2023,"5,256.05"
96315233,Human Resources and Organisational Development,"People, Culture and Organisational Resilience",Organisational Development,Employees,Training,AMIE DEW,GL51,21/07/2023,675.00
95176233,Disabled Children,"Children, Families and Community Health Services",DCT Daytime Short Breaks,Transfer Payments,Personal Budget - Direct Payments - Other,REDACTED PERSONAL DATA,SN2 ,14/07/2023,"1,132.00"
97349367,Mental Health,Adults,Mental Health 18-64,Transfer Payments,Personal Budget - Direct Payments - Domiciliary Care,REDACTED PERSONAL DATA,SN25,31/07/2023,619.34
94972241,Early Years Block,DSG Skills and Attainment,Free Nursery Education Commissioning - three & four  year olds,3rd Party Payments,Contracts - Child Care,REDACTED PERSONAL DATA,SN3 ,12/07/2023,937.44
97349354,Learning Disabilities,Adults,Learning Disability 18 - 64,Transfer Payments,Personal Budget - Direct Payments - Domiciliary Care,REDACTED PERSONAL DATA,SP11,31/07/2023,502.46
96744243,Homelessness and Travellers,Housing Services,Private Sector Landlords,Transfer Payments,Payment of Costs,REDACTED PERSONAL DATA,SN26,26/07/2023,675.00
94972421,Early Years Block,DSG Skills and Attainment,Free Nursery Education Commissioning - three & four  year olds,3rd Party Payments,Contracts - Child Care,REDACTED PERSONAL DATA,SN5 ,12/07/2023,"33,798.99"
95702281,High Needs Block,DSG Skills and Attainment,SEN Resourcing Assessment Panel,3rd Party Payments,Top up funding - Maintained providers Pre 16,REDACTED PERSONAL DATA,SN5 ,19/07/2023,936.00
94972422,Early Years Block,DSG Skills and Attainment,Free Nursery Education Commissioning - three & four  year olds,3rd Party Payments,Contracts - Child Care,REDACTED PERSONAL DATA,SN5 ,12/07/2023,"3,042.00"
94972420,Early Years Block,DSG Skills and Attainment,Free Nursery Education Commissioning - two year olds,3rd Party Payments,Contracts - Child Care,REDACTED PERSONAL DATA,SN5 ,12/07/2023,"4,204.95"
96744354,Homelessness and Travellers,Housing Services,Private Sector Landlords,Transfer Payments,Payment of Costs,ANGELVIEW PROPERTIES LTD,ALBO,26/07/2023,590.00
97349609,Physical Support,Adults,Physical Support 18 - 64,Transfer Payments,Personal Budget - Direct Payments - Domiciliary Care,REDACTED PERSONAL DATA,SN25,31/07/2023,"2,686.51"
96320233,HRA Overheads,Supervision & Management,Admin / Management General,Premises Costs,Insurance - Premises,AON UK LIMITED,EC3V,21/07/2023,"2,978.78"
95418235,Supported Employment,Housing Services,Community Meals,Supplies and Services,Food,APETITO LIMITED,BA14,14/07/2023,837.52
95418238,Supported Employment,Housing Services,Community Meals,Supplies and Services,Food,APETITO LIMITED,BA14,14/07/2023,953.07
95418235,Supported Employment,Housing Services,Community Meals,Supplies and Services,Food,APETITO LIMITED,BA14,14/07/2023,17.84
96798233,Responsive Repairs,Repairs,Responsive Repairs,3rd Party Payments,Contract Payments,APEX SCAFFOLDING SERVICES,SN2 ,26/07/2023,450.00
96801234,Responsive Repairs,Repairs,Responsive Repairs,3rd Party Payments,Contract Payments,APEX SCAFFOLDING SERVICES,SN2 ,26/07/2023,"2,262.86"
96797233,Responsive Repairs,Repairs,Responsive Repairs,3rd Party Payments,Contract Payments,APEX SCAFFOLDING SERVICES,SN2 ,26/07/2023,550.00
96799233,Responsive Repairs,Repairs,Responsive Repairs,3rd Party Payments,Contract Payments,APEX SCAFFOLDING SERVICES,SN2 ,26/07/2023,924.00
96801233,Responsive Repairs,Repairs,Responsive Repairs,3rd Party Payments,Contract Payments,APEX SCAFFOLDING SERVICES,SN2 ,26/07/2023,570.00
96080233,Responsive Repairs,Repairs,Responsive Repairs,3rd Party Payments,Contract Payments,APEX SCAFFOLDING SERVICES,SN2 ,21/07/2023,660.00
96079233,Responsive Repairs,Repairs,Responsive Repairs,3rd Party Payments,Contract Payments,APEX SCAFFOLDING SERVICES,SN2 ,21/07/2023,"1,040.00"
96078233,Responsive Repairs,Repairs,Responsive Repairs,3rd Party Payments,Contract Payments,APEX SCAFFOLDING SERVICES,SN2 ,21/07/2023,550.00
96800233,Responsive Repairs,Repairs,Responsive Repairs,3rd Party Payments,Contract Payments,APEX SCAFFOLDING SERVICES,SN2 ,26/07/2023,550.00
95420233,,,Balance Sheet,Balance Sheet & Recharge,Resources Recharges,APOGEE CORPORATION LIMITED,EC2A,14/07/2023,"10,688.52"
96833233,,,Balance Sheet,Balance Sheet & Recharge,Resources Recharges,APOGEE CORPORATION LIMITED,EC2A,26/07/2023,"4,549.22"
95421233,,,Balance Sheet,Balance Sheet & Recharge,Resources Recharges,APOGEE CORPORATION LIMITED,EC2A,14/07/2023,"3,911.89"
95318233,Learning Disabilities,Adults,Learning Disability 18 - 64,3rd Party Payments,Residential Care,APPLEFORD LTD T/A DANESWOOD,BS25,14/07/2023,"27,510.15"
95318233,Learning Disabilities,Adults,Learning Disability 18 - 64,Income,Client Contribution - Residential,APPLEFORD LTD T/A DANESWOOD,BS25,14/07/2023,-548.50
94728233,Adults - Staffing and Supporting People,Adults,Blue Badges,Supplies and Services,Materials,APS GROUP,SK3 ,12/07/2023,"1,634.13"
96007233,Social Care,"Children, Families and Community Health Services",Children's Resource and Home Finding Team,3rd Party Payments,Residential Care,REDACTED PERSONAL DATA,LL40,19/07/2023,"8,483.00"
96006233,Social Care,"Children, Families and Community Health Services",Children's Resource and Home Finding Team,3rd Party Payments,Residential Care,REDACTED PERSONAL DATA,LL40,19/07/2023,"16,966.00"
95702233,High Needs Block,DSG Skills and Attainment,SEN Resourcing Assessment Panel,3rd Party Payments,Top up funding - Maintained providers Pre 16,REDACTED PERSONAL DATA,SN2 ,19/07/2023,"7,980.00"
94972242,Early Years Block,DSG Skills and Attainment,Free Nursery Education Commissioning - three & four  year olds,3rd Party Payments,Contracts - Child Care,REDACTED PERSONAL DATA,SN2 ,12/07/2023,"3,231.90"
94972243,Early Years Block,DSG Skills and Attainment,Free Nursery Education Commissioning - three & four  year olds,3rd Party Payments,Contracts - Child Care,REDACTED PERSONAL DATA,SN2 ,12/07/2023,"1,541.28"
95648241,Early Years Block,DSG Skills and Attainment,Free Nursery Education Commissioning - three & four  year olds,3rd Party Payments,Contracts - Child Care,REDACTED PERSONAL DATA,SN2 ,19/07/2023,"7,980.00"
94858233,Social Care,"Children, Families and Community Health Services",Children's Resource and Home Finding Team,3rd Party Payments,Residential Care,AREA CAMDEN GROUP,N8 0,12/07/2023,"21,857.10"
94679234,Human Resources and Organisational Development,"People, Culture and Organisational Resilience",Pay & Reward,Employees,Temporary / Agency - by Accounts Payable,ARGONAUT MANAGEMENT SERVICES LIMITED,N11 ,12/07/2023,"3,600.00"
95347275,Mental Health,Adults,Mental Health 65 and over,3rd Party Payments,Nursing Care,ARIA HEALTHCARE GROUP LTD,CO4 ,14/07/2023,"7,500.00"
97659233,Lydiard Park,Culture & Heritage,Lydiard : Hotel Operations,Supplies and Services,Liquid,ARKELLS BREWERY LTD,SN2 ,31/07/2023,"1,560.91"
93625233,Lydiard Park,Culture & Heritage,Lydiard : Hotel Operations,Supplies and Services,Liquid,ARKELLS BREWERY LTD,SN2 ,05/07/2023,621.34
96732233,Lydiard Park,Culture & Heritage,Lydiard : Hotel Operations,Supplies and Services,Liquid,ARKELLS BREWERY LTD,SN2 ,26/07/2023,776.80
94691233,Lydiard Park,Culture & Heritage,Lydiard : Hotel Operations,Supplies and Services,Liquid,ARKELLS BREWERY LTD,SN2 ,12/07/2023,763.99
94724233,Streetsmart,Streetsmart,Waterside Fleet Hires,Transport Costs,Vehicle Hire / Contract,ARNOLD PLANT HIRE LIMITED,SK6 ,12/07/2023,"1,540.00"
94725233,Streetsmart,Streetsmart,Waterside Fleet Hires,Transport Costs,Vehicle Hire / Contract,ARNOLD PLANT HIRE LIMITED,SK6 ,12/07/2023,"1,166.00"
95347273,Mental Health,Adults,Mental Health 65 and over,3rd Party Payments,Residential Care,ARTI CARE HOMES (GLOUCESTER) LIMITED,WD7 ,14/07/2023,"6,000.00"
Corporate Card Transaction,Community Health & Wellbeing,Public Health,Community Health and Wellbeing Management,Supplies and Services,Food,Asda Stores,,27/06/2023,800.00
Corporate Card Transaction,Community Health & Wellbeing,Public Health,Community Health and Wellbeing Management,Supplies and Services,Food,Asda Stores,,27/06/2023,700.00
96599233,Public Health,Public Health,DAAT,3rd Party Payments,Contract Payments,ASDA STORES LTD,LS11,26/07/2023,728.00
95319233,Mental Health,Adults,Mental Health 18-64,Income,Client Contribution - Residential,ASH VIEW HOUSE,BS15,14/07/2023,-523.50
95319233,Mental Health,Adults,Mental Health 18-64,3rd Party Payments,Residential Care,ASH VIEW HOUSE,BS15,14/07/2023,"9,992.15"
93685233,Traded Services,"Education, Inclusion and Skills",Plas Pencelli Outdoor Education Centre,Supplies and Services,Materials,ASHBURNHAM BAKERY,LD3 ,05/07/2023,581.54
95247233,Mental Health,Adults,Mental Health 65 and over,Income,Client Contribution - Residential,ASHBURY LODGE,SN3 ,14/07/2023,-864.00
95247233,Physical Support,Adults,Physical Support 65 and over,Income,Client Contribution - Residential,ASHBURY LODGE,SN3 ,14/07/2023,"-1,108.25"
95247233,Physical Support,Adults,Physical Support 65 and over,3rd Party Payments,Residential Care,ASHBURY LODGE,SN3 ,14/07/2023,"4,096.17",,,, 
95247233,Physical Support,Adults,Physical Support 65 and over,Income,Client Contribution - Residential,ASHBURY LODGE,SN3 ,14/07/2023,-944.98
95247233,Physical Support,Adults,Physical Support 65 and over,Income,Client Contribution - Residential,ASHBURY LODGE,SN3 ,14/07/2023,498.96
95247233,Physical Support,Adults,Physical Support 65 and over,Income,Client Contribution - Residential,ASHBURY LODGE,SN3 ,14/07/2023,-864.00
95247233,Physical Support,Adults,Physical Support 65 and over,Income,Client Contribution - Residential,ASHBURY LODGE,SN3 ,14/07/2023,-822.10
95247233,Physical Support,Adults,Physical Support 65 and over,Income,Client Contribution - Residential,ASHBURY LODGE,SN3 ,14/07/2023,888.69
95247233,Physical Support,Adults,Physical Support 65 and over,Income,Client Contribution - Residential,ASHBURY LODGE,SN3 ,14/07/2023,"-1,088.64"
95247233,Physical Support,Adults,Physical Support 65 and over,Income,Client Contribution - Residential,ASHBURY LODGE,SN3 ,14/07/2023,"1,777.37"
95247233,Physical Support,Adults,Physical Support 65 and over,Income,Client Contribution - Residential,ASHBURY LODGE,SN3 ,14/07/2023,"-1,002.25"
95247233,Physical Support,Adults,Physical Support 65 and over,3rd Party Payments,Residential Care,ASHBURY LODGE,SN3 ,14/07/2023,"3,686.55"
95247233,Physical Support,Adults,Physical Support 65 and over,Income,Client Contribution - Residential,ASHBURY LODGE,SN3 ,14/07/2023,"-1,355.70"
95247233,Physical Support,Adults,Physical Support 65 and over,3rd Party Payments,Residential Care,ASHBURY LODGE,SN3 ,14/07/2023,"-3,686.55"
95247233,Physical Support,Adults,Physical Support 65 and over,3rd Party Payments,Residential Care,ASHBURY LODGE,SN3 ,14/07/2023,"3,891.36"
95247233,Physical Support,Adults,Physical Support 65 and over,3rd Party Payments,Residential Care,ASHBURY LODGE,SN3 ,14/07/2023,"2,969.72"
95247233,Mental Health,Adults,Mental Health 65 and over,3rd Party Payments,Residential Care,ASHBURY LODGE,SN3 ,14/07/2023,"3,736.20"
95247233,Physical Support,Adults,Physical Support 65 and over,3rd Party Payments,Residential Care,ASHBURY LODGE,SN3 ,14/07/2023,"11,742.34"
95247233,Physical Support,Adults,Physical Support 65 and over,3rd Party Payments,Residential Care,ASHBURY LODGE,SN3 ,14/07/2023,"3,200.15"
95247233,Mental Health,Adults,Mental Health 65 and over,Income,Client Contribution - Residential,ASHBURY LODGE,SN3 ,14/07/2023,"-1,006.65"
95247233,Physical Support,Adults,Physical Support 65 and over,Income,Client Contribution - Residential,ASHBURY LODGE,SN3 ,14/07/2023,-734.25
95247233,Physical Support,Adults,Physical Support 65 and over,3rd Party Payments,Residential Care,ASHBURY LODGE,SN3 ,14/07/2023,"-1,945.68"
95247233,Physical Support,Adults,Physical Support 65 and over,3rd Party Payments,Residential Care,ASHBURY LODGE,SN3 ,14/07/2023,"3,584.15"
95247233,Physical Support,Adults,Physical Support 65 and over,3rd Party Payments,Residential Care,ASHBURY LODGE,SN3 ,14/07/2023,"5,040.00"
95247233,Care Management & Safeguarding,Adults,Intermediate Care Team,3rd Party Payments,Residential Care,ASHBURY LODGE,SN3 ,14/07/2023,307.21
95247233,Physical Support,Adults,Physical Support 65 and over,Income,Client Contribution - Residential,ASHBURY LODGE,SN3 ,14/07/2023,"2,396.43"
95247233,Physical Support,Adults,Physical Support 65 and over,Income,Client Contribution - Residential,ASHBURY LODGE,SN3 ,14/07/2023,261.43
95247233,Physical Support,Adults,Physical Support 65 and over,Income,Client Contribution - Residential,ASHBURY LODGE,SN3 ,14/07/2023,-938.06
95247233,Physical Support,Adults,Physical Support 65 and over,Income,Client Contribution - Residential,ASHBURY LODGE,SN3 ,14/07/2023,"-1,635.20"
95247233,Physical Support,Adults,Physical Support 65 and over,3rd Party Payments,Residential Care,ASHBURY LODGE,SN3 ,14/07/2023,"-10,484.26"
95247233,Care Management & Safeguarding,Adults,Intermediate Care Team,3rd Party Payments,Residential Care,ASHBURY LODGE,SN3 ,14/07/2023,-274.30
95247233,Mental Health,Adults,Mental Health 65 and over,3rd Party Payments,Residential Care,ASHBURY LODGE,SN3 ,14/07/2023,"3,584.15"
95247233,Physical Support,Adults,Physical Support 65 and over,Income,Client Contribution - Residential,ASHBURY LODGE,SN3 ,14/07/2023,"-1,094.00"
95247233,Physical Support,Adults,Physical Support 65 and over,Income,Client Contribution - Residential,ASHBURY LODGE,SN3 ,14/07/2023,-888.69
95247233,Physical Support,Adults,Physical Support 65 and over,Income,Client Contribution - Residential,ASHBURY LODGE,SN3 ,14/07/2023,-784.75
95247233,Physical Support,Adults,Physical Support 65 and over,Income,Client Contribution - Residential,ASHBURY LODGE,SN3 ,14/07/2023,"-1,275.40"
95247233,Physical Support,Adults,Physical Support 65 and over,Income,Client Contribution - Residential,ASHBURY LODGE,SN3 ,14/07/2023,-913.45
95247233,Physical Support,Adults,Physical Support 65 and over,3rd Party Payments,Residential Care,ASHBURY LODGE,SN3 ,14/07/2023,"-11,742.34"
95247233,Physical Support,Adults,Physical Support 65 and over,3rd Party Payments,Residential Care,ASHBURY LODGE,SN3 ,14/07/2023,"-1,143.74"
95246233,Physical Support,Adults,Physical Support 65 and over,3rd Party Payments,Nursing Care,ASHGROVE HOUSE NURSING HOME,SN5 ,14/07/2023,"7,600.00"
95246233,Physical Support,Adults,Physical Support 65 and over,Income,Client Contribution - Nursing,ASHGROVE HOUSE NURSING HOME,SN5 ,14/07/2023,-846.50
95711233,Public Health,Public Health,Smoking & Tobacco,3rd Party Payments,Contract Payments,ASHINGTON WAY PHARMACY,SN5 ,19/07/2023,655.75
95711233,Public Health,Public Health,Smoking & Tobacco,3rd Party Payments,Contract Payments,ASHINGTON WAY PHARMACY,SN5 ,19/07/2023,125.00
97349633,Physical Support,Adults,Physical Support 18 - 64,Transfer Payments,Personal Budget - Direct Payments - Domiciliary Care,REDACTED PERSONAL DATA,SN25,31/07/2023,"1,689.94"
95236233,Libraries,"Education, Inclusion and Skills",Library Delivery,Supplies and Services,Materials,ASKEWS AND HOLTS LIBRARY SERVICES LIMITED,PR1 ,14/07/2023,630.08
93888233,Libraries,"Education, Inclusion and Skills",Library Delivery,Supplies and Services,Materials,ASKEWS AND HOLTS LIBRARY SERVICES LIMITED,PR1 ,07/07/2023,"1,097.56"
93752233,Libraries,"Education, Inclusion and Skills",Library Delivery,Supplies and Services,Materials,ASKEWS AND HOLTS LIBRARY SERVICES LIMITED,PR1 ,05/07/2023,"2,827.09"
96350233,Libraries,"Education, Inclusion and Skills",Library Delivery,Supplies and Services,Materials,ASKEWS AND HOLTS LIBRARY SERVICES LIMITED,PR1 ,21/07/2023,"1,141.75"
95237233,Libraries,"Education, Inclusion and Skills",Library Delivery,Supplies and Services,Materials,ASKEWS AND HOLTS LIBRARY SERVICES LIMITED,PR1 ,14/07/2023,"1,339.22"
95288233,Learning Disabilities,Adults,Learning Disability 18 - 64,Income,Client Contribution - Residential,ASPECTS & MILESTONES TRUST,BS16,14/07/2023,-532.00
95288233,Learning Disabilities,Adults,Learning Disability 18 - 64,3rd Party Payments,Residential Care,ASPECTS & MILESTONES TRUST,BS16,14/07/2023,"8,706.10"
95327233,Learning Disabilities,Adults,Learning Disability 18 - 64,3rd Party Payments,Residential Care,ASPECTS 2 LTD,B70 ,14/07/2023,"11,598.30"
95327233,Physical Support,Adults,Physical Support 18 - 64,3rd Party Payments,Supported Lodgings (Childrens)/Supported Living (Adults),ASPECTS 2 LTD,B70 ,14/07/2023,"5,250.00"
95327233,Learning Disabilities,Adults,Learning Disability 18 - 64,Income,Client Contribution - Residential,ASPECTS 2 LTD,B70 ,14/07/2023,-548.50
95327233,Mental Health,Adults,Mental Health 65 and over,3rd Party Payments,Supported Lodgings (Childrens)/Supported Living (Adults),ASPECTS 2 LTD,B70 ,14/07/2023,"1,812.00"
95201233,High Needs Block,DSG Skills and Attainment,Out of Borough School Fees,3rd Party Payments,Independent Special School- Pre 16,ASPRIS CHILDREN'S SERVICES,DL1 ,14/07/2023,"33,424.04"
97373233,Heritage,Culture,Lydiard House & Hotel Improvements,Capital,Contractor Payments,ASSA ABLOY GLOBAL SOLUTIONS UK LTD,RG2 ,31/07/2023,"3,266.64"
95347237,Learning Disabilities,Adults,Learning Disability 65 and over,3rd Party Payments,Residential Care,ASTON CARE LIMITED,RG30,14/07/2023,"10,010.00"
95347237,Learning Disabilities,Adults,Learning Disability 18 - 64,Income,Client Contribution - Residential,ASTON CARE LIMITED,RG30,14/07/2023,-513.50
95347237,Learning Disabilities,Adults,Learning Disability 18 - 64,3rd Party Payments,Residential Care,ASTON CARE LIMITED,RG30,14/07/2023,"10,360.00"
95347237,Learning Disabilities,Adults,Learning Disability 18 - 64,3rd Party Payments,Residential Care,ASTON CARE LIMITED,RG30,14/07/2023,"10,010.00"
95347238,Learning Disabilities,Adults,Learning Disability 18 - 64,Income,Client Contribution - Residential,ASTON CARE LIMITED,RG30,14/07/2023,-328.00
95347237,Learning Disabilities,Adults,Learning Disability 18 - 64,3rd Party Payments,Residential Care,ASTON CARE LIMITED,RG30,14/07/2023,"9,110.00"
95347238,Learning Disabilities,Adults,Learning Disability 18 - 64,3rd Party Payments,Residential Care,ASTON CARE LIMITED,RG30,14/07/2023,"12,167.25"
95347237,Learning Disabilities,Adults,Learning Disability 18 - 64,Income,Client Contribution - Residential,ASTON CARE LIMITED,RG30,14/07/2023,"-1,291.50"
95347237,Learning Disabilities,Adults,Learning Disability 18 - 64,Income,Client Contribution - Residential,ASTON CARE LIMITED,RG30,14/07/2023,-734.25
95347237,Learning Disabilities,Adults,Learning Disability 18 - 64,Income,Client Contribution - Residential,ASTON CARE LIMITED,RG30,14/07/2023,-650.34
95347237,Learning Disabilities,Adults,Learning Disability 18 - 64,Income,Client Contribution - Residential,ASTON CARE LIMITED,RG30,14/07/2023,658.04
94891233,Digital & Business Change,Digital & Business Change,IT Systems,Supplies and Services,License Costs,ASTUN TECHNOLOGY LIMITED,KT17,12/07/2023,"24,250.00"
96533233,Early Help,Early Intervention & Prevention,"Holiday, Activities & Food Grant",3rd Party Payments,Contracts - Child Care,ATBSHOP LTD,SN2 ,26/07/2023,"16,974.00"
96513233,Highways & Transport,Highways & Transport,Project Delivery,Supplies and Services,Services,ATKINS LTD,WR4 ,24/07/2023,"12,334.85"
94171236,Other Repairs,Repairs,Unallocated job costs from OPEN system,Premises Costs,Repairs - Buildings,ATLANTIC FIRE LTD,N18 ,07/07/2023,689.00
94171233,DMJ Tower,Housing Services,DMJ Residential (Now HRA),Premises Costs,Repairs - Buildings,ATLANTIC FIRE LTD,N18 ,07/07/2023,689.00
94131233,Other Repairs,Repairs,Unallocated job costs from OPEN system,Premises Costs,Repairs - Buildings,ATLANTIC FIRE LTD,N18 ,07/07/2023,689.00
94171234,Other Repairs,Repairs,Unallocated job costs from OPEN system,Premises Costs,Repairs - Buildings,ATLANTIC FIRE LTD,N18 ,07/07/2023,689.00
94130233,Other Repairs,Repairs,Unallocated job costs from OPEN system,Premises Costs,Repairs - Buildings,ATLANTIC FIRE LTD,N18 ,07/07/2023,689.00
94133233,Other Repairs,Repairs,Unallocated job costs from OPEN system,Premises Costs,Repairs - Buildings,ATLANTIC FIRE LTD,N18 ,07/07/2023,689.00
94132233,Other Repairs,Repairs,Unallocated job costs from OPEN system,Premises Costs,Repairs - Buildings,ATLANTIC FIRE LTD,N18 ,07/07/2023,689.00
94171235,Other Repairs,Repairs,Unallocated job costs from OPEN system,Premises Costs,Repairs - Buildings,ATLANTIC FIRE LTD,N18 ,07/07/2023,689.00
94171237,Other Repairs,Repairs,Unallocated job costs from OPEN system,Premises Costs,Repairs - Buildings,ATLANTIC FIRE LTD,N18 ,07/07/2023,689.00
97381233,Social Care,"Children, Families and Community Health Services",CP & CIN Social Work - South,Employees,Temporary / Agency - by Accounts Payable,ATTENTI LTD,EC2R,31/07/2023,"2,183.00"
93282241,Social Care,"Children, Families and Community Health Services",CP & CIN Social Work - South,Employees,Temporary / Agency - by Accounts Payable,ATTENTI LTD,EC2R,03/07/2023,"2,360.00"
96996235,Senior Management Team,"Children, Families and Community Health Services",Senior Management Team - Staffing,Employees,Temporary / Agency - by Accounts Payable,ATTENTI LTD,EC2R,28/07/2023,"2,950.00"
96991233,Social Care,"Children, Families and Community Health Services",Practise Development,Employees,Temporary / Agency - by Accounts Payable,ATTENTI LTD,EC2R,28/07/2023,"2,360.00"
95623233,Senior Management Team,"Children, Families and Community Health Services",Senior Management Team - Staffing,Employees,Temporary / Agency - by Accounts Payable,ATTENTI LTD,EC2R,19/07/2023,"2,950.00"
96958240,Senior Management Team,"Children, Families and Community Health Services",Senior Management Team - Staffing,Employees,Temporary / Agency - by Accounts Payable,ATTENTI LTD,EC2R,28/07/2023,"2,360.00"
95692233,Senior Management Team,"Children, Families and Community Health Services",Senior Management Team - Staffing,Employees,Temporary / Agency - by Accounts Payable,ATTENTI LTD,EC2R,19/07/2023,"2,360.00"
97678234,Safeguarding and Quality Assurance,"Children, Families and Community Health Services",Quality Assurance Team,Employees,Temporary / Agency - by Accounts Payable,ATTENTI LTD,EC2R,31/07/2023,"2,360.00"
96952233,Safeguarding and Quality Assurance,"Children, Families and Community Health Services",Quality Assurance Team,Employees,Temporary / Agency - by Accounts Payable,ATTENTI LTD,EC2R,28/07/2023,"1,416.00"
96985233,Social Care,"Children, Families and Community Health Services",Practise Development,Employees,Temporary / Agency - by Accounts Payable,ATTENTI LTD,EC2R,28/07/2023,"2,360.00"
96989233,Social Care,"Children, Families and Community Health Services",Practise Development,Employees,Temporary / Agency - by Accounts Payable,ATTENTI LTD,EC2R,28/07/2023,"2,360.00"
96995234,Social Care,"Children, Families and Community Health Services",Practise Development,Employees,Temporary / Agency - by Accounts Payable,ATTENTI LTD,EC2R,28/07/2023,"2,360.00"
96986233,Senior Management Team,"Children, Families and Community Health Services",Family Safeguarding Model,Employees,Temporary / Agency - by Accounts Payable,ATTENTI LTD,EC2R,28/07/2023,"2,950.00"
96987233,Social Care,"Children, Families and Community Health Services",Practise Development,Employees,Temporary / Agency - by Accounts Payable,ATTENTI LTD,EC2R,28/07/2023,"1,888.00"
96984233,Senior Management Team,"Children, Families and Community Health Services",Family Safeguarding Model,Employees,Temporary / Agency - by Accounts Payable,ATTENTI LTD,EC2R,28/07/2023,"2,360.00"
96990233,Social Care,"Children, Families and Community Health Services",Practise Development,Employees,Temporary / Agency - by Accounts Payable,ATTENTI LTD,EC2R,28/07/2023,"2,360.00"
93283233,Senior Management Team,"Children, Families and Community Health Services",Senior Management Team - Staffing,Employees,Temporary / Agency - by Accounts Payable,ATTENTI LTD,EC2R,03/07/2023,"3,245.00"
95693233,Senior Management Team,"Children, Families and Community Health Services",Family Safeguarding Model,Employees,Temporary / Agency - by Accounts Payable,ATTENTI LTD,EC2R,19/07/2023,"2,360.00"
95695235,Social Care,"Children, Families and Community Health Services",Practise Development,Employees,Temporary / Agency - by Accounts Payable,ATTENTI LTD,EC2R,19/07/2023,"2,360.00"
96992233,Senior Management Team,"Children, Families and Community Health Services",Family Safeguarding Model,Employees,Temporary / Agency - by Accounts Payable,ATTENTI LTD,EC2R,28/07/2023,"2,360.00"
95690234,Senior Management Team,"Children, Families and Community Health Services",Senior Management Team - Staffing,Employees,Temporary / Agency - by Accounts Payable,ATTENTI LTD,EC2R,19/07/2023,"2,950.00"
95624233,Senior Management Team,"Children, Families and Community Health Services",Family Safeguarding Model,Employees,Temporary / Agency - by Accounts Payable,ATTENTI LTD,EC2R,19/07/2023,"2,360.00"
97374233,Social Care,"Children, Families and Community Health Services",CP & CIN Social Work - South,Employees,Temporary / Agency - by Accounts Payable,ATTENTI LTD,EC2R,31/07/2023,"2,183.00"
97400234,Social Care,"Children, Families and Community Health Services",CP & CIN Social Work - South,Employees,Temporary / Agency - by Accounts Payable,ATTENTI LTD,EC2R,31/07/2023,"2,183.00"
96993233,Social Care,"Children, Families and Community Health Services",Practise Development,Employees,Temporary / Agency - by Accounts Payable,ATTENTI LTD,EC2R,28/07/2023,"2,360.00"
96994233,Social Care,"Children, Families and Community Health Services",Practise Development,Employees,Temporary / Agency - by Accounts Payable,ATTENTI LTD,EC2R,28/07/2023,"2,360.00"
96996233,Social Care,"Children, Families and Community Health Services",Practise Development,Employees,Temporary / Agency - by Accounts Payable,ATTENTI LTD,EC2R,28/07/2023,"1,888.00"
95694235,Safeguarding and Quality Assurance,"Children, Families and Community Health Services",Quality Assurance Team,Employees,Temporary / Agency - by Accounts Payable,ATTENTI LTD,EC2R,19/07/2023,944.00
96988233,Senior Management Team,"Children, Families and Community Health Services",Family Safeguarding Model,Employees,Temporary / Agency - by Accounts Payable,ATTENTI LTD,EC2R,28/07/2023,"2,950.00"
95690236,Senior Management Team,"Children, Families and Community Health Services",Family Safeguarding Model,Employees,Temporary / Agency - by Accounts Payable,ATTENTI LTD,EC2R,19/07/2023,"2,950.00"
93441233,Supported Employment,Housing Services,EW - Timber,Supplies and Services,Materials,AU GRAB HIRE LTD,GL7 ,03/07/2023,"1,050.00"
94963233,Facilities Management,"People, Culture and Organisational Resilience",Office Accommodation,Premises Costs,Maintenance - Buildings,AUDITEL RENTAL & SERVICE LTD,HP12,12/07/2023,"4,175.00"
97349714,Physical Support,Adults,Physical Support 65 and over,Transfer Payments,Personal Budget - Direct Payments - Domiciliary Care,REDACTED PERSONAL DATA,SP11,31/07/2023,"4,204.35"
95347264,Physical Support,Adults,Physical Support 65 and over,Income,Client Contribution - Residential,AURA CARE LIVING CIRENCESTER LTD,GL7 ,14/07/2023,"-1,830.00"
95347264,Physical Support,Adults,Physical Support 65 and over,3rd Party Payments,Residential Care,AURA CARE LIVING CIRENCESTER LTD,GL7 ,14/07/2023,"6,214.29"
95347264,Physical Support,Adults,Physical Support 65 and over,3rd Party Payments,Nursing Care,AURA CARE LIVING CIRENCESTER LTD,GL7 ,14/07/2023,"6,750.00"
95347264,Physical Support,Adults,Physical Support 65 and over,Income,Client Contribution - Nursing,AURA CARE LIVING CIRENCESTER LTD,GL7 ,14/07/2023,-919.55
95347264,Physical Support,Adults,Physical Support 65 and over,Income,Client Contribution - Nursing,AURA CARE LIVING CIRENCESTER LTD,GL7 ,14/07/2023,-760.00
95347264,Physical Support,Adults,Physical Support 65 and over,Income,Client Contribution - Residential,AURA CARE LIVING CIRENCESTER LTD,GL7 ,14/07/2023,-888.69
95347264,Physical Support,Adults,Physical Support 65 and over,Income,Client Contribution - Residential,AURA CARE LIVING CIRENCESTER LTD,GL7 ,14/07/2023,-653.57
95347264,Physical Support,Adults,Physical Support 65 and over,3rd Party Payments,Residential Care,AURA CARE LIVING CIRENCESTER LTD,GL7 ,14/07/2023,"17,400.00"
95347264,Physical Support,Adults,Physical Support 65 and over,3rd Party Payments,Residential Care,AURA CARE LIVING CIRENCESTER LTD,GL7 ,14/07/2023,"4,750.00"
95347264,Physical Support,Adults,Physical Support 65 and over,3rd Party Payments,Residential Care,AURA CARE LIVING CIRENCESTER LTD,GL7 ,14/07/2023,"2,160.00"
95347264,Physical Support,Adults,Physical Support 65 and over,3rd Party Payments,Residential Care,AURA CARE LIVING CIRENCESTER LTD,GL7 ,14/07/2023,"1,657.14"
95347264,Mental Health,Adults,Mental Health 18-64,3rd Party Payments,Residential Care,AURA CARE LIVING CIRENCESTER LTD,GL7 ,14/07/2023,"5,750.00"
95347264,Mental Health,Adults,Mental Health 65 and over,3rd Party Payments,Residential Care,AURA CARE LIVING CIRENCESTER LTD,GL7 ,14/07/2023,"7,000.00"
95347264,Care Management & Safeguarding,Adults,Intermediate Care Team,3rd Party Payments,Residential Care,AURA CARE LIVING CIRENCESTER LTD,GL7 ,14/07/2023,"-4,885.71"
95347264,Physical Support,Adults,Physical Support 65 and over,3rd Party Payments,Residential Care,AURA CARE LIVING CIRENCESTER LTD,GL7 ,14/07/2023,"4,885.71"
95347264,Mental Health,Adults,Mental Health 18-64,3rd Party Payments,Residential Care,AURA CARE LIVING CIRENCESTER LTD,GL7 ,14/07/2023,"8,400.00"
95347264,Physical Support,Adults,Physical Support 65 and over,3rd Party Payments,Nursing Care,AURA CARE LIVING CIRENCESTER LTD,GL7 ,14/07/2023,"5,500.00"
95347264,Physical Support,Adults,Physical Support 65 and over,3rd Party Payments,Residential Care,AURA CARE LIVING CIRENCESTER LTD,GL7 ,14/07/2023,"2,880.00"
95347264,Physical Support,Adults,Physical Support 65 and over,Income,Client Contribution - Residential,AURA CARE LIVING CIRENCESTER LTD,GL7 ,14/07/2023,-762.50
95347264,Physical Support,Adults,Physical Support 65 and over,3rd Party Payments,Residential Care,AURA CARE LIVING CIRENCESTER LTD,GL7 ,14/07/2023,"7,250.00"
95347264,Physical Support,Adults,Physical Support 65 and over,Income,Client Contribution - Nursing,AURA CARE LIVING CIRENCESTER LTD,GL7 ,14/07/2023,"-8,229.71"
95347264,Physical Support,Adults,Physical Support 65 and over,Income,Client Contribution - Nursing,AURA CARE LIVING CIRENCESTER LTD,GL7 ,14/07/2023,"5,365.56"
95347264,Mental Health,Adults,Mental Health 18-64,3rd Party Payments,Nursing Care,AURA CARE LIVING CIRENCESTER LTD,GL7 ,14/07/2023,"6,750.00"
95347264,Physical Support,Adults,Physical Support 65 and over,Income,Client Contribution - Nursing,AURA CARE LIVING CIRENCESTER LTD,GL7 ,14/07/2023,-864.00
95347264,Physical Support,Adults,Physical Support 65 and over,Income,Client Contribution - Residential,AURA CARE LIVING CIRENCESTER LTD,GL7 ,14/07/2023,-864.00
95347264,Physical Support,Adults,Physical Support 65 and over,Income,Client Contribution - Residential,AURA CARE LIVING CIRENCESTER LTD,GL7 ,14/07/2023,-174.29
95347246,Learning Disabilities,Adults,Learning Disability 65 and over,Income,Client Contribution - Residential,AUTONOMY LIFE LIMITED,SN12,14/07/2023,-661.00
95347246,Learning Disabilities,Adults,Learning Disability 65 and over,3rd Party Payments,Residential Care,AUTONOMY LIFE LIMITED,SN12,14/07/2023,"12,534.50"
95378233,Social Care,"Children, Families and Community Health Services",Placement - Care Leaver Team,3rd Party Payments,Semi Independent,AVISANT CONSULTING LTD,EC1V,14/07/2023,"1,607.14"
95260233,Learning Disabilities,Adults,Learning Disability 18 - 64,3rd Party Payments,Residential Care,AVON AUTISTIC FOUNDATION LTD,BS11,14/07/2023,"9,585.40"
95260233,Learning Disabilities,Adults,Learning Disability 18 - 64,Income,Client Contribution - Residential,AVON AUTISTIC FOUNDATION LTD,BS11,14/07/2023,-517.75
95259233,Learning Disabilities,Adults,Learning Disability 18 - 64,Income,Client Contribution - Residential,AVON AUTISTIC FOUNDATION LTD,BS11,14/07/2023,-548.50
95259233,Learning Disabilities,Adults,Learning Disability 18 - 64,3rd Party Payments,Residential Care,AVON AUTISTIC FOUNDATION LTD,BS11,14/07/2023,"6,852.55"
96744293,Homelessness and Travellers,Housing Services,Private Sector Landlords,Transfer Payments,Payment of Costs,AVONPARK PROPERTIES LTD,SN3 ,26/07/2023,615.00
96744390,Homelessness and Travellers,Housing Services,Private Sector Landlords,Transfer Payments,Payment of Costs,AVONPARK PROPERTIES LTD,SN3 ,26/07/2023,550.00
93738234,Town Centre,"Economy, Growth and Place",Carriage Works Phase 3,Capital,Professional Fees,BAILEY PARTNERSHIP (CONSULTANTS) LLP,PL1 ,05/07/2023,"2,300.00"
96254233,Social Care,"Children, Families and Community Health Services",Childrens Homefinding Team,Employees,Temporary / Agency - by Accounts Payable,REDACTED PERSONAL DATA,BS1 ,21/07/2023,"2,500.00"
95575233,Social Care,"Children, Families and Community Health Services",Childrens Homefinding Team,Employees,Temporary / Agency - by Accounts Payable,REDACTED PERSONAL DATA,BS1 ,26/07/2023,"2,000.00"
95655250,Youth Offending,"Children, Families and Community Health Services",YJS - Effective Practise,Employees,Temporary / Agency - by Accounts Payable,REDACTED PERSONAL DATA,BS1 ,19/07/2023,"2,500.00"
95603233,Social Care,"Children, Families and Community Health Services",Childrens Homefinding Team,Employees,Temporary / Agency - by Accounts Payable,REDACTED PERSONAL DATA,BS1 ,17/07/2023,"5,000.00"
96771233,Social Care,"Children, Families and Community Health Services",Childrens Homefinding Team,Employees,Temporary / Agency - by Accounts Payable,REDACTED PERSONAL DATA,BS1 ,26/07/2023,"3,125.00"
96253233,Social Care,"Children, Families and Community Health Services",Childrens Homefinding Team,Employees,Temporary / Agency - by Accounts Payable,REDACTED PERSONAL DATA,BS1 ,21/07/2023,"3,125.00"
95604233,Social Care,"Children, Families and Community Health Services",Childrens Homefinding Team,Employees,Temporary / Agency - by Accounts Payable,REDACTED PERSONAL DATA,BS1 ,17/07/2023,"2,500.00"
95592233,Social Care,"Children, Families and Community Health Services",Childrens Homefinding Team,Employees,Temporary / Agency - by Accounts Payable,REDACTED PERSONAL DATA,BS1 ,21/07/2023,"2,500.00"
95930233,Licencing,Regulatory Services,Taxis & Private Hire,Supplies and Services,Testing / Inspection,BANSAL MOTORS,SN2 ,19/07/2023,"5,800.00"
94086233,Social Care,"Children, Families and Community Health Services",Children's Resource and Home Finding Team,3rd Party Payments,Independent Fostering Agency Placements,BANYA FAMILY PLACEMENT AGENCY LIMITED,SE24,07/07/2023,"2,489.00"
94085234,Social Care,"Children, Families and Community Health Services",Children's Resource and Home Finding Team,3rd Party Payments,Independent Fostering Agency Placements,BANYA FAMILY PLACEMENT AGENCY LIMITED,SE24,07/07/2023,"2,489.00"
97349707,Physical Support,Adults,Physical Support 65 and over,Transfer Payments,Personal Budget - Direct Payments - Domiciliary Care,REDACTED PERSONAL DATA,2969,31/07/2023,864.26
94972245,Early Years Block,DSG Skills and Attainment,Free Nursery Education Commissioning - three & four  year olds,3rd Party Payments,Contracts - Child Care,BARN OWL PRE-SCHOOL,SN25,12/07/2023,873.60
94972244,Early Years Block,DSG Skills and Attainment,Free Nursery Education Commissioning - three & four  year olds,3rd Party Payments,Contracts - Child Care,BARN OWL PRE-SCHOOL,SN25,12/07/2023,"8,418.63"
95435233,Libraries,"Education, Inclusion and Skills",Library Shop,Supplies and Services,Goods for resale,BARNES COACHES LTD,SN3 ,14/07/2023,924.46
94014233,School Transport,"Education, Inclusion and Skills",Mainstream School Transport,Employees,Temporary / Agency - by Accounts Payable,BARNES COACHES LTD,SN3 ,07/07/2023,747.20
94014233,School Transport,"Education, Inclusion and Skills",Mainstream School Transport,Transport Costs,Home to School Transport,BARNES COACHES LTD,SN3 ,07/07/2023,"9,960.00"
96507234,Property Management,Property,Property Assets,Supplies and Services,Fees,BATES WELLS & BRAITHWAITE LONDON LLP,EC4R,24/07/2023,"1,000.00"
96976233,Town Centre,"Economy, Growth and Place",Carriage Works Phase 3,Capital,Professional Fees,BBA ARCHITECTS LTD,BA2 ,28/07/2023,"1,650.00"
95156233,Social Care,"Children, Families and Community Health Services",Childrens Homefinding Team,Supplies and Services,Fees,BCP COUNCIL,BH2 ,14/07/2023,"3,366.32"
95101233,Schools - Primary,DSG Skills and Attainment,Primary School Budgets,3rd Party Payments,Mainstream Delegated Funding,BEECHCROFT INFANT SCHOOL,SN2 ,14/07/2023,"96,892.00"
95416263,High Needs Block,DSG Skills and Attainment,SEN Resourcing Assessment Panel,3rd Party Payments,Top up funding - Maintained providers Pre 16,BEECHCROFT INFANT SCHOOL,SN2 ,14/07/2023,"2,615.09"
95120235,DSG Other Funding,DSG Skills and Attainment,DFE Additional Grants,3rd Party Payments,Payment of Pupil Premium to school,BEECHCROFT INFANT SCHOOL,SN2 ,14/07/2023,"8,389.00"
95316233,Learning Disabilities,Adults,Learning Disability 18 - 64,Income,Client Contribution - Residential,BEECHWOOD COURT LTD,CF10,14/07/2023,-403.20
95316233,Learning Disabilities,Adults,Learning Disability 18 - 64,3rd Party Payments,Residential Care,BEECHWOOD COURT LTD,CF10,14/07/2023,"37,434.80"
95316233,Learning Disabilities,Adults,Learning Disability 18 - 64,3rd Party Payments,Residential Care,BEECHWOOD COURT LTD,CF10,14/07/2023,"26,038.20"
95450244,Social Care,"Children, Families and Community Health Services",Children's Resource and Home Finding Team,3rd Party Payments,Residential Care,BENJAMIN UK LIMITED,LU7 ,17/07/2023,"17,692.01"
95450243,Social Care,"Children, Families and Community Health Services",Children's Resource and Home Finding Team,3rd Party Payments,Residential Care,BENJAMIN UK LIMITED,LU7 ,17/07/2023,"17,692.01"
95450245,Social Care,"Children, Families and Community Health Services",Children's Resource and Home Finding Team,3rd Party Payments,Residential Care,BENJAMIN UK LIMITED,LU7 ,17/07/2023,"17,692.01"
93528233,Highways & Transport,Highways & Transport,Drainage,Supplies and Services,Repairs & Maintenance,BERNARD GEOMATICS LTD,SN2 ,05/07/2023,"1,609.00"
95728233,Town Centre,"Economy, Growth and Place",HAZ Streets and spaces,Capital,Professional Fees,BERNARD GEOMATICS LTD,SN2 ,19/07/2023,"9,398.00"
95168233,Care Management & Safeguarding,Adults,Swindon Safeguarding Partnershiph,Supplies and Services,Fees,BEVAN BRITTAN,BS2 ,14/07/2023,"1,100.00"
94949233,Libraries,"Education, Inclusion and Skills",Central,Premises Costs,Waste,BIFFA WASTE SERVICES LTD,HP12,12/07/2023,476.40
93496234,Revenues & Benefits,Revenues & Benefits,Swindon Emergency Assistance Fund,Supplies and Services,Food,BIG BREAKFAST PLUS,SN1 ,03/07/2023,"5,000.00"
93716233,Sheltered Accomodation,Special Services,Sheltered Housing Management General,Premises Costs,Contract Cleaning,BIOVATION LTD,SN1 ,05/07/2023,459.73
93715234,Sheltered Accomodation,Special Services,Sheltered Housing Management General,Premises Costs,Contract Cleaning,BIOVATION LTD,SN1 ,05/07/2023,"1,580.97"
95093233,Schools - Primary,DSG Skills and Attainment,Primary School Budgets,3rd Party Payments,Mainstream Delegated Funding,BISHOPSTONE C E PRIMARY SCHOOL,SN6 ,14/07/2023,"27,037.00"
95114233,DSG Other Funding,DSG Skills and Attainment,DFE Additional Grants,3rd Party Payments,Payment of Pupil Premium to school,BISHOPSTONE C E PRIMARY SCHOOL,SN6 ,14/07/2023,"1,660.00"
Corporate Card Transaction,Social Care,"Children, Families and Community Health Services",Placement - Care Leaver Team,Supplies and Services,Materials,Bkg*hotel At Booking.C,,20/07/2023,"2,330.22"
Corporate Card Transaction,Social Care,"Children, Families and Community Health Services",Placement - Care Leaver Team,Supplies and Services,Materials,Bkg*hotel At Booking.C,,14/07/2023,"2,398.18"
Corporate Card Transaction,Social Care,"Children, Families and Community Health Services",Looked After Children Service,3rd Party Payments,Personal Needs,Bkg*hotel At Booking.C,,07/07/2023,997.92,,, ,
Corporate Card Transaction,Social Care,"Children, Families and Community Health Services",Looked After Children Service,3rd Party Payments,Personal Needs,Bkg*hotel At Booking.C,,03/07/2023,"1,264.17"
Corporate Card Transaction,Homelessness and Travellers,Housing Services,Bed and Breakfast Accommodation,Transfer Payments,Payment of Costs,Bkg*hotel At Booking.C,,29/06/2023,711.93
94726233,Streetsmart,Streetsmart,Waterside Fleet Hires,Transport Costs,Vehicle Hire / Contract,BLAKEDALE LTD,PR7 ,12/07/2023,802.50,, ,,
94671236,Landscaping & Open Space,Culture & Heritage & Art,Moredon Recreation - Multi Sports Hub,Capital,Contractor Payments,BLB KILMINSTER BEER LLP,SN1 ,12/07/2023,"12,315.00"
95205233,Homelessness and Travellers,Housing Services,Private Sector Landlords,Transfer Payments,Payment of Costs,BLOCK 3 STUDIO,SN1 ,14/07/2023,"1,100.00"
94178248,Social Care,"Children, Families and Community Health Services",Children's Resource and Home Finding Team,3rd Party Payments,Independent Fostering Agency Placements,BLUE SKY,HA1 ,10/07/2023,"5,742.60"
94846233,Social Care,"Children, Families and Community Health Services",Children's Resource and Home Finding Team,3rd Party Payments,Independent Fostering Agency Placements,BLUE SKY,HA1 ,12/07/2023,"6,248.40"
94844233,Social Care,"Children, Families and Community Health Services",Children's Resource and Home Finding Team,3rd Party Payments,Independent Fostering Agency Placements,BLUE SKY,HA1 ,12/07/2023,"6,300.00"
94845233,Social Care,"Children, Families and Community Health Services",Children's Resource and Home Finding Team,3rd Party Payments,Independent Fostering Agency Placements,BLUE SKY,HA1 ,12/07/2023,"6,248.40"
95148237,Physical Support,Adults,Physical Support 65 and over,3rd Party Payments,Carers,BLUEBIRD CARE (SWINDON),SN25,14/07/2023,890.56
94682250,Physical Support,Adults,Physical Support 18 - 64,3rd Party Payments,Personal Budget - Domiciliary care,BLUEBIRD CARE (SWINDON),SN25,12/07/2023,"1,234.64"
94682246,Learning Disabilities,Adults,Learning Disability 18 - 64,3rd Party Payments,Personal Budget - Domiciliary care,BLUEBIRD CARE (SWINDON),SN25,12/07/2023,"1,416.80"
95665235,Learning Disabilities,Adults,Learning Disability 18 - 64,3rd Party Payments,Personal Budget - Domiciliary care,BLUEBIRD CARE (SWINDON),SN25,19/07/2023,"1,234.64"
94682249,Learning Disabilities,Adults,Learning Disability 18 - 64,3rd Party Payments,Personal Budget - Domiciliary care,BLUEBIRD CARE (SWINDON),SN25,12/07/2023,"1,052.48"
94682251,Physical Support,Adults,Physical Support 65 and over,3rd Party Payments,Personal Budget - Domiciliary care,BLUEBIRD CARE (SWINDON),SN25,12/07/2023,"2,170.74"
94682253,Learning Disabilities,Adults,Learning Disability 18 - 64,3rd Party Payments,Personal Budget - Domiciliary care,BLUEBIRD CARE (SWINDON),SN25,12/07/2023,536.36
94682252,Learning Disabilities,Adults,Learning Disability 18 - 64,3rd Party Payments,Personal Budget - Domiciliary care,BLUEBIRD CARE (SWINDON),SN25,12/07/2023,"1,396.56"
95810233,Children's Community Health,Community Health,Public Health 0 - 5 years,Supplies and Services,Equipment,BLUNSDON HOUSE HOTEL LTD,SN26,19/07/2023,995.00
94972247,Early Years Block,DSG Skills and Attainment,Free Nursery Education Commissioning - three & four  year olds,3rd Party Payments,Contracts - Child Care,REDACTED PERSONAL DATA,SN3 ,12/07/2023,567.84
94972246,Early Years Block,DSG Skills and Attainment,Free Nursery Education Commissioning - three & four  year olds,3rd Party Payments,Contracts - Child Care,REDACTED PERSONAL DATA,SN3 ,12/07/2023,"4,815.45"
95344233,Mental Health,Adults,Mental Health 65 and over,3rd Party Payments,Residential Care,BOLEALLER HOUSE LTD,EX15,14/07/2023,"6,624.75"
93696235,Libraries,"Education, Inclusion and Skills",Library Delivery,Supplies and Services,Materials,BOLINDA UK LTD,RG14,05/07/2023,437.04
93805233,Libraries,"Education, Inclusion and Skills",Library Delivery,Supplies and Services,Materials,BOLINDA UK LTD,RG14,05/07/2023,850.62
96503234,Physical Support,Adults,Fessey House,Supplies and Services,Food,BOOKER LIMITED,CH5 ,24/07/2023,668.23
94642233,Physical Support,Adults,Fessey House,Supplies and Services,Food,BOOKER LIMITED,CH5 ,12/07/2023,243.83
94642233,Physical Support,Adults,Fessey House,Supplies and Services,Food,BOOKER LIMITED,CH5 ,12/07/2023,414.00
95844234,Physical Support,Adults,Fessey House,Supplies and Services,Food,BOOKER LIMITED,CH5 ,19/07/2023,154.93
96503234,Physical Support,Adults,Fessey House,Supplies and Services,Food,BOOKER LIMITED,CH5 ,24/07/2023,61.41
96504233,Physical Support,Adults,Fessey House,Supplies and Services,Food,BOOKER LIMITED,CH5 ,24/07/2023,132.91
96504233,Physical Support,Adults,Fessey House,Supplies and Services,Food,BOOKER LIMITED,CH5 ,24/07/2023,780.13
95844234,Physical Support,Adults,Fessey House,Supplies and Services,Food,BOOKER LIMITED,CH5 ,19/07/2023,358.07
95283233,Physical Support,Adults,Physical Support 65 and over,3rd Party Payments,Nursing Care,BOTHWELLS LTD,HA6 ,14/07/2023,"4,666.50"
95283233,Physical Support,Adults,Physical Support 65 and over,3rd Party Payments,Nursing Care,BOTHWELLS LTD,HA6 ,14/07/2023,"4,088.45"
95283233,Physical Support,Adults,Physical Support 65 and over,3rd Party Payments,Nursing Care,BOTHWELLS LTD,HA6 ,14/07/2023,"-5,619.24"
95283233,Physical Support,Adults,Physical Support 65 and over,3rd Party Payments,Nursing Care,BOTHWELLS LTD,HA6 ,14/07/2023,"5,818.55"
95283233,Physical Support,Adults,Physical Support 65 and over,3rd Party Payments,Nursing Care,BOTHWELLS LTD,HA6 ,14/07/2023,"4,682.70"
95283233,Physical Support,Adults,Physical Support 65 and over,3rd Party Payments,Nursing Care,BOTHWELLS LTD,HA6 ,14/07/2023,"3,584.15"
95283233,Physical Support,Adults,Physical Support 18 - 64,Income,Client Contribution - Nursing,BOTHWELLS LTD,HA6 ,14/07/2023,547.34
95283233,Physical Support,Adults,Physical Support 65 and over,Income,Client Contribution - Nursing,BOTHWELLS LTD,HA6 ,14/07/2023,-761.00
95283233,Physical Support,Adults,Physical Support 65 and over,Income,Client Contribution - Nursing,BOTHWELLS LTD,HA6 ,14/07/2023,"-2,703.63"
95283233,Physical Support,Adults,Physical Support 65 and over,Income,Client Contribution - Nursing,BOTHWELLS LTD,HA6 ,14/07/2023,-973.75
95283233,Physical Support,Adults,Physical Support 65 and over,3rd Party Payments,Nursing Care,BOTHWELLS LTD,HA6 ,14/07/2023,"-3,788.96"
95283233,Physical Support,Adults,Physical Support 18 - 64,Income,Client Contribution - Nursing,BOTHWELLS LTD,HA6 ,14/07/2023,29.59
95283233,Physical Support,Adults,Physical Support 65 and over,Income,Client Contribution - Nursing,BOTHWELLS LTD,HA6 ,14/07/2023,-824.75
95283233,Physical Support,Adults,Physical Support 65 and over,Income,Client Contribution - Nursing,BOTHWELLS LTD,HA6 ,14/07/2023,"-1,478.55"
95283233,Physical Support,Adults,Physical Support 18 - 64,3rd Party Payments,Nursing Care,BOTHWELLS LTD,HA6 ,14/07/2023,"3,584.15"
95283233,Physical Support,Adults,Physical Support 65 and over,Income,Client Contribution - Nursing,BOTHWELLS LTD,HA6 ,14/07/2023,"-1,136.45"
95283233,Physical Support,Adults,Physical Support 18 - 64,Income,Client Contribution - Nursing,BOTHWELLS LTD,HA6 ,14/07/2023,-532.00
95283233,Physical Support,Adults,Physical Support 65 and over,Income,Client Contribution - Nursing,BOTHWELLS LTD,HA6 ,14/07/2023,-976.75
95283233,Physical Support,Adults,Physical Support 65 and over,Income,Client Contribution - Nursing,BOTHWELLS LTD,HA6 ,14/07/2023,"1,579.89"
96792233,Responsive Repairs,Repairs,Responsive Repairs,3rd Party Payments,Contract Payments,BOUNDARY SCAFFOLDING LTD,SN6 ,26/07/2023,"1,552.00"
94947239,Responsive Repairs,Repairs,Responsive Repairs,3rd Party Payments,Contract Payments,BOUNDARY SCAFFOLDING LTD,SN6 ,12/07/2023,580.00
96076233,Responsive Repairs,Repairs,Responsive Repairs,3rd Party Payments,Contract Payments,BOUNDARY SCAFFOLDING LTD,SN6 ,21/07/2023,680.00
96782233,Responsive Repairs,Repairs,Responsive Repairs,3rd Party Payments,Contract Payments,BOUNDARY SCAFFOLDING LTD,SN6 ,26/07/2023,72.00
95976233,Responsive Repairs,Repairs,Responsive Repairs,3rd Party Payments,Contract Payments,BOUNDARY SCAFFOLDING LTD,SN6 ,21/07/2023,660.00
95984233,Responsive Repairs,Repairs,Responsive Repairs,3rd Party Payments,Contract Payments,BOUNDARY SCAFFOLDING LTD,SN6 ,21/07/2023,430.00
95981233,Responsive Repairs,Repairs,Responsive Repairs,3rd Party Payments,Contract Payments,BOUNDARY SCAFFOLDING LTD,SN6 ,21/07/2023,"1,080.00"
95986233,Responsive Repairs,Repairs,Responsive Repairs,3rd Party Payments,Contract Payments,BOUNDARY SCAFFOLDING LTD,SN6 ,21/07/2023,660.00
95979233,Responsive Repairs,Repairs,Responsive Repairs,3rd Party Payments,Contract Payments,BOUNDARY SCAFFOLDING LTD,SN6 ,21/07/2023,"1,920.00"
96790233,Responsive Repairs,Repairs,Responsive Repairs,3rd Party Payments,Contract Payments,BOUNDARY SCAFFOLDING LTD,SN6 ,26/07/2023,"3,960.00"
95982233,Responsive Repairs,Repairs,Responsive Repairs,3rd Party Payments,Contract Payments,BOUNDARY SCAFFOLDING LTD,SN6 ,21/07/2023,920.00
95980233,Responsive Repairs,Repairs,Responsive Repairs,3rd Party Payments,Contract Payments,BOUNDARY SCAFFOLDING LTD,SN6 ,21/07/2023,780.00
95975233,Responsive Repairs,Repairs,Responsive Repairs,3rd Party Payments,Contract Payments,BOUNDARY SCAFFOLDING LTD,SN6 ,21/07/2023,720.00
95985233,Responsive Repairs,Repairs,Responsive Repairs,3rd Party Payments,Contract Payments,BOUNDARY SCAFFOLDING LTD,SN6 ,21/07/2023,890.00
96782233,Responsive Repairs,Repairs,Responsive Repairs,3rd Party Payments,Contract Payments,BOUNDARY SCAFFOLDING LTD,SN6 ,26/07/2023,288.00
95978233,Responsive Repairs,Repairs,Responsive Repairs,3rd Party Payments,Contract Payments,BOUNDARY SCAFFOLDING LTD,SN6 ,21/07/2023,"2,280.00"
96791233,Responsive Repairs,Repairs,Responsive Repairs,3rd Party Payments,Contract Payments,BOUNDARY SCAFFOLDING LTD,SN6 ,26/07/2023,"2,800.00"
95977233,Responsive Repairs,Repairs,Responsive Repairs,3rd Party Payments,Contract Payments,BOUNDARY SCAFFOLDING LTD,SN6 ,21/07/2023,890.00
96535233,Early Help,Early Intervention & Prevention,"Holiday, Activities & Food Grant",3rd Party Payments,Contracts - Child Care,BRAMBLE HOUSE DAY NURSERY LTD,SN2 ,26/07/2023,"1,728.00"
95649238,Early Years Block,DSG Skills and Attainment,Free Nursery Education Commissioning - three & four  year olds,3rd Party Payments,Contracts - Child Care,BRAMBLE HOUSE DAY NURSERY LTD,SN2 ,19/07/2023,"1,656.00"
94972249,Early Years Block,DSG Skills and Attainment,Free Nursery Education Commissioning - three & four  year olds,3rd Party Payments,Contracts - Child Care,BRAMBLE HOUSE DAY NURSERY LTD,SN2 ,12/07/2023,"4,004.86"
95648235,Early Years Block,DSG Skills and Attainment,Free Nursery Education Commissioning - three & four  year olds,3rd Party Payments,Contracts - Child Care,BRAMBLE HOUSE DAY NURSERY LTD,SN2 ,19/07/2023,"3,135.00"
94972248,Early Years Block,DSG Skills and Attainment,Free Nursery Education Commissioning - two year olds,3rd Party Payments,Contracts - Child Care,BRAMBLE HOUSE DAY NURSERY LTD,SN2 ,12/07/2023,"3,264.25"
95702236,High Needs Block,DSG Skills and Attainment,SEN Resourcing Assessment Panel,3rd Party Payments,Top up funding - Maintained providers Pre 16,BRAMBLE HOUSE DAY NURSERY LTD,SN2 ,19/07/2023,900.00
94972250,Early Years Block,DSG Skills and Attainment,Free Nursery Education Commissioning - three & four  year olds,3rd Party Payments,Contracts - Child Care,BRAMBLE HOUSE DAY NURSERY LTD,SN2 ,12/07/2023,811.20
94855233,Social Care,"Children, Families and Community Health Services",Children's Resource and Home Finding Team,3rd Party Payments,Residential Care,BRANAS ISAF LIMITED,EN6 ,12/07/2023,"24,578.66"
96497233,Libraries,"Education, Inclusion and Skills",Library Delivery,Supplies and Services,Materials,BRIDGEALL LIBRARIES LTD,G2 5,24/07/2023,-325.66
96497233,Libraries,"Education, Inclusion and Skills",Library Delivery,Supplies and Services,Materials,BRIDGEALL LIBRARIES LTD,G2 5,24/07/2023,"8,000.00"
96267246,Facilities Management,"People, Culture and Organisational Resilience",Office Accommodation,Premises Costs,Maintenance - Buildings,BRISTOL FIRE,BS37,21/07/2023,257.00
96267244,Property Management,Property,Corporate Repairs & Maintenance Programme,Premises Costs,Maintenance - Buildings,BRISTOL FIRE,BS37,21/07/2023,425.00
93402235,Other Repairs,Repairs,Unallocated job costs from OPEN system,3rd Party Payments,Contract Payments,BRISTOL FIRE,BS37,03/07/2023,575.70
96267246,Property Service Charged Properties,Property,Service Charged - Theatre Square,Premises Costs,Maintenance - Buildings,BRISTOL FIRE,BS37,21/07/2023,257.00
95466233,Highways Schemes,Strategic Planning and Highways,Mead Way Junction Improvements,Capital,Contractor Payments,BRITANNIA CONSTRUCTION LTD,CF72,17/07/2023,"-56,476.20"
95466233,Highways Schemes,Strategic Planning and Highways,Mead Way Junction Improvements,Capital,Contractor Payments,BRITANNIA CONSTRUCTION LTD,CF72,17/07/2023,"112,059.30"
96102233,Homelessness and Travellers,Housing Services,ASC Rental Properties (Rosebury Court),Premises Costs,Electricity,BRITISH GAS TRADING LTD,SL4 ,21/07/2023,485.70
93881233,Revenues & Benefits,Revenues & Benefits,Swindon Emergency Assistance Fund,Supplies and Services,Materials,BRITISH HEART FOUNDATION,NW1 ,07/07/2023,674.00
Corporate Card Transaction,Homelessness and Travellers,Housing Services,Warm Welcome Project,Supplies and Services,Equipment,British Heart Foundation,,03/07/2023,"2,000.00"
Corporate Card Transaction,Homelessness and Travellers,Housing Services,Warm Welcome Project,Supplies and Services,Equipment,British Heart Foundation,,03/07/2023,583.00
Corporate Card Transaction,Homelessness and Travellers,Housing Services,Warm Welcome Project,Supplies and Services,Equipment,British Heart Foundation,,03/07/2023,"2,000.00"
95987233,,,Balance Sheet,Balance Sheet & Recharge,British Telecom invoices,BRITISH TELECOMMUNICATIONS PLC,NE82,19/07/2023,"21,786.94"
97628233,Corporate,Corporate Finance,Corporate Financial Management,Supplies and Services,Fees,BROADSTONE CONSULTANTS & ACTUARIES LTD,BS1 ,31/07/2023,"5,131.25"
97630233,Corporate,Corporate Finance,Corporate Financial Management,Supplies and Services,Fees,BROADSTONE CONSULTANTS & ACTUARIES LTD,BS1 ,31/07/2023,"9,402.50"
97025233,Property Management,Property,Corporate Repairs & Maintenance Programme,Premises Costs,Maintenance - Buildings,BROADWATER TECHNOLOGIES LTD,BS37,28/07/2023,575.00
93322233,Public Health,Public Health,DAAT,3rd Party Payments,Contract Payments,BROADWAY LODGE LTD,BS24,03/07/2023,"4,400.00"
95815233,Public Health,Public Health,DAAT,3rd Party Payments,Contract Payments,BROADWAY LODGE LTD,BS24,19/07/2023,"2,200.00"
96852249,Highways Inspections & Maintenance,Highway Operations and Car Parking,Highway Maintenance,Supplies and Services,Materials,BROXAP LTD,ST5 ,26/07/2023,196.00
96852249,Highways Inspections & Maintenance,Highway Operations and Car Parking,Highway Maintenance,Supplies and Services,Materials,BROXAP LTD,ST5 ,26/07/2023,160.00
96852249,Highways Inspections & Maintenance,Highway Operations and Car Parking,Highway Maintenance,Supplies and Services,Materials,BROXAP LTD,ST5 ,26/07/2023,115.00
95040233,Disabled Children,"Children, Families and Community Health Services",DCT Daytime Short Breaks,3rd Party Payments,Day Care,BRUNEL EDUCATION,SN25,14/07/2023,748.00
95729233,Disabled Children,"Children, Families and Community Health Services",DCT Daytime Short Breaks,3rd Party Payments,Day Care,BRUNEL EDUCATION,SN25,19/07/2023,660.00
95721234,Disabled Children,"Children, Families and Community Health Services",DCT Daytime Short Breaks,3rd Party Payments,Day Care,BRUNEL EDUCATION,SN25,19/07/2023,528.00
95730235,Disabled Children,"Children, Families and Community Health Services",DCT Daytime Short Breaks,3rd Party Payments,Day Care,BRUNEL EDUCATION,SN25,19/07/2023,924.00
95731234,Disabled Children,"Children, Families and Community Health Services",DCT Daytime Short Breaks,3rd Party Payments,Day Care,BRUNEL EDUCATION,SN25,19/07/2023,924.00
95036233,Disabled Children,"Children, Families and Community Health Services",DCT Daytime Short Breaks,3rd Party Payments,Day Care,BRUNEL EDUCATION,SN25,14/07/2023,682.00
95035233,Disabled Children,"Children, Families and Community Health Services",DCT Daytime Short Breaks,3rd Party Payments,Day Care,BRUNEL EDUCATION,SN25,14/07/2023,528.00
95416319,High Needs Block,DSG Skills and Attainment,SEN Resourcing Assessment Panel,3rd Party Payments,Top up funding - Academies and Free Schools Pre 16,BRUNEL EDUCATION,SN25,14/07/2023,"12,431.81"
95733233,Disabled Children,"Children, Families and Community Health Services",DCT Daytime Short Breaks,3rd Party Payments,Day Care,BRUNEL EDUCATION,SN25,19/07/2023,748.00
95395233,Disabled Children,"Children, Families and Community Health Services",Aiming High for Disabled Children,Supplies and Services,Services,BRUNEL EDUCATION,SN25,14/07/2023,"1,775.20"
95416355,High Needs Block,DSG Skills and Attainment,Post 16 - New Responsibilties,3rd Party Payments,Independent Service Provider- Post 16,BRUNEL EDUCATION,SN25,14/07/2023,"112,221.50"
95722234,Disabled Children,"Children, Families and Community Health Services",DCT Daytime Short Breaks,3rd Party Payments,Day Care,BRUNEL EDUCATION,SN25,19/07/2023,"1,100.00"
96499233,Disabled Children,"Children, Families and Community Health Services",Aiming High for Disabled Children,Supplies and Services,Services,BRUNEL EDUCATION,SN25,24/07/2023,"2,104.80"
95044233,Disabled Children,"Children, Families and Community Health Services",DCT Daytime Short Breaks,3rd Party Payments,Day Care,BRUNEL EDUCATION,SN25,14/07/2023,528.00
96845235,Disabled Children,"Children, Families and Community Health Services",DCT Daytime Short Breaks,3rd Party Payments,Day Care,BRUNEL EDUCATION,SN25,26/07/2023,792.00
95416340,High Needs Block,DSG Skills and Attainment,SEN Resourcing Assessment Panel,3rd Party Payments,Top up funding - Academies and Free Schools Pre 16,REDACTED PERSONAL DATA,SN25,14/07/2023,"9,249.73"
95416322,High Needs Block,DSG Skills and Attainment,SEN Resourcing Assessment Panel,3rd Party Payments,Top up funding - Academies and Free Schools Pre 16,REDACTED PERSONAL DATA,SN25,14/07/2023,"136,433.19"
95416344,High Needs Block,DSG Skills and Attainment,SEN Resourcing Assessment Panel,3rd Party Payments,Top up funding - Academies and Free Schools Pre 16,REDACTED PERSONAL DATA,SN25,14/07/2023,"19,016.66"
95416348,High Needs Block,DSG Skills and Attainment,SEN Resourcing Assessment Panel,3rd Party Payments,Top up funding - Academies and Free Schools Post 16,REDACTED PERSONAL DATA,SN25,14/07/2023,"49,927.43"
95416325,High Needs Block,DSG Skills and Attainment,SEN Resourcing Assessment Panel,3rd Party Payments,Top up funding - Academies and Free Schools Pre 16,REDACTED PERSONAL DATA,SN25,14/07/2023,"184,731.98"
95416345,High Needs Block,DSG Skills and Attainment,SEN Resourcing Assessment Panel,3rd Party Payments,Top up funding - Academies and Free Schools Pre 16,REDACTED PERSONAL DATA,SN25,14/07/2023,"21,422.08"
95416320,High Needs Block,DSG Skills and Attainment,SEN Resourcing Assessment Panel,3rd Party Payments,Top up funding - Academies and Free Schools Pre 16,REDACTED PERSONAL DATA,SN25,14/07/2023,"28,209.38"
95416318,High Needs Block,DSG Skills and Attainment,SEN Resourcing Assessment Panel,3rd Party Payments,Top up funding - Academies and Free Schools Pre 16,REDACTED PERSONAL DATA,SN25,14/07/2023,"117,559.99"
95952234,School Transport,"Education, Inclusion and Skills",Special Educational Needs Transport,Employees,Temporary / Agency - by Accounts Payable,REDACTED PERSONAL DATA,SN25,19/07/2023,"8,521.92"
94640238,Early Years Block,DSG Skills and Attainment,Free Nursery Education Commissioning - three & four  year olds,3rd Party Payments,Contracts - Child Care,REDACTED PERSONAL DATA,SN25,12/07/2023,"6,258.38"
95416303,High Needs Block,DSG Skills and Attainment,SEN Resourcing Assessment Panel,3rd Party Payments,Top up funding - Academies and Free Schools Pre 16,REDACTED PERSONAL DATA,SN25,14/07/2023,"2,132.08"
95416321,High Needs Block,DSG Skills and Attainment,SEN Resourcing Assessment Panel,3rd Party Payments,Top up funding - Academies and Free Schools Pre 16,REDACTED PERSONAL DATA,SN25,14/07/2023,"80,424.41"
95416333,High Needs Block,DSG Skills and Attainment,SEN Resourcing Assessment Panel,3rd Party Payments,Top up funding - Academies and Free Schools Pre 16,REDACTED PERSONAL DATA,SN25,14/07/2023,"29,070.81"
95126236,High Needs Block,DSG Skills and Attainment,Advisory Teacher Services,Supplies and Services,Payments to Educational Bodies,REDACTED PERSONAL DATA,SN25,14/07/2023,"11,325.00"
95126235,High Needs Block,DSG Skills and Attainment,Advisory Teacher Services,Supplies and Services,Payments to Educational Bodies,REDACTED PERSONAL DATA,SN25,14/07/2023,"7,250.00"
93652233,Landscaping & Open Space,Culture & Heritage & Art,Great Western Community Forest,Capital,Contractor Payments,BRUNEL SURVEYS LTD,CM20,05/07/2023,630.00
96263234,Streetsmart,Streetsmart,Waterside Depot Improvements,Capital,Contractor Payments,BRUNEL SURVEYS LTD,CM20,21/07/2023,"9,950.00"
97066233,NEV,"Economy, Growth and Place",Southern Connector Road,Capital,Compensation Payments,BRUTON KNOWLES,GL2 ,28/07/2023,"5,082.12"
93928233,NEV,"Economy, Growth and Place",Southern Connector Road,Capital,Consultants,BRUTON KNOWLES,GL2 ,07/07/2023,"3,363.20"
95574233,NEV,"Economy, Growth and Place",Southern Connector Road,Capital,Contractor Payments,BUCKINGHAM GROUP CONTRACTING LIMITED,MK18,26/07/2023,"778,798.46"
96505233,Town Centre,"Economy, Growth and Place",Economic Development,Supplies and Services,Subscriptions,BUCKINGHAMSHIRE COUNTY COUNCIL,HP19,24/07/2023,"32,160.00"
95347274,Physical Support,Adults,Physical Support 65 and over,3rd Party Payments,Residential Care,BUPA CARE HOME (ANS) LTD,LS5 ,14/07/2023,"5,500.00"
96773233,Disabled Revenue Codes,Disabled Codes 2,HR System,Employees,Temporary / Agency - by Accounts Payable,BURMAN HR,DT1 ,26/07/2023,"2,736.48"
96774233,Disabled Revenue Codes,Disabled Codes 2,HR System,Employees,Temporary / Agency - by Accounts Payable,BURMAN HR,DT1 ,26/07/2023,"1,714.86"
94885233,Disabled Revenue Codes,Disabled Codes 2,HR System,Employees,Temporary / Agency - by Accounts Payable,BURMAN HR,DT1 ,12/07/2023,"2,858.10"
96279233,Disabled Revenue Codes,Disabled Codes 2,HR System,Employees,Temporary / Agency - by Accounts Payable,BURMAN HR,DT1 ,21/07/2023,"2,554.05"
96242233,Disabled Revenue Codes,Disabled Codes 2,HR System,Employees,Temporary / Agency - by Accounts Payable,BURMAN HR,DT1 ,21/07/2023,"2,286.48"
96241234,Disabled Revenue Codes,Disabled Codes 2,HR System,Employees,Temporary / Agency - by Accounts Payable,BURMAN HR,DT1 ,21/07/2023,"2,207.43"
94539233,Early Years Block,DSG Skills and Attainment,Free Nursery Education Commissioning - two year olds,3rd Party Payments,Contracts - Child Care,"BUSY BEES, BROOME MANOR",SN3 ,12/07/2023,718.52
95702238,High Needs Block,DSG Skills and Attainment,SEN Resourcing Assessment Panel,3rd Party Payments,Top up funding - Maintained providers Pre 16,"BUSY BEES, BROOME MANOR",SN3 ,19/07/2023,624.00
94538233,Early Years Block,DSG Skills and Attainment,Free Nursery Education Commissioning - three & four  year olds,3rd Party Payments,Contracts - Child Care,"BUSY BEES, BROOME MANOR",SN3 ,12/07/2023,"15,379.88"
94540233,Early Years Block,DSG Skills and Attainment,Free Nursery Education Commissioning - two year olds,3rd Party Payments,Contracts - Child Care,"BUSY BEES, PEATMOOR",SN5 ,12/07/2023,718.52
95702239,High Needs Block,DSG Skills and Attainment,SEN Resourcing Assessment Panel,3rd Party Payments,Top up funding - Maintained providers Pre 16,"BUSY BEES, PEATMOOR",SN5 ,19/07/2023,624.00
94541233,Early Years Block,DSG Skills and Attainment,Free Nursery Education Commissioning - three & four  year olds,3rd Party Payments,Contracts - Child Care,"BUSY BEES, PEATMOOR",SN5 ,12/07/2023,"15,025.07"
94537233,Early Years Block,DSG Skills and Attainment,Free Nursery Education Commissioning - three & four  year olds,3rd Party Payments,Contracts - Child Care,"BUSY BEES, ST ANDREWS RIDGE",SN25,12/07/2023,"21,056.93"
94536233,Early Years Block,DSG Skills and Attainment,Free Nursery Education Commissioning - two year olds,3rd Party Payments,Contracts - Child Care,"BUSY BEES, ST ANDREWS RIDGE",SN25,12/07/2023,718.52
95299233,Learning Disabilities,Adults,Learning Disability 18 - 64,3rd Party Payments,Residential Care,C.H.O.I.C.E LTD,SO23,14/07/2023,"10,254.50"
95301233,Learning Disabilities,Adults,Learning Disability 65 and over,Income,Client Contribution - Residential,C.H.O.I.C.E LTD,RG12,14/07/2023,-799.00
95302233,Physical Support,Adults,Physical Support 18 - 64,3rd Party Payments,Residential Care,C.H.O.I.C.E LTD,RG12,14/07/2023,"4,381.20"
95302233,Learning Disabilities,Adults,Learning Disability 18 - 64,3rd Party Payments,Residential Care,C.H.O.I.C.E LTD,RG12,14/07/2023,"15,480.00"
95301233,Learning Disabilities,Adults,Learning Disability 18 - 64,Income,Client Contribution - Residential,C.H.O.I.C.E LTD,RG12,14/07/2023,-601.25
95300233,Learning Disabilities,Adults,Learning Disability 65 and over,Income,Client Contribution - Residential,C.H.O.I.C.E LTD,RG12,14/07/2023,-966.50
95300233,Learning Disabilities,Adults,Learning Disability 65 and over,Income,Client Contribution - Residential,C.H.O.I.C.E LTD,RG12,14/07/2023,-759.50
95302233,Physical Support,Adults,Physical Support 18 - 64,Income,Client Contribution - Residential,C.H.O.I.C.E LTD,RG12,14/07/2023,"1,701.18"
95301233,Learning Disabilities,Adults,Learning Disability 65 and over,3rd Party Payments,Residential Care,C.H.O.I.C.E LTD,RG12,14/07/2023,"12,975.20"
95302233,Learning Disabilities,Adults,Learning Disability 18 - 64,Income,Client Contribution - Residential,C.H.O.I.C.E LTD,RG12,14/07/2023,-345.75
95301233,Learning Disabilities,Adults,Learning Disability 18 - 64,Income,Client Contribution - Residential,C.H.O.I.C.E LTD,RG12,14/07/2023,-498.18
95301233,Learning Disabilities,Adults,Learning Disability 18 - 64,Income,Client Contribution - Residential,C.H.O.I.C.E LTD,RG12,14/07/2023,404.96
95302233,Physical Support,Adults,Physical Support 18 - 64,3rd Party Payments,Residential Care,C.H.O.I.C.E LTD,RG12,14/07/2023,"37,605.30"
95297233,Learning Disabilities,Adults,Learning Disability 18 - 64,Income,Client Contribution - Residential,C.H.O.I.C.E LTD,RG12,14/07/2023,-438.17
95302233,Physical Support,Adults,Physical Support 18 - 64,Income,Client Contribution - Residential,C.H.O.I.C.E LTD,RG12,14/07/2023,"-1,777.49"
95301233,Learning Disabilities,Adults,Learning Disability 65 and over,3rd Party Payments,Residential Care,C.H.O.I.C.E LTD,RG12,14/07/2023,"12,247.20"
95300233,Learning Disabilities,Adults,Learning Disability 65 and over,3rd Party Payments,Residential Care,C.H.O.I.C.E LTD,RG12,14/07/2023,"13,145.80"
95296233,Learning Disabilities,Adults,Learning Disability 18 - 64,3rd Party Payments,Residential Care,C.H.O.I.C.E LTD,RG12,14/07/2023,"16,800.00"
95302233,Learning Disabilities,Adults,Learning Disability 18 - 64,Income,Client Contribution - Residential,C.H.O.I.C.E LTD,RG12,14/07/2023,-568.50
95298233,Learning Disabilities,Adults,Learning Disability 18 - 64,Income,Client Contribution - Residential,C.H.O.I.C.E LTD,RG12,14/07/2023,-534.00
95302233,Physical Support,Adults,Physical Support 18 - 64,3rd Party Payments,Residential Care,C.H.O.I.C.E LTD,RG12,14/07/2023,"12,778.50"
95302233,Physical Support,Adults,Physical Support 18 - 64,Income,Client Contribution - Residential,C.H.O.I.C.E LTD,RG12,14/07/2023,-604.00
95301233,Learning Disabilities,Adults,Learning Disability 65 and over,Income,Client Contribution - Residential,C.H.O.I.C.E LTD,RG12,14/07/2023,-772.20
95302233,Learning Disabilities,Adults,Learning Disability 18 - 64,3rd Party Payments,Residential Care,C.H.O.I.C.E LTD,RG12,14/07/2023,"14,335.00"
95301233,Learning Disabilities,Adults,Learning Disability 18 - 64,3rd Party Payments,Residential Care,C.H.O.I.C.E LTD,RG12,14/07/2023,"12,359.20"
95298233,Learning Disabilities,Adults,Learning Disability 18 - 64,3rd Party Payments,Residential Care,C.H.O.I.C.E LTD,RG12,14/07/2023,"17,267.60"
95298233,Learning Disabilities,Adults,Learning Disability 18 - 64,Income,Client Contribution - Residential,C.H.O.I.C.E LTD,RG12,14/07/2023,444.64
95297233,Learning Disabilities,Adults,Learning Disability 18 - 64,Income,Client Contribution - Residential,C.H.O.I.C.E LTD,RG12,14/07/2023,362.57
95297233,Learning Disabilities,Adults,Learning Disability 18 - 64,Income,Client Contribution - Residential,C.H.O.I.C.E LTD,RG12,14/07/2023,-639.00
95302233,Physical Support,Adults,Physical Support 18 - 64,Income,Client Contribution - Residential,C.H.O.I.C.E LTD,RG12,14/07/2023,-188.06
95300233,Learning Disabilities,Adults,Learning Disability 65 and over,3rd Party Payments,Residential Care,C.H.O.I.C.E LTD,RG12,14/07/2023,"12,327.90"
95297233,Learning Disabilities,Adults,Learning Disability 18 - 64,3rd Party Payments,Residential Care,C.H.O.I.C.E LTD,RG12,14/07/2023,"11,240.00"
95296233,Learning Disabilities,Adults,Learning Disability 18 - 64,Income,Client Contribution - Residential,C.H.O.I.C.E LTD,RG12,14/07/2023,-372.75
95302233,Physical Support,Adults,Physical Support 18 - 64,3rd Party Payments,Residential Care,C.H.O.I.C.E LTD,RG12,14/07/2023,"-41,986.50"
95298233,Learning Disabilities,Adults,Learning Disability 18 - 64,Income,Client Contribution - Residential,C.H.O.I.C.E LTD,RG12,14/07/2023,-457.71
96341233,Social Care,"Children, Families and Community Health Services",Children's Resource and Home Finding Team,3rd Party Payments,Residential Care,CALCOT SERVICES FOR CHILDREN LTD,RG7 ,21/07/2023,"29,361.34"
96341234,Social Care,"Children, Families and Community Health Services",Children's Resource and Home Finding Team,3rd Party Payments,Residential Care,CALCOT SERVICES FOR CHILDREN LTD,RG7 ,21/07/2023,"29,892.68"
97349546,Learning Disabilities,Adults,Learning Disability 18 - 64,Transfer Payments,Personal Budget - Direct Payments - Domiciliary Care,REDACTED PERSONAL DATA,SP11,31/07/2023,"2,053.88"
97349647,Learning Disabilities,Adults,Learning Disability 18 - 64,Transfer Payments,Personal Budget - Direct Payments - Domiciliary Care,REDACTED PERSONAL DATA,SP11,31/07/2023,707.37
96344234,Social Care,"Children, Families and Community Health Services",Children's Resource and Home Finding Team,3rd Party Payments,Residential Care,CAMBIAN CHILDCARE LTD,EN6 ,21/07/2023,"26,274.67"
97349276,Physical Support,Adults,Physical Support 18 - 64,Transfer Payments,Personal Budget - Direct Payments - Domiciliary Care,REDACTED PERSONAL DATA,SN25,31/07/2023,940.61
95578233,Void Repairs,Supervision & Management,Void Property Repairs,3rd Party Payments,Contract Payments,CANTILLON GROUP LTD,SN25,17/07/2023,"9,802.47"
93859233,Planned Maintenance Programme,HRA Capital Financing,Kitchens,Capital,Contractor Payments,CANTILLON GROUP LTD,SN25,07/07/2023,"2,772.11"
95578233,Disabled Capital Codes,Disabled Codes 2,"Voids - Fencing, Concreting & Environmental Works",Capital,Contractor Payments,CANTILLON GROUP LTD,SN25,17/07/2023,"2,225.44"
93859233,Void Repairs,Supervision & Management,Void Property Repairs,3rd Party Payments,Contract Payments,CANTILLON GROUP LTD,SN25,07/07/2023,"4,324.32"
95578233,Planned Maintenance Programme,HRA Capital Financing,Bathrooms,Capital,Contractor Payments,CANTILLON GROUP LTD,SN25,17/07/2023,"1,758.44"
95578233,Planned Maintenance Programme,HRA Capital Financing,Kitchens,Capital,Contractor Payments,CANTILLON GROUP LTD,SN25,17/07/2023,"2,898.30"
93859233,Void Repairs,Supervision & Management,Void Property Repairs,3rd Party Payments,Contract Payments,CANTILLON GROUP LTD,SN25,07/07/2023,"7,024.05"
93859233,Void Repairs,Supervision & Management,Void Property Repairs,3rd Party Payments,Contract Payments,CANTILLON GROUP LTD,SN25,07/07/2023,"4,186.10"
95578233,Planned Maintenance Programme,HRA Capital Financing,Kitchens,Capital,Contractor Payments,CANTILLON GROUP LTD,SN25,17/07/2023,"3,920.53"
95578233,Void Repairs,Supervision & Management,Void Property Repairs,3rd Party Payments,Contract Payments,CANTILLON GROUP LTD,SN25,17/07/2023,239.19
95578233,Void Repairs,Supervision & Management,Void Property Repairs,3rd Party Payments,Contract Payments,CANTILLON GROUP LTD,SN25,17/07/2023,"4,998.37"
95578233,Void Repairs,Supervision & Management,Void Property Repairs,3rd Party Payments,Contract Payments,CANTILLON GROUP LTD,SN25,17/07/2023,"4,672.00"
95578233,Void Repairs,Supervision & Management,Void Property Repairs,3rd Party Payments,Contract Payments,CANTILLON GROUP LTD,SN25,17/07/2023,"3,150.72"
93859233,Void Repairs,Supervision & Management,Void Property Repairs,3rd Party Payments,Contract Payments,CANTILLON GROUP LTD,SN25,07/07/2023,"11,073.18"
93859233,Void Repairs,Supervision & Management,Void Property Repairs,3rd Party Payments,Contract Payments,CANTILLON GROUP LTD,SN25,07/07/2023,"5,481.58"
93859233,Planned Maintenance Programme,HRA Capital Financing,Kitchens,Capital,Contractor Payments,CANTILLON GROUP LTD,SN25,07/07/2023,"3,565.17"
95578233,Disabled Capital Codes,Disabled Codes 2,"Voids - Fencing, Concreting & Environmental Works",Capital,Contractor Payments,CANTILLON GROUP LTD,SN25,17/07/2023,"-30,000.00"
95578233,Disabled Capital Codes,Disabled Codes 2,"Voids - Fencing, Concreting & Environmental Works",Capital,Contractor Payments,CANTILLON GROUP LTD,SN25,17/07/2023,"30,000.00"
96959233,Other Repairs,Repairs,Cyclical Maintenance,Supplies and Services,Testing / Inspection,CANTILLON GROUP LTD,SN25,28/07/2023,455.32
95578233,Void Repairs,Supervision & Management,Void Property Repairs,3rd Party Payments,Contract Payments,CANTILLON GROUP LTD,SN25,17/07/2023,"3,125.14"
95578233,Void Repairs,Supervision & Management,Void Property Repairs,3rd Party Payments,Contract Payments,CANTILLON GROUP LTD,SN25,17/07/2023,"10,157.22"
93859233,Planned Maintenance Programme,HRA Capital Financing,Aids & Adaptations,Capital,Contractor Payments,CANTILLON GROUP LTD,SN25,07/07/2023,"-40,000.00"
93859233,Planned Maintenance Programme,HRA Capital Financing,Aids & Adaptations,Capital,Contractor Payments,CANTILLON GROUP LTD,SN25,07/07/2023,"40,000.00"
93859233,Planned Maintenance Programme,HRA Capital Financing,Aids & Adaptations,Capital,Contractor Payments,CANTILLON GROUP LTD,SN25,07/07/2023,254.11
95578233,Void Repairs,Supervision & Management,Void Property Repairs,3rd Party Payments,Contract Payments,CANTILLON GROUP LTD,SN25,17/07/2023,"7,496.16"
95578233,Void Repairs,Supervision & Management,Void Property Repairs,3rd Party Payments,Contract Payments,CANTILLON GROUP LTD,SN25,17/07/2023,"7,454.31"
93859233,Void Repairs,Supervision & Management,Void Property Repairs,3rd Party Payments,Contract Payments,CANTILLON GROUP LTD,SN25,07/07/2023,"12,813.52"
93859233,Planned Maintenance Programme,HRA Capital Financing,Bathrooms,Capital,Contractor Payments,CANTILLON GROUP LTD,SN25,07/07/2023,"2,911.42"
95578233,Void Repairs,Supervision & Management,Void Property Repairs,3rd Party Payments,Contract Payments,CANTILLON GROUP LTD,SN25,17/07/2023,"7,648.51"
93859233,Void Repairs,Supervision & Management,Void Property Repairs,3rd Party Payments,Contract Payments,CANTILLON GROUP LTD,SN25,07/07/2023,"3,310.49"
95578233,Void Repairs,Supervision & Management,Void Property Repairs,3rd Party Payments,Contract Payments,CANTILLON GROUP LTD,SN25,17/07/2023,"1,724.22"
93859233,Void Repairs,Supervision & Management,Void Property Repairs,3rd Party Payments,Contract Payments,CANTILLON GROUP LTD,SN25,07/07/2023,"10,938.10"
93859233,Planned Maintenance Programme,HRA Capital Financing,Aids & Adaptations,Capital,Contractor Payments,CANTILLON GROUP LTD,SN25,07/07/2023,"23,724.20"
96778233,Other Repairs,Repairs,Cyclical Maintenance,Supplies and Services,Testing / Inspection,CANTILLON GROUP LTD,SN25,26/07/2023,682.13
96461233,Revenues & Benefits,Revenues & Benefits,Benefits,3rd Party Payments,Strategic Partnership Service Charges,CAPITA BUSINESS SERVICES LTD,DL1 ,24/07/2023,"9,258.10"
96393233,Education,"Education, Inclusion and Skills",Premature Retirement and Redundancy Costs,Employees,Pension - Added Years,CAPITA PENSION SOLUTIONS LTD,EC2V,21/07/2023,"5,637.57"
96901233,Facilities Management,"People, Culture and Organisational Resilience",Office Accommodation,Premises Costs,Maintenance - Buildings,CAPITA WORKFORCE MANAGEMENT LTD,DL1 ,26/07/2023,"47,472.79"
95361234,NEV,"Economy, Growth and Place",Southern Connector Road,Capital,Consultants,CAPITAL CONSULTING INTERNATIONAL LIMITED,RH12,14/07/2023,"14,051.60"
96139237,Streetsmart,Streetsmart,Waterside Fleet Workshops,Supplies and Services,Materials,CAR AND TRUCK SERVICES (SWINDON) LTD,SN1 ,21/07/2023,462.90
95347263,Learning Disabilities,Adults,Learning Disability 18 - 64,3rd Party Payments,Supported Lodgings (Childrens)/Supported Living (Adults),CAREFORYOU LTD,N13 ,14/07/2023,"6,102.50"
95691235,Public Health,Public Health,Smoking & Tobacco,3rd Party Payments,Contract Payments,CARFAX HEALTH ENTERPRISE CIC,SN5 ,21/07/2023,510.00
96008233,Social Care,"Children, Families and Community Health Services",Children's Resource and Home Finding Team,3rd Party Payments,Care Packages,CARING FOR COMMUNITIES AND PEOPLE (CCP),GL50,19/07/2023,"1,809.55"
94272233,Disabled Children,"Children, Families and Community Health Services",DCT Daytime Short Breaks,3rd Party Payments,Respite Care,CARING FOR COMMUNITIES AND PEOPLE (CCP),GL50,10/07/2023,615.80
93719233,Disabled Children,"Children, Families and Community Health Services",DCT Daytime Short Breaks,3rd Party Payments,Respite Care,CARING FOR COMMUNITIES AND PEOPLE (CCP),GL50,05/07/2023,923.70
93718233,Disabled Children,"Children, Families and Community Health Services",DCT Daytime Short Breaks,3rd Party Payments,Respite Care,CARING FOR COMMUNITIES AND PEOPLE (CCP),GL50,05/07/2023,641.10
95016245,Physical Support,Adults,Physical Support 18 - 64,3rd Party Payments,Personal Budget - Domiciliary care,CARING HEART CARERS LIMITED,SN25,12/07/2023,"1,290.24"
93698267,Physical Support,Adults,Physical Support 65 and over,3rd Party Payments,Personal Budget - Domiciliary care,CARING HEART CARERS LIMITED,SN25,05/07/2023,"1,077.12"
97349334,Learning Disabilities,Adults,Learning Disability 18 - 64,Transfer Payments,Personal Budget - Direct Payments - Domiciliary Care,REDACTED PERSONAL DATA,SN2 ,31/07/2023,"2,640.28"
97349592,Physical Support,Adults,Physical Support 65 and over,3rd Party Payments,Carers,REDACTED PERSONAL DATA,SP11,31/07/2023,591.27
95416235,High Needs Block,DSG Skills and Attainment,SEN Resourcing Assessment Panel,Supplies and Services,Services,REDACTED PERSONAL DATA,SN3 ,14/07/2023,"1,557.82"
97349594,Learning Disabilities,Adults,Learning Disability 18 - 64,Transfer Payments,Personal Budget - Direct Payments - Domiciliary Care,REDACTED PERSONAL DATA,SN2 ,31/07/2023,"1,572.42"
97349595,Learning Disabilities,Adults,Learning Disability 18 - 64,Transfer Payments,Personal Budget - Direct Payments - Other,REDACTED PERSONAL DATA,SN2 ,31/07/2023,"2,840.89"
94542233,Early Years Block,DSG Skills and Attainment,Free Nursery Education Commissioning - three & four  year olds,3rd Party Payments,Contracts - Child Care,REDACTED PERSONAL DATA,SN3 ,12/07/2023,757.48
96852236,Responsive Repairs,Repairs,Responsive Repairs,3rd Party Payments,Contract Payments,CARPET WAREHOUSE SWINDON LTD,SN2 ,26/07/2023,708.45
96852241,Responsive Repairs,Repairs,Responsive Repairs,3rd Party Payments,Contract Payments,CARPET WAREHOUSE SWINDON LTD,SN2 ,26/07/2023,"1,278.30"
96267233,Responsive Repairs,Repairs,Responsive Repairs,3rd Party Payments,Contract Payments,CARPET WAREHOUSE SWINDON LTD,SN2 ,21/07/2023,762.20
95449237,Responsive Repairs,Repairs,Responsive Repairs,3rd Party Payments,Contract Payments,CARPET WAREHOUSE SWINDON LTD,SN2 ,17/07/2023,828.03
96267239,Responsive Repairs,Repairs,Responsive Repairs,3rd Party Payments,Contract Payments,CARPET WAREHOUSE SWINDON LTD,SN2 ,21/07/2023,793.16
96852234,Responsive Repairs,Repairs,Responsive Repairs,3rd Party Payments,Contract Payments,CARPET WAREHOUSE SWINDON LTD,SN2 ,26/07/2023,828.53
95449233,Responsive Repairs,Repairs,Responsive Repairs,3rd Party Payments,Contract Payments,CARPET WAREHOUSE SWINDON LTD,SN2 ,17/07/2023,961.95
96852242,Responsive Repairs,Repairs,Responsive Repairs,3rd Party Payments,Contract Payments,CARPET WAREHOUSE SWINDON LTD,SN2 ,26/07/2023,920.26
96852239,Responsive Repairs,Repairs,Responsive Repairs,3rd Party Payments,Contract Payments,CARPET WAREHOUSE SWINDON LTD,SN2 ,26/07/2023,"1,051.50"
96267237,Responsive Repairs,Repairs,Responsive Repairs,3rd Party Payments,Contract Payments,CARPET WAREHOUSE SWINDON LTD,SN2 ,21/07/2023,828.93
95449235,Responsive Repairs,Repairs,Responsive Repairs,3rd Party Payments,Contract Payments,CARPET WAREHOUSE SWINDON LTD,SN2 ,17/07/2023,842.32
95449236,Responsive Repairs,Repairs,Responsive Repairs,3rd Party Payments,Contract Payments,CARPET WAREHOUSE SWINDON LTD,SN2 ,17/07/2023,"1,070.00"
96267240,Responsive Repairs,Repairs,Responsive Repairs,3rd Party Payments,Contract Payments,CARPET WAREHOUSE SWINDON LTD,SN2 ,21/07/2023,838.84
96267242,Responsive Repairs,Repairs,Responsive Repairs,3rd Party Payments,Contract Payments,CARPET WAREHOUSE SWINDON LTD,SN2 ,21/07/2023,838.57
96852237,Responsive Repairs,Repairs,Responsive Repairs,3rd Party Payments,Contract Payments,CARPET WAREHOUSE SWINDON LTD,SN2 ,26/07/2023,941.14
96267235,Responsive Repairs,Repairs,Responsive Repairs,3rd Party Payments,Contract Payments,CARPET WAREHOUSE SWINDON LTD,SN2 ,21/07/2023,892.70
96852243,Responsive Repairs,Repairs,Responsive Repairs,3rd Party Payments,Contract Payments,CARPET WAREHOUSE SWINDON LTD,SN2 ,26/07/2023,997.42
96267238,Responsive Repairs,Repairs,Responsive Repairs,3rd Party Payments,Contract Payments,CARPET WAREHOUSE SWINDON LTD,SN2 ,21/07/2023,823.51
95449234,Responsive Repairs,Repairs,Responsive Repairs,3rd Party Payments,Contract Payments,CARPET WAREHOUSE SWINDON LTD,SN2 ,17/07/2023,801.20
96267241,Responsive Repairs,Repairs,Responsive Repairs,3rd Party Payments,Contract Payments,CARPET WAREHOUSE SWINDON LTD,SN2 ,21/07/2023,833.20
96266234,Responsive Repairs,Repairs,Responsive Repairs,3rd Party Payments,Contract Payments,CARPET WAREHOUSE SWINDON LTD,SN2 ,21/07/2023,833.55
96830238,Disabled Children,"Children, Families and Community Health Services",DCT Daytime Short Breaks,3rd Party Payments,Respite Care,CARTER BROWN LTD,B15 ,26/07/2023,"1,387.20"
95059233,Other Repairs,Repairs,Unallocated job costs from OPEN system,Premises Costs,Maintenance - Buildings,CARTER PUMPS LTD,SN10,14/07/2023,495.00
97349355,Learning Disabilities,Adults,Learning Disability 18 - 64,Transfer Payments,Personal Budget - Direct Payments - Domiciliary Care,REDACTED PERSONAL DATA,SN6 ,31/07/2023,"2,744.96"
96730237,Traded Services,"Education, Inclusion and Skills",Plas Pencelli Outdoor Education Centre,Supplies and Services,Materials,CASTELL HOWELL FOODS LIMITED,SA14,26/07/2023,"1,228.75"
93736233,Traded Services,"Education, Inclusion and Skills",Plas Pencelli Outdoor Education Centre,Supplies and Services,Materials,CASTELL HOWELL FOODS LIMITED,SA14,05/07/2023,"3,260.73"
96348233,Traded Services,"Education, Inclusion and Skills",Plas Pencelli Outdoor Education Centre,Supplies and Services,Materials,CASTELL HOWELL FOODS LIMITED,SA14,21/07/2023,250.71
96730237,Traded Services,"Education, Inclusion and Skills",Plas Pencelli Outdoor Education Centre,Supplies and Services,Materials,CASTELL HOWELL FOODS LIMITED,SA14,26/07/2023,188.37
95405233,Traded Services,"Education, Inclusion and Skills",Plas Pencelli Outdoor Education Centre,Supplies and Services,Materials,CASTELL HOWELL FOODS LIMITED,SA14,14/07/2023,489.41
96348233,Traded Services,"Education, Inclusion and Skills",Plas Pencelli Outdoor Education Centre,Supplies and Services,Materials,CASTELL HOWELL FOODS LIMITED,SA14,21/07/2023,866.39
93736233,Traded Services,"Education, Inclusion and Skills",Plas Pencelli Outdoor Education Centre,Supplies and Services,Materials,CASTELL HOWELL FOODS LIMITED,SA14,05/07/2023,565.61
95405233,Traded Services,"Education, Inclusion and Skills",Plas Pencelli Outdoor Education Centre,Supplies and Services,Materials,CASTELL HOWELL FOODS LIMITED,SA14,14/07/2023,"1,606.52"
96893233,Treasury,Corporate Finance,Private Finance Initiatives (PFI),Supplies and Services,Services,CASTLE GATE LEGAL & COMMERCIAL LTD,NG12,26/07/2023,"2,000.00"
95154233,Treasury,Corporate Finance,Private Finance Initiatives (PFI),Supplies and Services,Services,CASTLE GATE LEGAL & COMMERCIAL LTD,NG12,14/07/2023,"2,156.76"
70316233,,,Balance Sheet,Balance Sheet & Recharge,Water invoices,CASTLE WATER LTD,PH10,21/07/2023,688.75
90061233,,,Balance Sheet,Balance Sheet & Recharge,Water invoices,CASTLE WATER LTD,PH10,21/07/2023,"33,304.19"
71734233,,,Balance Sheet,Balance Sheet & Recharge,Water invoices,CASTLE WATER LTD,PH10,21/07/2023,"8,287.64"
76538233,,,Balance Sheet,Balance Sheet & Recharge,Water invoices,CASTLE WATER LTD,PH10,21/07/2023,"7,567.98"
81641235,,,Balance Sheet,Balance Sheet & Recharge,Water invoices,CASTLE WATER LTD,PH10,21/07/2023,"17,767.51"
87738233,,,Balance Sheet,Balance Sheet & Recharge,Water invoices,CASTLE WATER LTD,PH10,21/07/2023,"11,683.96"
96113233,,,Balance Sheet,Balance Sheet & Recharge,Water invoices,CASTLE WATER LTD,PH10,21/07/2023,"14,612.77"
81641235,,,Balance Sheet,Balance Sheet & Recharge,Water invoices,CASTLE WATER LTD,PH10,21/07/2023,413.25
90061233,,,Balance Sheet,Balance Sheet & Recharge,Water invoices,CASTLE WATER LTD,PH10,21/07/2023,408.50
70316233,,,Balance Sheet,Balance Sheet & Recharge,Water invoices,CASTLE WATER LTD,PH10,21/07/2023,"-101,253.34"
96113233,,,Balance Sheet,Balance Sheet & Recharge,Water invoices,CASTLE WATER LTD,PH10,21/07/2023,665.00
71736233,,,Balance Sheet,Balance Sheet & Recharge,Water invoices,CASTLE WATER LTD,PH10,21/07/2023,"6,947.15"
71734233,,,Balance Sheet,Balance Sheet & Recharge,Water invoices,CASTLE WATER LTD,PH10,21/07/2023,80.00
87738233,,,Balance Sheet,Balance Sheet & Recharge,Water invoices,CASTLE WATER LTD,PH10,21/07/2023,551.00
76538233,,,Balance Sheet,Balance Sheet & Recharge,Water invoices,CASTLE WATER LTD,PH10,21/07/2023,826.50
95270233,Learning Disabilities,Adults,Learning Disability 18 - 64,3rd Party Payments,Supported Lodgings (Childrens)/Supported Living (Adults),CATHEDRAL HOMES,GL1 ,14/07/2023,"2,906.25"
95270233,Learning Disabilities,Adults,Learning Disability 18 - 64,3rd Party Payments,Supported Lodgings (Childrens)/Supported Living (Adults),CATHEDRAL HOMES,GL1 ,14/07/2023,"5,578.15"
95270233,Learning Disabilities,Adults,Learning Disability 18 - 64,3rd Party Payments,Supported Lodgings (Childrens)/Supported Living (Adults),CATHEDRAL HOMES,GL1 ,14/07/2023,843.75
95270233,Learning Disabilities,Adults,Learning Disability 18 - 64,3rd Party Payments,Supported Lodgings (Childrens)/Supported Living (Adults),CATHEDRAL HOMES,GL1 ,14/07/2023,"4,031.25"
95270233,Learning Disabilities,Adults,Learning Disability 18 - 64,Income,Client Contribution - Supported Living,CATHEDRAL HOMES,GL1 ,14/07/2023,-517.75
95270233,Learning Disabilities,Adults,Learning Disability 18 - 64,3rd Party Payments,Supported Lodgings (Childrens)/Supported Living (Adults),CATHEDRAL HOMES,GL1 ,14/07/2023,"2,132.85"
95270233,Learning Disabilities,Adults,Learning Disability 18 - 64,Income,Client Contribution - Personal Budget - Fairer Charging,CATHEDRAL HOMES,GL1 ,14/07/2023,-227.00
97667233,Museums & Heritage,Culture & Heritage,Steam:Operations,3rd Party Payments,Contract Payments,CATHEDRAL LEASING LIMITED,B77 ,31/07/2023,"1,089.48"
96546233,Early Help,Early Intervention & Prevention,"Holiday, Activities & Food Grant",3rd Party Payments,Contracts - Child Care,REDACTED PERSONAL DATA,SN5 ,26/07/2023,"1,008.00"
94544233,Early Years Block,DSG Skills and Attainment,Free Nursery Education Commissioning - three & four  year olds,3rd Party Payments,Contracts - Child Care,REDACTED PERSONAL DATA,SN5 ,12/07/2023,573.16
95859233,Learning Disabilities,Adults,Learning Disability 18 - 64,3rd Party Payments,Supported Accommodation Scheme,REDACTED PERSONAL DATA,SN6 ,21/07/2023,"2,280.00"
95859233,Learning Disabilities,Adults,Learning Disability 18 - 64,3rd Party Payments,Supported Accommodation Scheme,REDACTED PERSONAL DATA,SN6 ,21/07/2023,"1,480.00"
96912233,Legal Services,Legal Services,Committees,Supplies and Services,Services,REDACTED PERSONAL DATA,CF36,26/07/2023,700.00
96202233,Physical Support,Adults,Physical Support 65 and over,3rd Party Payments,Personal Budget - Domiciliary care,CELTIC CARE SERVICES LTD,SN15,21/07/2023,"1,612.80"
96200233,Physical Support,Adults,Physical Support 65 and over,3rd Party Payments,Personal Budget - Domiciliary care,CELTIC CARE SERVICES LTD,SN15,21/07/2023,"2,903.04"
96201233,Mental Health,Adults,Mental Health 65 and over,3rd Party Payments,Personal Budget - Domiciliary care,CELTIC CARE SERVICES LTD,SN15,21/07/2023,645.12
93849233,Legal Services,Legal Services,Legal Services,Employees,Training,CENTRAL LAW TRAINING (SCOTLAND) LTD,G1 3,07/07/2023,995.00
94972260,Early Years Block,DSG Skills and Attainment,Free Nursery Education Commissioning - three & four  year olds,3rd Party Payments,Contracts - Child Care,CENTRAL PRE-SCHOOL,SN1 ,12/07/2023,"8,220.41"
96536233,Early Help,Early Intervention & Prevention,"Holiday, Activities & Food Grant",3rd Party Payments,Contracts - Child Care,CENTRAL PRE-SCHOOL,SN1 ,26/07/2023,"1,386.00"
94972261,Early Years Block,DSG Skills and Attainment,Free Nursery Education Commissioning - three & four  year olds,3rd Party Payments,Contracts - Child Care,CENTRAL PRE-SCHOOL,SN1 ,12/07/2023,"1,216.80"
94972259,Early Years Block,DSG Skills and Attainment,Free Nursery Education Commissioning - two year olds,3rd Party Payments,Contracts - Child Care,CENTRAL PRE-SCHOOL,SN1 ,12/07/2023,541.01
94884234,Public Health,Public Health,Affordable Warmth,Supplies and Services,Service Charges,CENTRE FOR SUSTAINABLE ENERGY,BS1 ,12/07/2023,"10,000.00"
95797233,Public Health,Public Health,Supplementary SMTR Grant,3rd Party Payments,Contract Payments,CHANGE GROW LIVE SERVICES LTD,BN1 ,19/07/2023,"5,000.00"
96892233,Public Health,Public Health,Supplementary SMTR Grant,3rd Party Payments,Contract Payments,CHANGE GROW LIVE SERVICES LTD,BN1 ,26/07/2023,"3,000.00"
95798233,Public Health,Public Health,Supplementary SMTR Grant,3rd Party Payments,Contract Payments,CHANGE GROW LIVE SERVICES LTD,BN1 ,19/07/2023,"43,451.71"
96958239,Streetsmart,Streetsmart,Waste - Disposal,Supplies and Services,Materials,CHAPEL END INNOVATION LTD,PE26,28/07/2023,"1,562.00"
93620233,Lydiard Park,Culture & Heritage,Lydiard : Forest Caf�,Supplies and Services,Confectionary,CHAPPLE & JENKINS LTD,BS15,05/07/2023,75.29
94712233,Lydiard Park,Culture & Heritage,Lydiard : Forest Caf�,Supplies and Services,Confectionary,CHAPPLE & JENKINS LTD,BS15,12/07/2023,56.97
94711233,Lydiard Park,Culture & Heritage,Lydiard : Forest Caf�,Supplies and Services,Confectionary,CHAPPLE & JENKINS LTD,BS15,12/07/2023,437.76
96735233,Lydiard Park,Culture & Heritage,Lydiard : Forest Caf�,Supplies and Services,Confectionary,CHAPPLE & JENKINS LTD,BS15,26/07/2023,449.55
93620233,Lydiard Park,Culture & Heritage,Lydiard : Forest Caf�,Supplies and Services,Confectionary,CHAPPLE & JENKINS LTD,BS15,05/07/2023,763.50
96735233,Lydiard Park,Culture & Heritage,Lydiard : Forest Caf�,Supplies and Services,Confectionary,CHAPPLE & JENKINS LTD,BS15,26/07/2023,30.83
94712233,Lydiard Park,Culture & Heritage,Lydiard : Forest Caf�,Supplies and Services,Confectionary,CHAPPLE & JENKINS LTD,BS15,12/07/2023,497.92
96735233,Lydiard Park,Culture & Heritage,Lydiard : Forest Caf�,Supplies and Services,Food,CHAPPLE & JENKINS LTD,BS15,26/07/2023,37.51
93575233,Streetsmart,Streetsmart,Waterside Canteen,Supplies and Services,Confectionary,CHAPPLE & JENKINS LTD,BS15,05/07/2023,788.36
94711233,Lydiard Park,Culture & Heritage,Lydiard : Forest Caf�,Supplies and Services,Confectionary,CHAPPLE & JENKINS LTD,BS15,12/07/2023,23.09
96750233,Homelessness and Travellers,Housing Services,Bed and Breakfast Accommodation,Transfer Payments,Payment of Costs,CHARLES HOPES HOLDINGS LIMITED,SO15,26/07/2023,"2,100.00"
96424233,Homelessness and Travellers,Housing Services,Bed and Breakfast Accommodation,Transfer Payments,Payment of Costs,CHARLES HOPES HOLDINGS LIMITED,SO15,24/07/2023,"4,200.00"
95660233,Homelessness and Travellers,Housing Services,Bed and Breakfast Accommodation,Transfer Payments,Payment of Costs,CHARLES HOPES HOLDINGS LIMITED,SO15,24/07/2023,"-1,125.00"
96425233,Homelessness and Travellers,Housing Services,Bed and Breakfast Accommodation,Transfer Payments,Payment of Costs,CHARLES HOPES HOLDINGS LIMITED,SO15,24/07/2023,"2,100.00"
95189233,Homelessness and Travellers,Housing Services,Bed and Breakfast Accommodation,Transfer Payments,Payment of Costs,CHARLES HOPES HOLDINGS LIMITED,SO15,14/07/2023,"12,000.00"
95184233,Homelessness and Travellers,Housing Services,Bed and Breakfast Accommodation,Transfer Payments,Payment of Costs,CHARLES HOPES HOLDINGS LIMITED,SO15,14/07/2023,"6,300.00"
96747233,Lydiard Park,Culture & Heritage,Lydiard : Forest Caf�,Supplies and Services,Food,CHARLES SAUNDERS LTD,BS37,26/07/2023,9.98
96712233,Lydiard Park,Culture & Heritage,Lydiard : Forest Caf�,Supplies and Services,Food,CHARLES SAUNDERS LTD,BS37,26/07/2023,902.18
96709234,Lydiard Park,Culture & Heritage,Lydiard : Forest Caf�,Supplies and Services,Materials,CHARLES SAUNDERS LTD,BS37,26/07/2023,62.49
96712233,Lydiard Park,Culture & Heritage,Lydiard : Forest Caf�,Supplies and Services,Confectionary,CHARLES SAUNDERS LTD,BS37,26/07/2023,10.30
96702233,Lydiard Park,Culture & Heritage,Lydiard : Coach House Caf�,Supplies and Services,Food,CHARLES SAUNDERS LTD,BS37,26/07/2023,154.53
93610233,Lydiard Park,Culture & Heritage,Lydiard : Coach House Caf�,Supplies and Services,Food,CHARLES SAUNDERS LTD,BS37,05/07/2023,159.45
96702233,Lydiard Park,Culture & Heritage,Lydiard : Coach House Caf�,Supplies and Services,Confectionary,CHARLES SAUNDERS LTD,BS37,26/07/2023,484.75
94693233,Lydiard Park,Culture & Heritage,Lydiard : Coach House Caf�,Supplies and Services,Confectionary,CHARLES SAUNDERS LTD,BS37,12/07/2023,47.76
93599234,Lydiard Park,Culture & Heritage,Lydiard : Coach House Caf�,Supplies and Services,Confectionary,CHARLES SAUNDERS LTD,BS37,05/07/2023,575.51
96749234,Lydiard Park,Culture & Heritage,Lydiard : Hotel Operations,Supplies and Services,Food,CHARLES SAUNDERS LTD,BS37,26/07/2023,467.17
94710233,Lydiard Park,Culture & Heritage,Lydiard : Forest Caf�,Supplies and Services,Confectionary,CHARLES SAUNDERS LTD,BS37,12/07/2023,756.21
94710233,Lydiard Park,Culture & Heritage,Lydiard : Forest Caf�,Supplies and Services,Confectionary,CHARLES SAUNDERS LTD,BS37,12/07/2023,143.28
93568233,Lydiard Park,Culture & Heritage,Lydiard : Forest Caf�,Supplies and Services,Food,CHARLES SAUNDERS LTD,BS37,05/07/2023,139.87
93599234,Lydiard Park,Culture & Heritage,Lydiard : Coach House Caf�,Supplies and Services,Food,CHARLES SAUNDERS LTD,BS37,05/07/2023,41.41
96747233,Lydiard Park,Culture & Heritage,Lydiard : Coach House Caf�,Supplies and Services,Confectionary,CHARLES SAUNDERS LTD,BS37,26/07/2023,380.16
96712233,Lydiard Park,Culture & Heritage,Lydiard : Forest Caf�,Supplies and Services,Materials,CHARLES SAUNDERS LTD,BS37,26/07/2023,48.74
94710233,Lydiard Park,Culture & Heritage,Lydiard : Forest Caf�,Supplies and Services,Food,CHARLES SAUNDERS LTD,BS37,12/07/2023,138.18
93891234,Lydiard Park,Culture & Heritage,Lydiard : Coach House Caf�,Supplies and Services,Food,CHARLES SAUNDERS LTD,BS37,07/07/2023,35.66
94693233,Lydiard Park,Culture & Heritage,Lydiard : Coach House Caf�,Supplies and Services,Confectionary,CHARLES SAUNDERS LTD,BS37,12/07/2023,729.79
93895234,Lydiard Park,Culture & Heritage,Lydiard : Coach House Caf�,Supplies and Services,Confectionary,CHARLES SAUNDERS LTD,BS37,07/07/2023,428.40
93891234,Lydiard Park,Culture & Heritage,Lydiard : Coach House Caf�,Supplies and Services,Confectionary,CHARLES SAUNDERS LTD,BS37,07/07/2023,220.94
93599234,Lydiard Park,Culture & Heritage,Lydiard : Coach House Caf�,Supplies and Services,Confectionary,CHARLES SAUNDERS LTD,BS37,05/07/2023,158.23
96709234,Lydiard Park,Culture & Heritage,Lydiard : Forest Caf�,Supplies and Services,Materials,CHARLES SAUNDERS LTD,BS37,26/07/2023,414.92
96724234,Lydiard Park,Culture & Heritage,Lydiard : Forest Caf�,Supplies and Services,Confectionary,CHARLES SAUNDERS LTD,BS37,26/07/2023,536.73
93609233,Lydiard Park,Culture & Heritage,Lydiard : Forest Caf�,Supplies and Services,Food,CHARLES SAUNDERS LTD,BS37,05/07/2023,329.65
94693233,Lydiard Park,Culture & Heritage,Lydiard : Coach House Caf�,Supplies and Services,Food,CHARLES SAUNDERS LTD,BS37,12/07/2023,245.10
93895234,Lydiard Park,Culture & Heritage,Lydiard : Coach House Caf�,Supplies and Services,Food,CHARLES SAUNDERS LTD,BS37,07/07/2023,125.61
96749234,Lydiard Park,Culture & Heritage,Lydiard : Hotel Operations,Supplies and Services,Food,CHARLES SAUNDERS LTD,BS37,26/07/2023,109.55
93606233,Lydiard Park,Culture & Heritage,Lydiard : Forest Caf�,Supplies and Services,Materials,CHARLES SAUNDERS LTD,BS37,05/07/2023,12.09
94697233,Lydiard Park,Culture & Heritage,Lydiard : Forest Caf�,Supplies and Services,Confectionary,CHARLES SAUNDERS LTD,BS37,12/07/2023,620.48
94697233,Lydiard Park,Culture & Heritage,Lydiard : Forest Caf�,Supplies and Services,Confectionary,CHARLES SAUNDERS LTD,BS37,12/07/2023,191.04
93606233,Lydiard Park,Culture & Heritage,Lydiard : Forest Caf�,Supplies and Services,Confectionary,CHARLES SAUNDERS LTD,BS37,05/07/2023,"2,074.36"
93606233,Lydiard Park,Culture & Heritage,Lydiard : Forest Caf�,Supplies and Services,Confectionary,CHARLES SAUNDERS LTD,BS37,05/07/2023,356.42
93609233,Lydiard Park,Culture & Heritage,Lydiard : Forest Caf�,Supplies and Services,Confectionary,CHARLES SAUNDERS LTD,BS37,05/07/2023,312.04
96759233,Lydiard Park,Culture & Heritage,Lydiard : Forest Caf�,Supplies and Services,Food,CHARLES SAUNDERS LTD,BS37,26/07/2023,472.84
96724234,Lydiard Park,Culture & Heritage,Lydiard : Forest Caf�,Supplies and Services,Food,CHARLES SAUNDERS LTD,BS37,26/07/2023,152.73
93610233,Lydiard Park,Culture & Heritage,Lydiard : Coach House Caf�,Supplies and Services,Confectionary,CHARLES SAUNDERS LTD,BS37,05/07/2023,205.89
96749234,Lydiard Park,Culture & Heritage,Lydiard : Hotel Operations,Supplies and Services,Materials,CHARLES SAUNDERS LTD,BS37,26/07/2023,34.20
93566233,Lydiard Park,Culture & Heritage,Lydiard : Hotel Operations,Supplies and Services,Food,CHARLES SAUNDERS LTD,BS37,05/07/2023,330.84
93568233,Lydiard Park,Culture & Heritage,Lydiard : Forest Caf�,Supplies and Services,Materials,CHARLES SAUNDERS LTD,BS37,05/07/2023,25.21
96747233,Lydiard Park,Culture & Heritage,Lydiard : Coach House Caf�,Supplies and Services,Food,CHARLES SAUNDERS LTD,BS37,26/07/2023,55.27
96747233,Lydiard Park,Culture & Heritage,Lydiard : Coach House Caf�,Supplies and Services,Confectionary,CHARLES SAUNDERS LTD,BS37,26/07/2023,158.23
93891234,Lydiard Park,Culture & Heritage,Lydiard : Coach House Caf�,Supplies and Services,Confectionary,CHARLES SAUNDERS LTD,BS37,07/07/2023,594.90
96759233,Lydiard Park,Culture & Heritage,Lydiard : Forest Caf�,Supplies and Services,Confectionary,CHARLES SAUNDERS LTD,BS37,26/07/2023,70.85
93568233,Lydiard Park,Culture & Heritage,Lydiard : Forest Caf�,Supplies and Services,Confectionary,CHARLES SAUNDERS LTD,BS37,05/07/2023,"1,115.53"
93610233,Lydiard Park,Culture & Heritage,Lydiard : Coach House Caf�,Supplies and Services,Confectionary,CHARLES SAUNDERS LTD,BS37,05/07/2023,220.94
93566233,Lydiard Park,Culture & Heritage,Lydiard : Hotel Operations,Supplies and Services,Materials,CHARLES SAUNDERS LTD,BS37,05/07/2023,134.07
96724234,Lydiard Park,Culture & Heritage,Lydiard : Forest Caf�,Supplies and Services,Confectionary,CHARLES SAUNDERS LTD,BS37,26/07/2023,143.28
96712233,Lydiard Park,Culture & Heritage,Lydiard : Forest Caf�,Supplies and Services,Confectionary,CHARLES SAUNDERS LTD,BS37,26/07/2023,19.98
93568233,Lydiard Park,Culture & Heritage,Lydiard : Forest Caf�,Supplies and Services,Confectionary,CHARLES SAUNDERS LTD,BS37,05/07/2023,50.87
93606233,Lydiard Park,Culture & Heritage,Lydiard : Forest Caf�,Supplies and Services,Food,CHARLES SAUNDERS LTD,BS37,05/07/2023,239.29
93566233,Lydiard Park,Culture & Heritage,Lydiard : Hotel Operations,Supplies and Services,Food,CHARLES SAUNDERS LTD,BS37,05/07/2023,59.97
94972456,Early Years Block,DSG Skills and Attainment,Free Nursery Education Commissioning - three & four  year olds,3rd Party Payments,Contracts - Child Care,CHEEKY CHIMPS,SN2 ,12/07/2023,"7,410.99"
94972457,Early Years Block,DSG Skills and Attainment,Free Nursery Education Commissioning - three & four  year olds,3rd Party Payments,Contracts - Child Care,CHEEKY CHIMPS,SN2 ,12/07/2023,"1,784.64"
94972455,Early Years Block,DSG Skills and Attainment,Free Nursery Education Commissioning - two year olds,3rd Party Payments,Contracts - Child Care,CHEEKY CHIMPS,SN2 ,12/07/2023,"1,747.00"
94640239,Early Years Block,DSG Skills and Attainment,Free Nursery Education Commissioning - three & four  year olds,3rd Party Payments,Contracts - Child Care,CHILD BASE NURSERIES,MK16,12/07/2023,"15,871.46"
95649250,Early Years Block,DSG Skills and Attainment,Free Nursery Education Commissioning - three & four  year olds,3rd Party Payments,Contracts - Child Care,CHILD BASE NURSERIES,MK16,19/07/2023,"1,656.00"
94962243,Responsive Repairs,Repairs,Responsive Repairs,3rd Party Payments,Contract Payments,CHILD SCAFFOLDING LTD,SN1 ,12/07/2023,620.00
96852246,Responsive Repairs,Repairs,Responsive Repairs,3rd Party Payments,Contract Payments,CHILD SCAFFOLDING LTD,SN1 ,26/07/2023,560.00
96153234,Responsive Repairs,Repairs,Responsive Repairs,3rd Party Payments,Contract Payments,CHILD SCAFFOLDING LTD,SN1 ,21/07/2023,760.00
96789233,Responsive Repairs,Repairs,Responsive Repairs,3rd Party Payments,Contract Payments,CHILD SCAFFOLDING LTD,SN1 ,26/07/2023,680.00
94962245,Responsive Repairs,Repairs,Responsive Repairs,3rd Party Payments,Contract Payments,CHILD SCAFFOLDING LTD,SN1 ,12/07/2023,780.00
94962246,Responsive Repairs,Repairs,Responsive Repairs,3rd Party Payments,Contract Payments,CHILD SCAFFOLDING LTD,SN1 ,12/07/2023,520.00
96153235,Responsive Repairs,Repairs,Responsive Repairs,3rd Party Payments,Contract Payments,CHILD SCAFFOLDING LTD,SN1 ,21/07/2023,640.00
96153237,Responsive Repairs,Repairs,Responsive Repairs,3rd Party Payments,Contract Payments,CHILD SCAFFOLDING LTD,SN1 ,21/07/2023,65.00
96153238,Responsive Repairs,Repairs,Responsive Repairs,3rd Party Payments,Contract Payments,CHILD SCAFFOLDING LTD,SN1 ,21/07/2023,880.00
96153237,Responsive Repairs,Repairs,Responsive Repairs,3rd Party Payments,Contract Payments,CHILD SCAFFOLDING LTD,SN1 ,21/07/2023,130.00
96787233,Responsive Repairs,Repairs,Responsive Repairs,3rd Party Payments,Contract Payments,CHILD SCAFFOLDING LTD,SN1 ,26/07/2023,480.00
96153237,Responsive Repairs,Repairs,Responsive Repairs,3rd Party Payments,Contract Payments,CHILD SCAFFOLDING LTD,SN1 ,21/07/2023,325.00
94962241,Responsive Repairs,Repairs,Responsive Repairs,3rd Party Payments,Contract Payments,CHILD SCAFFOLDING LTD,SN1 ,12/07/2023,580.00
96153239,Responsive Repairs,Repairs,Responsive Repairs,3rd Party Payments,Contract Payments,CHILD SCAFFOLDING LTD,SN1 ,21/07/2023,820.00
96786233,Responsive Repairs,Repairs,Responsive Repairs,3rd Party Payments,Contract Payments,CHILD SCAFFOLDING LTD,SN1 ,26/07/2023,480.00
94962242,Responsive Repairs,Repairs,Responsive Repairs,3rd Party Payments,Contract Payments,CHILD SCAFFOLDING LTD,SN1 ,12/07/2023,440.00
96153237,Responsive Repairs,Repairs,Responsive Repairs,3rd Party Payments,Contract Payments,CHILD SCAFFOLDING LTD,SN1 ,21/07/2023,260.00
96788233,Responsive Repairs,Repairs,Responsive Repairs,3rd Party Payments,Contract Payments,CHILD SCAFFOLDING LTD,SN1 ,26/07/2023,680.00
96153236,Responsive Repairs,Repairs,Responsive Repairs,3rd Party Payments,Contract Payments,CHILD SCAFFOLDING LTD,SN1 ,21/07/2023,440.00
96241233,Parking & Bus lanes,Highway Operations and Car Parking,Car Parking,Premises Costs,Maintenance - Buildings,CHILD SCAFFOLDING LTD,SN1 ,21/07/2023,"2,516.00"
96371233,Parking & Bus lanes,Highway Operations and Car Parking,Street Parking,Supplies and Services,Materials,CHIPSIDE LTD,SN15,21/07/2023,355.95
96371233,Parking & Bus lanes,Highway Operations and Car Parking,Street Parking,Supplies and Services,Materials,CHIPSIDE LTD,SN15,21/07/2023,601.92
96371233,Parking & Bus lanes,Highway Operations and Car Parking,Bus Lane Enforcement,Supplies and Services,Materials,CHIPSIDE LTD,SN15,21/07/2023,259.35
96371233,Parking & Bus lanes,Highway Operations and Car Parking,Bus Lane Enforcement,Supplies and Services,Materials,CHIPSIDE LTD,SN15,21/07/2023,"2,308.50"
94077233,Parking & Bus lanes,Highway Operations and Car Parking,Street Parking,Supplies and Services,Fees,CHIPSIDE LTD,SN15,07/07/2023,919.24
94545233,Early Years Block,DSG Skills and Attainment,Free Nursery Education Commissioning - three & four  year olds,3rd Party Payments,Contracts - Child Care,CHISELDON PRIMARY SCHOOL,SN4 ,12/07/2023,"4,028.39"
95094233,Schools - Primary,DSG Skills and Attainment,Primary School Budgets,3rd Party Payments,Mainstream Delegated Funding,CHISELDON PRIMARY SCHOOL,SN4 ,14/07/2023,"71,288.00"
94546233,Early Years Block,DSG Skills and Attainment,Free Nursery Education Commissioning - two year olds,3rd Party Payments,Contracts - Child Care,CHISELDON PRIMARY SCHOOL,SN4 ,12/07/2023,862.24
95115233,DSG Other Funding,DSG Skills and Attainment,DFE Additional Grants,3rd Party Payments,Payment of Pupil Premium to school,CHISELDON PRIMARY SCHOOL,SN4 ,14/07/2023,"5,632.00"
95284233,Learning Disabilities,Adults,Learning Disability 65 and over,3rd Party Payments,Residential Care,CHOSEN CARE LTD,GL3 ,14/07/2023,"9,752.70"
95284233,Learning Disabilities,Adults,Learning Disability 65 and over,Income,Client Contribution - Residential,CHOSEN CARE LTD,GL3 ,14/07/2023,-974.00
95284233,Learning Disabilities,Adults,Learning Disability 18 - 64,3rd Party Payments,Residential Care,CHOSEN CARE LTD,GL3 ,14/07/2023,"9,539.60"
95284233,Learning Disabilities,Adults,Learning Disability 18 - 64,Income,Client Contribution - Residential,CHOSEN CARE LTD,GL3 ,14/07/2023,-500.60
95284233,Learning Disabilities,Adults,Learning Disability 18 - 64,3rd Party Payments,Residential Care,CHOSEN CARE LTD,GL3 ,14/07/2023,"9,549.40"
96864233,Care Management & Safeguarding,Adults,Mental Capacity & DOL,3rd Party Payments,Contracts - Social Care,CHRIS HORNE BIA/AMHP LIMITED,OX18,26/07/2023,532.40
97349440,Physical Support,Adults,Physical Support 18 - 64,Transfer Payments,Personal Budget - Direct Payments - Domiciliary Care,REDACTED PERSONAL DATA,SN25,31/07/2023,874.61
97607288,Social Care,"Children, Families and Community Health Services",Placement Adoption Service,3rd Party Payments,Adoption Allowances,REDACTED PERSONAL DATA,SN6 ,31/07/2023,699.84
95559280,Social Care,"Children, Families and Community Health Services",Placement Adoption Service,3rd Party Payments,Adoption Allowances,REDACTED PERSONAL DATA,SN6 ,17/07/2023,"1,055.64"
95559279,Social Care,"Children, Families and Community Health Services",Placement Adoption Service,3rd Party Payments,Adoption Allowances,REDACTED PERSONAL DATA,SN6 ,17/07/2023,699.84
93406354,Social Care,"Children, Families and Community Health Services",Placement Adoption Service,3rd Party Payments,Adoption Allowances,REDACTED PERSONAL DATA,SN6 ,03/07/2023,699.84
97607289,Social Care,"Children, Families and Community Health Services",Placement Adoption Service,3rd Party Payments,Adoption Allowances,REDACTED PERSONAL DATA,SN6 ,31/07/2023,"1,055.64"
93406355,Social Care,"Children, Families and Community Health Services",Placement Adoption Service,3rd Party Payments,Adoption Allowances,REDACTED PERSONAL DATA,SN6 ,03/07/2023,"1,055.64"
95320233,Physical Support,Adults,Physical Support 65 and over,3rd Party Payments,Nursing Care,CHURCH VIEW,SN3 ,14/07/2023,174.16
95320233,Physical Support,Adults,Physical Support 18 - 64,3rd Party Payments,Nursing Care,CHURCH VIEW,SN3 ,14/07/2023,"3,736.20"
95320233,Physical Support,Adults,Physical Support 65 and over,Income,Client Contribution - Nursing,CHURCH VIEW,SN3 ,14/07/2023,-758.15
95320233,Physical Support,Adults,Physical Support 65 and over,3rd Party Payments,Nursing Care,CHURCH VIEW,SN3 ,14/07/2023,"7,890.35"
95320233,Physical Support,Adults,Physical Support 65 and over,3rd Party Payments,Nursing Care,CHURCH VIEW,SN3 ,14/07/2023,"8,368.55"
95320233,Physical Support,Adults,Physical Support 65 and over,Income,Client Contribution - Nursing,CHURCH VIEW,SN3 ,14/07/2023,-954.05
95320233,Physical Support,Adults,Physical Support 18 - 64,3rd Party Payments,Nursing Care,CHURCH VIEW,SN3 ,14/07/2023,"7,270.00"
95320233,Physical Support,Adults,Physical Support 65 and over,3rd Party Payments,Nursing Care,CHURCH VIEW,SN3 ,14/07/2023,"-10,057.61"
95320233,Physical Support,Adults,Physical Support 65 and over,Income,Client Contribution - Nursing,CHURCH VIEW,SN3 ,14/07/2023,"-1,231.15"
95320233,Physical Support,Adults,Physical Support 65 and over,Income,Client Contribution - Nursing,CHURCH VIEW,SN3 ,14/07/2023,-775.35
95320233,Physical Support,Adults,Physical Support 18 - 64,Income,Client Contribution - Nursing,CHURCH VIEW,SN3 ,14/07/2023,-690.65
95320233,Physical Support,Adults,Physical Support 65 and over,Income,Client Contribution - Nursing,CHURCH VIEW,SN3 ,14/07/2023,-887.20
95320233,Physical Support,Adults,Physical Support 65 and over,3rd Party Payments,Nursing Care,CHURCH VIEW,SN3 ,14/07/2023,"-11,742.34"
95320233,Physical Support,Adults,Physical Support 65 and over,Income,Client Contribution - Nursing,CHURCH VIEW,SN3 ,14/07/2023,"-1,163.05"
95320233,Physical Support,Adults,Physical Support 65 and over,Income,Client Contribution - Nursing,CHURCH VIEW,SN3 ,14/07/2023,-614.70
95320233,Physical Support,Adults,Physical Support 65 and over,Income,Client Contribution - Nursing,CHURCH VIEW,SN3 ,14/07/2023,"-1,249.55"
95320233,Physical Support,Adults,Physical Support 65 and over,Income,Client Contribution - Nursing,CHURCH VIEW,SN3 ,14/07/2023,-669.85
95320233,Physical Support,Adults,Physical Support 65 and over,3rd Party Payments,Nursing Care,CHURCH VIEW,SN3 ,14/07/2023,"-6,720.00"
95320233,Physical Support,Adults,Physical Support 65 and over,3rd Party Payments,Nursing Care,CHURCH VIEW,SN3 ,14/07/2023,"-2,252.89"
95320233,Physical Support,Adults,Physical Support 65 and over,3rd Party Payments,Nursing Care,CHURCH VIEW,SN3 ,14/07/2023,"3,736.20"
95320233,Physical Support,Adults,Physical Support 65 and over,3rd Party Payments,Nursing Care,CHURCH VIEW,SN3 ,14/07/2023,"8,120.00"
95320233,Physical Support,Adults,Physical Support 65 and over,Income,Client Contribution - Nursing,CHURCH VIEW,SN3 ,14/07/2023,"-1,611.20"
95320233,Physical Support,Adults,Physical Support 65 and over,Income,Client Contribution - Nursing,CHURCH VIEW,SN3 ,14/07/2023,"-1,001.20"
95320233,Physical Support,Adults,Physical Support 18 - 64,3rd Party Payments,Nursing Care,CHURCH VIEW,SN3 ,14/07/2023,"11,742.34"
95320233,Physical Support,Adults,Physical Support 65 and over,3rd Party Payments,Nursing Care,CHURCH VIEW,SN3 ,14/07/2023,"11,264.47"
95320233,Physical Support,Adults,Physical Support 65 and over,3rd Party Payments,Nursing Care,CHURCH VIEW,SN3 ,14/07/2023,"3,584.15"
95320233,Physical Support,Adults,Physical Support 65 and over,3rd Party Payments,Nursing Care,CHURCH VIEW,SN3 ,14/07/2023,"7,329.95"
95320233,Physical Support,Adults,Physical Support 65 and over,Income,Client Contribution - Nursing,CHURCH VIEW,SN3 ,14/07/2023,"-1,224.85"
95320233,Physical Support,Adults,Physical Support 65 and over,3rd Party Payments,Nursing Care,CHURCH VIEW,SN3 ,14/07/2023,"10,240.48"
95320233,Physical Support,Adults,Physical Support 65 and over,Income,Client Contribution - Nursing,CHURCH VIEW,SN3 ,14/07/2023,-927.35
95320233,Physical Support,Adults,Physical Support 65 and over,Income,Client Contribution - Nursing,CHURCH VIEW,SN3 ,14/07/2023,-762.50
96809239,Parking & Bus lanes,Highway Operations and Car Parking,Car Parking,Premises Costs,Repairs - Buildings,CHURCHES FIRE SECURITY LTD,SO53,26/07/2023,518.85
95347235,Learning Disabilities,Adults,Learning Disability 18 - 64,Income,Client Contribution - Residential,CIDERSTONE HOUSE,SN25,14/07/2023,-517.75
95347235,Learning Disabilities,Adults,Learning Disability 18 - 64,3rd Party Payments,Residential Care,CIDERSTONE HOUSE,SN25,14/07/2023,"15,204.00"
95347235,Learning Disabilities,Adults,Learning Disability 18 - 64,3rd Party Payments,Residential Care,CIDERSTONE HOUSE,SN25,14/07/2023,"14,728.00"
95347235,Learning Disabilities,Adults,Learning Disability 18 - 64,Income,Client Contribution - Residential,CIDERSTONE HOUSE,SN25,14/07/2023,-528.75
95347235,Learning Disabilities,Adults,Learning Disability 18 - 64,Income,Client Contribution - Residential,CIDERSTONE HOUSE,SN25,14/07/2023,-532.00
95347235,Learning Disabilities,Adults,Learning Disability 18 - 64,Income,Client Contribution - Residential,CIDERSTONE HOUSE,SN25,14/07/2023,-548.50
95347235,Learning Disabilities,Adults,Learning Disability 18 - 64,Income,Client Contribution - Residential,CIDERSTONE HOUSE,SN25,14/07/2023,-847.00
95416358,High Needs Block,DSG Skills and Attainment,Post 16 - New Responsibilties,3rd Party Payments,FE Colleges,CIRENCESTER COLLEGE,GL7 ,14/07/2023,"3,255.08"
95416354,High Needs Block,DSG Skills and Attainment,Out of Borough School Fees,3rd Party Payments,Other Local Authority Mainstream Schools- Pre 16,CIRENCESTER KINGSHILL SCHOOL,GL7 ,14/07/2023,609.58
95416353,High Needs Block,DSG Skills and Attainment,Out of Borough School Fees,3rd Party Payments,Other Local Authority Mainstream Schools- Pre 16,CIRENCESTER KINGSHILL SCHOOL,GL7 ,14/07/2023,609.58
96744241,Homelessness and Travellers,Housing Services,Private Sector Landlords,Transfer Payments,Payment of Costs,REDACTED PERSONAL DATA,SN5 ,26/07/2023,575.00
95625233,Town Centre,"Economy, Growth and Place",Fleming Way Improvement Scheme,Capital,Contractor Payments,CITYFIBRE LIMITED,WC2E,19/07/2023,"11,479.69"
93488233,Elections & Democracy,Elections and Democracy,Register of Electors,Supplies and Services,Post,CIVICA ELECTION SERVICES LIMITED,N8 0,03/07/2023,503.39
93488233,Elections & Democracy,Elections and Democracy,Register of Electors,Supplies and Services,Materials,CIVICA ELECTION SERVICES LIMITED,N8 0,03/07/2023,220.45
94972264,Early Years Block,DSG Skills and Attainment,Free Nursery Education Commissioning - three & four  year olds,3rd Party Payments,Contracts - Child Care,REDACTED PERSONAL DATA,SN6 ,12/07/2023,677.27
94547233,Early Years Block,DSG Skills and Attainment,Free Nursery Education Commissioning - three & four  year olds,3rd Party Payments,Contracts - Child Care,REDACTED PERSONAL DATA,SN2 ,12/07/2023,523.92
96906233,Care Management & Safeguarding,Adults,Swindon Safeguarding Partnershiph,Supplies and Services,Fees,CLARK WARD ASSOCIATES LTD,SN1 ,26/07/2023,615.00
95384233,Education,"Education, Inclusion and Skills",Education Standards and Quality,Supplies and Services,Fees,CLARKE WILLMOTT LLP,BS1 ,14/07/2023,"5,989.40"
95041233,Education,"Education, Inclusion and Skills",Education Standards and Quality,Supplies and Services,Fees,CLARKE WILLMOTT LLP,BS1 ,14/07/2023,"2,252.70"
94740233,Local Transport Plan Funded,Strategic Planning and Highways,Traffic Management,Capital,Contractor Payments,CLEAR CHANNEL UK LTD,GU22,12/07/2023,"22,214.12"
94972265,Early Years Block,DSG Skills and Attainment,Free Nursery Education Commissioning - three & four  year olds,3rd Party Payments,Contracts - Child Care,CLIFTON ST PRE-SCHOOL,SN1 ,12/07/2023,"5,042.86"
95648239,Early Years Block,DSG Skills and Attainment,Free Nursery Education Commissioning - three & four  year olds,3rd Party Payments,Contracts - Child Care,CLIFTON ST PRE-SCHOOL,SN1 ,19/07/2023,"2,280.00"
95312233,Mental Health,Adults,Mental Health 18-64,3rd Party Payments,Residential Care,COATE WATER CARE CO LTD,SN3 ,14/07/2023,"-2,428.57"
95312233,Mental Health,Adults,Mental Health 65 and over,3rd Party Payments,Residential Care,COATE WATER CARE CO LTD,SN3 ,14/07/2023,"2,507.14"
95312233,Physical Support,Adults,Physical Support 65 and over,3rd Party Payments,Residential Care,COATE WATER CARE CO LTD,SN3 ,14/07/2023,"-4,915.41"
95312233,Physical Support,Adults,Physical Support 65 and over,Income,Client Contribution - Residential,COATE WATER CARE CO LTD,SN3 ,14/07/2023,693.39
93211236,Physical Support,Adults,Physical Support 65 and over,3rd Party Payments,Personal Budget - Respite Care,COATE WATER CARE CO LTD,SN3 ,03/07/2023,"1,122.44"
95312233,Physical Support,Adults,Physical Support 18 - 64,Income,Client Contribution - Residential,COATE WATER CARE CO LTD,SN3 ,14/07/2023,-448.75
95312233,Physical Support,Adults,Physical Support 65 and over,3rd Party Payments,Residential Care,COATE WATER CARE CO LTD,SN3 ,14/07/2023,"5,500.00"
95312233,Physical Support,Adults,Physical Support 65 and over,Income,Client Contribution - Residential,COATE WATER CARE CO LTD,SN3 ,14/07/2023,"-1,192.50"
95312233,Physical Support,Adults,Physical Support 65 and over,Income,Client Contribution - Residential,COATE WATER CARE CO LTD,SN3 ,14/07/2023,"-1,147.35"
95312233,Physical Support,Adults,Physical Support 65 and over,Income,Client Contribution - Residential,COATE WATER CARE CO LTD,SN3 ,14/07/2023,"-1,121.85"
95312233,Mental Health,Adults,Mental Health 65 and over,Income,Client Contribution - Residential,COATE WATER CARE CO LTD,SN3 ,14/07/2023,-864.00
95312233,Physical Support,Adults,Physical Support 65 and over,Income,Client Contribution - Residential,COATE WATER CARE CO LTD,SN3 ,14/07/2023,-771.66
95312233,Physical Support,Adults,Physical Support 65 and over,Income,Client Contribution - Residential,COATE WATER CARE CO LTD,SN3 ,14/07/2023,616.46
95312233,Physical Support,Adults,Physical Support 65 and over,Income,Client Contribution - Residential,COATE WATER CARE CO LTD,SN3 ,14/07/2023,-864.00
95312233,Physical Support,Adults,Physical Support 65 and over,Income,Client Contribution - Residential,COATE WATER CARE CO LTD,SN3 ,14/07/2023,-951.20
95312233,Physical Support,Adults,Physical Support 65 and over,Income,Client Contribution - Residential,COATE WATER CARE CO LTD,SN3 ,14/07/2023,-891.55
95312233,Mental Health,Adults,Mental Health 65 and over,Income,Client Contribution - Residential,COATE WATER CARE CO LTD,SN3 ,14/07/2023,-444.34
96074233,Physical Support,Adults,Physical Support 65 and over,3rd Party Payments,Personal Budget - Respite Care,COATE WATER CARE CO LTD,SN3 ,21/07/2023,"2,571.43"
93211238,Physical Support,Adults,Physical Support 65 and over,3rd Party Payments,Personal Budget - Respite Care,COATE WATER CARE CO LTD,SN3 ,03/07/2023,"2,244.88"
95312233,Physical Support,Adults,Physical Support 65 and over,3rd Party Payments,Residential Care,COATE WATER CARE CO LTD,SN3 ,14/07/2023,"-6,171.43"
95312233,Physical Support,Adults,Physical Support 65 and over,3rd Party Payments,Residential Care,COATE WATER CARE CO LTD,SN3 ,14/07/2023,"5,427.43"
95312233,Physical Support,Adults,Physical Support 65 and over,3rd Party Payments,Residential Care,COATE WATER CARE CO LTD,SN3 ,14/07/2023,"5,292.86"
95312233,Physical Support,Adults,Physical Support 18 - 64,3rd Party Payments,Residential Care,COATE WATER CARE CO LTD,SN3 ,14/07/2023,"3,584.15"
95599233,Physical Support,Adults,Physical Support 65 and over,3rd Party Payments,Personal Budget - Respite Care,COATE WATER CARE CO LTD,SN3 ,19/07/2023,"3,857.14"
95599234,Physical Support,Adults,Physical Support 65 and over,3rd Party Payments,Personal Budget - Respite Care,COATE WATER CARE CO LTD,SN3 ,19/07/2023,"3,985.71"
93209234,Physical Support,Adults,Physical Support 65 and over,3rd Party Payments,Personal Budget - Respite Care,COATE WATER CARE CO LTD,SN3 ,03/07/2023,"1,002.26"
95312233,Physical Support,Adults,Physical Support 65 and over,Income,Client Contribution - Residential,COATE WATER CARE CO LTD,SN3 ,14/07/2023,36.49
95312233,Physical Support,Adults,Physical Support 65 and over,Income,Client Contribution - Residential,COATE WATER CARE CO LTD,SN3 ,14/07/2023,"-1,119.50"
95312233,Physical Support,Adults,Physical Support 65 and over,3rd Party Payments,Residential Care,COATE WATER CARE CO LTD,SN3 ,14/07/2023,"5,657.14"
95312233,Mental Health,Adults,Mental Health 65 and over,3rd Party Payments,Residential Care,COATE WATER CARE CO LTD,SN3 ,14/07/2023,430.00
95312233,Mental Health,Adults,Mental Health 65 and over,3rd Party Payments,Residential Care,COATE WATER CARE CO LTD,SN3 ,14/07/2023,"3,584.15"
95312233,Physical Support,Adults,Physical Support 65 and over,Income,Client Contribution - Residential,COATE WATER CARE CO LTD,SN3 ,14/07/2023,"-1,744.15"
95312233,Physical Support,Adults,Physical Support 65 and over,Income,Client Contribution - Residential,COATE WATER CARE CO LTD,SN3 ,14/07/2023,"-1,660.85"
95312233,Physical Support,Adults,Physical Support 65 and over,Income,Client Contribution - Residential,COATE WATER CARE CO LTD,SN3 ,14/07/2023,-909.00
95312233,Physical Support,Adults,Physical Support 65 and over,Income,Client Contribution - Residential,COATE WATER CARE CO LTD,SN3 ,14/07/2023,-632.75
95312233,Physical Support,Adults,Physical Support 65 and over,3rd Party Payments,Residential Care,COATE WATER CARE CO LTD,SN3 ,14/07/2023,"-3,891.36"
95312233,Physical Support,Adults,Physical Support 65 and over,3rd Party Payments,Residential Care,COATE WATER CARE CO LTD,SN3 ,14/07/2023,"3,584.15"
95312233,Physical Support,Adults,Physical Support 65 and over,3rd Party Payments,Residential Care,COATE WATER CARE CO LTD,SN3 ,14/07/2023,"4,875.00"
95476239,Mental Health,Adults,Mental Health 65 and over,3rd Party Payments,Personal Budget - Respite Care,COATE WATER CARE CO LTD,SN3 ,17/07/2023,"2,011.52"
95312233,Mental Health,Adults,Mental Health 65 and over,3rd Party Payments,Residential Care,COATE WATER CARE CO LTD,SN3 ,14/07/2023,"4,875.00"
95312233,Mental Health,Adults,Mental Health 65 and over,3rd Party Payments,Residential Care,COATE WATER CARE CO LTD,SN3 ,14/07/2023,"3,920.00"
95312233,Physical Support,Adults,Physical Support 65 and over,Income,Client Contribution - Residential,COATE WATER CARE CO LTD,SN3 ,14/07/2023,-915.00
95312233,Physical Support,Adults,Physical Support 65 and over,Income,Client Contribution - Residential,COATE WATER CARE CO LTD,SN3 ,14/07/2023,-844.00
95312233,Physical Support,Adults,Physical Support 65 and over,3rd Party Payments,Residential Care,COATE WATER CARE CO LTD,SN3 ,14/07/2023,"3,736.20"
95312233,Physical Support,Adults,Physical Support 65 and over,Income,Client Contribution - Residential,COATE WATER CARE CO LTD,SN3 ,14/07/2023,"-1,793.45"
95268233,Learning Disabilities,Adults,Learning Disability 18 - 64,3rd Party Payments,Residential Care,COCKLEBURY FARMHOUSE,SN15,14/07/2023,"12,955.00"
95268233,Learning Disabilities,Adults,Learning Disability 18 - 64,Income,Client Contribution - Residential,COCKLEBURY FARMHOUSE,SN15,14/07/2023,-532.00
95832233,Town Centre,"Economy, Growth and Place",Fleming Way Improvement Scheme,Capital,Contractor Payments,COLAS LTD,B37 ,19/07/2023,"241,908.66"
95418248,Highways Inspections & Maintenance,Highway Operations and Car Parking,Highway Maintenance,Supplies and Services,Materials,COLAS LTD,B37 ,14/07/2023,780.00
94972267,Early Years Block,DSG Skills and Attainment,Free Nursery Education Commissioning - three & four  year olds,3rd Party Payments,Contracts - Child Care,COLEVIEW PRE-SCHOOL,SN3 ,12/07/2023,"4,730.82"
94972268,Early Years Block,DSG Skills and Attainment,Free Nursery Education Commissioning - three & four  year olds,3rd Party Payments,Contracts - Child Care,COLEVIEW PRE-SCHOOL,SN3 ,12/07/2023,608.40
93710233,Disabled Children,"Children, Families and Community Health Services",DCT Daytime Short Breaks,3rd Party Payments,Respite Care,COLLABORATIVE CARE SERVICES LTD,SN2 ,05/07/2023,"27,936.00"
95256233,Learning Disabilities,Adults,Learning Disability 65 and over,3rd Party Payments,Supported Lodgings (Childrens)/Supported Living (Adults),COMMUNITY ACCESS NETWORK LTD,SN25,14/07/2023,"1,134.50"
95257233,Learning Disabilities,Adults,Learning Disability 18 - 64,3rd Party Payments,Supported Lodgings (Childrens)/Supported Living (Adults),COMMUNITY ACCESS NETWORK LTD,SN25,14/07/2023,30.00
95257233,Learning Disabilities,Adults,Learning Disability 18 - 64,3rd Party Payments,Supported Lodgings (Childrens)/Supported Living (Adults),COMMUNITY ACCESS NETWORK LTD,SN25,14/07/2023,700.00
95257233,Learning Disabilities,Adults,Learning Disability 18 - 64,3rd Party Payments,Supported Lodgings (Childrens)/Supported Living (Adults),COMMUNITY ACCESS NETWORK LTD,SN25,14/07/2023,34.70
95256233,Learning Disabilities,Adults,Learning Disability 18 - 64,Income,Client Contribution - Residential,COMMUNITY ACCESS NETWORK LTD,SN25,14/07/2023,-367.00
95257233,Learning Disabilities,Adults,Learning Disability 18 - 64,Income,Client Contribution - Supported Living,COMMUNITY ACCESS NETWORK LTD,SN25,14/07/2023,-178.50
95256233,Learning Disabilities,Adults,Learning Disability 18 - 64,3rd Party Payments,Residential Care,COMMUNITY ACCESS NETWORK LTD,SN25,14/07/2023,"8,795.65"
95257233,Learning Disabilities,Adults,Learning Disability 18 - 64,3rd Party Payments,Supported Lodgings (Childrens)/Supported Living (Adults),COMMUNITY ACCESS NETWORK LTD,SN25,14/07/2023,"5,150.00"
95257233,Learning Disabilities,Adults,Learning Disability 18 - 64,3rd Party Payments,Supported Lodgings (Childrens)/Supported Living (Adults),COMMUNITY ACCESS NETWORK LTD,SN25,14/07/2023,"1,700.00"
95257233,Learning Disabilities,Adults,Learning Disability 18 - 64,3rd Party Payments,Supported Lodgings (Childrens)/Supported Living (Adults),COMMUNITY ACCESS NETWORK LTD,SN25,14/07/2023,"1,879.85"
95313233,Learning Disabilities,Adults,Learning Disability 18 - 64,3rd Party Payments,Residential Care,COMMUNITY THERAPEUTIC SERVICES LTD,BS22,14/07/2023,"15,529.90"
93755245,Social Care,"Children, Families and Community Health Services",Children's Resource and Home Finding Team,3rd Party Payments,Parent & Child Placements,COMPASS FOSTERING WEST LTD,LE7 ,05/07/2023,"-2,692.82"
93755233,Social Care,"Children, Families and Community Health Services",Placement - Care Leaver Team,3rd Party Payments,Staying Put,COMPASS FOSTERING WEST LTD,LE7 ,05/07/2023,"2,137.50"
93755243,Social Care,"Children, Families and Community Health Services",Children's Resource and Home Finding Team,3rd Party Payments,Independent Fostering Agency Placements,COMPASS FOSTERING WEST LTD,LE7 ,05/07/2023,"5,822.10"
93755239,Social Care,"Children, Families and Community Health Services",Children's Resource and Home Finding Team,3rd Party Payments,Independent Fostering Agency Placements,COMPASS FOSTERING WEST LTD,LE7 ,05/07/2023,"3,483.30"
93755242,Social Care,"Children, Families and Community Health Services",Children's Resource and Home Finding Team,3rd Party Payments,Independent Fostering Agency Placements,COMPASS FOSTERING WEST LTD,LE7 ,05/07/2023,"5,634.90"
93755241,Social Care,"Children, Families and Community Health Services",Children's Resource and Home Finding Team,3rd Party Payments,Independent Fostering Agency Placements,COMPASS FOSTERING WEST LTD,LE7 ,05/07/2023,"3,291.90"
93755236,Social Care,"Children, Families and Community Health Services",Children's Resource and Home Finding Team,3rd Party Payments,Independent Fostering Agency Placements,COMPASS FOSTERING WEST LTD,LE7 ,05/07/2023,"3,057.90"
93755240,Social Care,"Children, Families and Community Health Services",Children's Resource and Home Finding Team,3rd Party Payments,Independent Fostering Agency Placements,COMPASS FOSTERING WEST LTD,LE7 ,05/07/2023,"3,501.30"
93755244,Social Care,"Children, Families and Community Health Services",Children's Resource and Home Finding Team,3rd Party Payments,Independent Fostering Agency Placements,COMPASS FOSTERING WEST LTD,LE7 ,05/07/2023,"3,728.70"
93755238,Social Care,"Children, Families and Community Health Services",Children's Resource and Home Finding Team,3rd Party Payments,Independent Fostering Agency Placements,COMPASS FOSTERING WEST LTD,LE7 ,05/07/2023,"3,341.10"
93755237,Social Care,"Children, Families and Community Health Services",Children's Resource and Home Finding Team,3rd Party Payments,Independent Fostering Agency Placements,COMPASS FOSTERING WEST LTD,LE7 ,05/07/2023,"3,118.50"
93755235,Social Care,"Children, Families and Community Health Services",Children's Resource and Home Finding Team,3rd Party Payments,Independent Fostering Agency Placements,COMPASS FOSTERING WEST LTD,LE7 ,05/07/2023,"3,501.30"
93755234,Social Care,"Children, Families and Community Health Services",Children's Resource and Home Finding Team,3rd Party Payments,Independent Fostering Agency Placements,COMPASS FOSTERING WEST LTD,LE7 ,05/07/2023,"3,291.90"
97611233,Human Resources and Organisational Development,"People, Culture and Organisational Resilience",Pay & Reward,Employees,Temporary / Agency - by Accounts Payable,COMPAWISE LIMITED,WA14,31/07/2023,"5,320.00"
93794233,Human Resources and Organisational Development,"People, Culture and Organisational Resilience",Pay & Reward,Employees,Temporary / Agency - by Accounts Payable,COMPAWISE LIMITED,WA14,07/07/2023,"7,200.00"
97349331,Learning Disabilities,Adults,Learning Disability 18 - 64,Transfer Payments,Personal Budget - Direct Payments - Domiciliary Care,REDACTED PERSONAL DATA,GL2 ,31/07/2023,"4,913.59"
97349332,Learning Disabilities,Adults,Learning Disability 18 - 64,Transfer Payments,Personal Budget - Direct Payments - Domiciliary Care,REDACTED PERSONAL DATA,GL2 ,31/07/2023,"1,920.84"
96374233,Property Estates,Property,Borough Farms,Supplies and Services,Repairs & Maintenance,CONSERVATION CONTRACTORS LTD,SN10,21/07/2023,770.00
97012233,Property Management,Property,Corporate Repairs & Maintenance Programme,Premises Costs,Maintenance - Buildings,COOLINK LTD,SN11,28/07/2023,736.00
95605253,Property Management,Property,Corporate Repairs & Maintenance Programme,Premises Costs,Maintenance - Buildings,COOLINK LTD,SN11,17/07/2023,"1,510.61"
95605251,Property Management,Property,Corporate Repairs & Maintenance Programme,Premises Costs,Maintenance - Buildings,COOLINK LTD,SN11,17/07/2023,212.00
97012235,Facilities Management,"People, Culture and Organisational Resilience",Office Accommodation,Premises Costs,Maintenance - Buildings,COOLINK LTD,SN11,28/07/2023,165.00
95605251,Other Repairs,Repairs,Unallocated job costs from OPEN system,Premises Costs,Maintenance - Buildings,COOLINK LTD,SN11,17/07/2023,139.75
95449238,Other Repairs,Repairs,Unallocated job costs from OPEN system,Premises Costs,Maintenance - Buildings,COOLINK LTD,SN11,17/07/2023,"1,084.21"
95085233,DMJ Tower,Housing Services,DMJ Residential (Now HRA),Premises Costs,Maintenance - Buildings,COOLINK LTD,SN11,14/07/2023,86.25
97609234,DMJ Tower,Housing Services,DMJ Residential (Now HRA),Premises Costs,Maintenance - Buildings,COOLINK LTD,SN11,31/07/2023,86.25
97012237,Property Management,Property,Corporate Repairs & Maintenance Programme,Premises Costs,Maintenance - Buildings,COOLINK LTD,SN11,28/07/2023,"2,947.50"
97012235,Facilities Management,"People, Culture and Organisational Resilience",Office Accommodation,Premises Costs,Maintenance - Buildings,COOLINK LTD,SN11,28/07/2023,310.50
97012235,Other Repairs,Repairs,Unallocated job costs from OPEN system,Premises Costs,Maintenance - Buildings,COOLINK LTD,SN11,28/07/2023,46.00
97012235,Property Service Charged Properties,Property,Service Charged - North Swindon Library Complex,Premises Costs,Maintenance - Buildings,COOLINK LTD,SN11,28/07/2023,327.75
95605251,DMJ Tower,Housing Services,DMJ Residential (Now HRA),Premises Costs,Maintenance - Buildings,COOLINK LTD,SN11,17/07/2023,262.25
95085233,DMJ Tower,Housing Services,DMJ Residential (Now HRA),Premises Costs,Maintenance - Buildings,COOLINK LTD,SN11,14/07/2023,115.00
95608233,Social Care,"Children, Families and Community Health Services",Fostering Service Team,Supplies and Services,Subscriptions,CORAM ACADEMY LTD T/A CORAMBAAF,WC1N,17/07/2023,"4,606.23"
95149234,Responsive Repairs,Repairs,Responsive Repairs,3rd Party Payments,Contract Payments,REDACTED PERSONAL DATA,SN2 ,14/07/2023,350.00
95149235,Responsive Repairs,Repairs,Responsive Repairs,3rd Party Payments,Contract Payments,REDACTED PERSONAL DATA,SN2 ,14/07/2023,"1,200.00"
96857237,Responsive Repairs,Repairs,Responsive Repairs,3rd Party Payments,Contract Payments,REDACTED PERSONAL DATA,SN2 ,26/07/2023,600.00
95149236,Responsive Repairs,Repairs,Responsive Repairs,3rd Party Payments,Contract Payments,REDACTED PERSONAL DATA,SN2 ,14/07/2023,"1,800.00"
96857238,Responsive Repairs,Repairs,Responsive Repairs,3rd Party Payments,Contract Payments,REDACTED PERSONAL DATA,SN2 ,26/07/2023,800.00
96857238,Responsive Repairs,Repairs,Responsive Repairs,3rd Party Payments,Contract Payments,REDACTED PERSONAL DATA,SN2 ,26/07/2023,550.00
95149235,Responsive Repairs,Repairs,Responsive Repairs,3rd Party Payments,Contract Payments,REDACTED PERSONAL DATA,SN2 ,14/07/2023,"2,450.00"
95149236,Responsive Repairs,Repairs,Responsive Repairs,3rd Party Payments,Contract Payments,REDACTED PERSONAL DATA,SN2 ,14/07/2023,800.00
95149234,Responsive Repairs,Repairs,Responsive Repairs,3rd Party Payments,Contract Payments,REDACTED PERSONAL DATA,SN2 ,14/07/2023,400.00
96857237,Responsive Repairs,Repairs,Responsive Repairs,3rd Party Payments,Contract Payments,REDACTED PERSONAL DATA,SN2 ,26/07/2023,"2,500.00"
97581233,Social Care,"Children, Families and Community Health Services",Placement Adoption Service,3rd Party Payments,Adoption Allowances,REDACTED PERSONAL DATA,BA15,31/07/2023,860.00
95525233,Social Care,"Children, Families and Community Health Services",Placement Adoption Service,3rd Party Payments,Adoption Allowances,REDACTED PERSONAL DATA,BA15,17/07/2023,860.00
93406271,Social Care,"Children, Families and Community Health Services",Placement Adoption Service,3rd Party Payments,Adoption Allowances,REDACTED PERSONAL DATA,BA15,03/07/2023,860.00
95287233,Learning Disabilities,Adults,Learning Disability 18 - 64,Income,Client Contribution - Residential,CORNERSTONES UK LTD,SN9 ,14/07/2023,-517.75
95287233,Learning Disabilities,Adults,Learning Disability 18 - 64,Income,Client Contribution - Residential,CORNERSTONES UK LTD,SN9 ,14/07/2023,-476.25
95287233,Learning Disabilities,Adults,Learning Disability 18 - 64,3rd Party Payments,Residential Care,CORNERSTONES UK LTD,SN9 ,14/07/2023,"5,223.55"
95287233,Learning Disabilities,Adults,Learning Disability 18 - 64,3rd Party Payments,Residential Care,CORNERSTONES UK LTD,SN9 ,14/07/2023,"10,581.60"
95287233,Learning Disabilities,Adults,Learning Disability 18 - 64,Income,Client Contribution - Residential,CORNERSTONES UK LTD,SN9 ,14/07/2023,-609.75
95287233,Learning Disabilities,Adults,Learning Disability 18 - 64,3rd Party Payments,Residential Care,CORNERSTONES UK LTD,SN9 ,14/07/2023,"6,653.20"
95287233,Learning Disabilities,Adults,Learning Disability 18 - 64,3rd Party Payments,Residential Care,CORNERSTONES UK LTD,SN9 ,14/07/2023,"9,171.90"
95287233,Learning Disabilities,Adults,Learning Disability 18 - 64,3rd Party Payments,Residential Care,CORNERSTONES UK LTD,SN9 ,14/07/2023,"10,813.00"
95287233,Learning Disabilities,Adults,Learning Disability 18 - 64,Income,Client Contribution - Residential,CORNERSTONES UK LTD,SN9 ,14/07/2023,-528.75
95287233,Learning Disabilities,Adults,Learning Disability 18 - 64,Income,Client Contribution - Residential,CORNERSTONES UK LTD,SN9 ,14/07/2023,-548.50
95287233,Learning Disabilities,Adults,Learning Disability 18 - 64,3rd Party Payments,Residential Care,CORNERSTONES UK LTD,SN9 ,14/07/2023,"8,282.80"
95162233,Streetsmart,Streetsmart,Waterside Fleet Hires,Transport Costs,Vehicle Hire / Contract,COTSWOLD RECYCLING COMPANY LTD,GL12,14/07/2023,"1,900.00"
95173255,Streetsmart,Streetsmart,Waterside Fleet Workshops,Supplies and Services,Materials,COTSWOLD RECYCLING COMPANY LTD,GL12,14/07/2023,655.29
95162234,Streetsmart,Streetsmart,Waterside Fleet Hires,Transport Costs,Vehicle Hire / Contract,COTSWOLD RECYCLING COMPANY LTD,GL12,14/07/2023,"2,375.00"
97349619,Learning Disabilities,Adults,Learning Disability 18 - 64,Transfer Payments,Personal Budget - Direct Payments - Domiciliary Care,REDACTED PERSONAL DATA,SP11,31/07/2023,"1,804.61"
94972270,Early Years Block,DSG Skills and Attainment,Free Nursery Education Commissioning - three & four  year olds,3rd Party Payments,Contracts - Child Care,COVINGHAM KINGFISHER PRE-SCHOOL,SN3 ,12/07/2023,"3,620.64"
94972271,Early Years Block,DSG Skills and Attainment,Free Nursery Education Commissioning - three & four  year olds,3rd Party Payments,Contracts - Child Care,COVINGHAM KINGFISHER PRE-SCHOOL,SN3 ,12/07/2023,608.40
95416252,High Needs Block,DSG Skills and Attainment,SEN Resourcing Assessment Panel,3rd Party Payments,Top up funding - Maintained providers Pre 16,COVINGHAM PARK PRIMARY SCHOOL,SN3 ,14/07/2023,"5,652.47"
95095233,Schools - Primary,DSG Skills and Attainment,Primary School Budgets,3rd Party Payments,Mainstream Delegated Funding,COVINGHAM PARK PRIMARY SCHOOL,SN3 ,14/07/2023,"133,968.00"
95116233,DSG Other Funding,DSG Skills and Attainment,DFE Additional Grants,3rd Party Payments,Payment of Pupil Premium to school,COVINGHAM PARK PRIMARY SCHOOL,SN3 ,14/07/2023,"8,057.00"
94972272,Early Years Block,DSG Skills and Attainment,Free Nursery Education Commissioning - two year olds,3rd Party Payments,Contracts - Child Care,COVINGHAM ROUNDABOUT PLAYGROUP,SN3 ,12/07/2023,"1,206.00"
94972273,Early Years Block,DSG Skills and Attainment,Free Nursery Education Commissioning - three & four  year olds,3rd Party Payments,Contracts - Child Care,COVINGHAM ROUNDABOUT PLAYGROUP,SN3 ,12/07/2023,"7,095.14"
94972274,Early Years Block,DSG Skills and Attainment,Free Nursery Education Commissioning - three & four  year olds,3rd Party Payments,Contracts - Child Care,COVINGHAM ROUNDABOUT PLAYGROUP,SN3 ,12/07/2023,"1,622.40"
95347249,Mental Health,Adults,Mental Health 65 and over,3rd Party Payments,Nursing Care,COXWELL HALL AND MEWS NURSING HOME,TW20,14/07/2023,"7,700.00"
95347249,Mental Health,Adults,Mental Health 65 and over,3rd Party Payments,Residential Care,COXWELL HALL AND MEWS NURSING HOME,TW20,14/07/2023,"7,500.00"
95347249,Memory & Cognition,Adults,Support for Memory and Cognition 65 and over,3rd Party Payments,Residential Care,COXWELL HALL AND MEWS NURSING HOME,TW20,14/07/2023,"7,460.30"
95347249,Mental Health,Adults,Mental Health 65 and over,3rd Party Payments,Nursing Care,COXWELL HALL AND MEWS NURSING HOME,TW20,14/07/2023,"8,066.00"
95262233,Learning Disabilities,Adults,Learning Disability 18 - 64,Income,Client Contribution - Residential,CRAEGMOOR HEALTHCARE,BA14,14/07/2023,-604.00
95262233,Learning Disabilities,Adults,Learning Disability 18 - 64,3rd Party Payments,Residential Care,CRAEGMOOR HEALTHCARE,BA14,14/07/2023,"11,447.85"
96537233,Early Help,Early Intervention & Prevention,"Holiday, Activities & Food Grant",3rd Party Payments,Contracts - Child Care,CRAFTING TREASURES - TANYA MEDCROFT,SN2 ,26/07/2023,"3,186.00"
96430233,Streetsmart,Streetsmart,Waste - Disposal,3rd Party Payments,Contract Payments,CRAPPER & SONS LANDFILL LTD,SN4 ,24/07/2023,"1,258.44"
96429233,Streetsmart,Streetsmart,Waste - Disposal,3rd Party Payments,Contract Payments,CRAPPER & SONS LANDFILL LTD,SN4 ,24/07/2023,"1,500.46"
96428233,Streetsmart,Streetsmart,Waste - Disposal,3rd Party Payments,Contract Payments,CRAPPER & SONS LANDFILL LTD,SN4 ,24/07/2023,"8,685.92"
96429234,Streetsmart,Streetsmart,Waste - Disposal,3rd Party Payments,Contract Payments,CRAPPER & SONS LANDFILL LTD,SN4 ,24/07/2023,"2,641.07"
93700234,Physical Support,Adults,Fessey House,Supplies and Services,Food,CREED CATERING SUPPLIES LTD,GL51,05/07/2023,20.54
96715233,Physical Support,Adults,Fessey House,Supplies and Services,Food,CREED CATERING SUPPLIES LTD,GL51,26/07/2023,601.23
95837234,Physical Support,Adults,Fessey House,Supplies and Services,Food,CREED CATERING SUPPLIES LTD,GL51,19/07/2023,56.53
94733233,Physical Support,Adults,Fessey House,Supplies and Services,Food,CREED CATERING SUPPLIES LTD,GL51,12/07/2023,107.48
95837234,Physical Support,Adults,Fessey House,Supplies and Services,Food,CREED CATERING SUPPLIES LTD,GL51,19/07/2023,"1,204.67"
94732234,Physical Support,Adults,Fessey House,Supplies and Services,Food,CREED CATERING SUPPLIES LTD,GL51,12/07/2023,63.17
95840233,Physical Support,Adults,Fessey House,Supplies and Services,Food,CREED CATERING SUPPLIES LTD,GL51,19/07/2023,94.25
96714233,Physical Support,Adults,Fessey House,Supplies and Services,Food,CREED CATERING SUPPLIES LTD,GL51,26/07/2023,104.11
93700234,Physical Support,Adults,Fessey House,Supplies and Services,Food,CREED CATERING SUPPLIES LTD,GL51,05/07/2023,950.65
95840233,Physical Support,Adults,Fessey House,Supplies and Services,Food,CREED CATERING SUPPLIES LTD,GL51,19/07/2023,660.65
96714233,Physical Support,Adults,Fessey House,Supplies and Services,Food,CREED CATERING SUPPLIES LTD,GL51,26/07/2023,848.60
96715233,Physical Support,Adults,Fessey House,Supplies and Services,Food,CREED CATERING SUPPLIES LTD,GL51,26/07/2023,121.43
93700233,Physical Support,Adults,Fessey House,Supplies and Services,Food,CREED CATERING SUPPLIES LTD,GL51,05/07/2023,725.62
93700233,Physical Support,Adults,Fessey House,Supplies and Services,Food,CREED CATERING SUPPLIES LTD,GL51,05/07/2023,76.17
94732234,Physical Support,Adults,Fessey House,Supplies and Services,Food,CREED CATERING SUPPLIES LTD,GL51,12/07/2023,771.16
94733233,Physical Support,Adults,Fessey House,Supplies and Services,Food,CREED CATERING SUPPLIES LTD,GL51,12/07/2023,540.37
95393233,Customer Strategy & Operations,"People, Culture and Organisational Resilience",Cemeteries & Crematoria,Supplies and Services,Fees,CREMATORIA ABATEMENT OF MERCURY EMISSIONS ORGANISATION LTD,ST18,14/07/2023,"10,416.00"
95648238,Early Years Block,DSG Skills and Attainment,Free Nursery Education Commissioning - three & four  year olds,3rd Party Payments,Contracts - Child Care,CROFT PLAYGROUP,SN3 ,19/07/2023,"1,500.00"
94972276,Early Years Block,DSG Skills and Attainment,Free Nursery Education Commissioning - three & four  year olds,3rd Party Payments,Contracts - Child Care,CROFT PLAYGROUP,SN3 ,12/07/2023,"1,176.24"
94972275,Early Years Block,DSG Skills and Attainment,Free Nursery Education Commissioning - three & four  year olds,3rd Party Payments,Contracts - Child Care,CROFT PLAYGROUP,SN3 ,12/07/2023,"11,924.48"
95970233,Licencing,Regulatory Services,Taxis & Private Hire,Supplies and Services,Testing / Inspection,CROSS STREET GARAGE (SWINDON) LTD,SN1 ,19/07/2023,990.00
93990233,School Transport,"Education, Inclusion and Skills",Special Educational Needs Transport,Transport Costs,Home to School Transport,CROSS STREET RADIO CARS,SN1 ,07/07/2023,"1,800.00"
93987233,School Transport,"Education, Inclusion and Skills",Special Educational Needs Transport,Transport Costs,Home to School Transport,CROSS STREET RADIO CARS,SN1 ,07/07/2023,"3,800.00"
93986233,School Transport,"Education, Inclusion and Skills",Special Educational Needs Transport,Transport Costs,Home to School Transport,CROSS STREET RADIO CARS,SN1 ,07/07/2023,"3,000.00"
93997233,School Transport,"Education, Inclusion and Skills",Special Educational Needs Transport,Transport Costs,Home to School Transport,CROSS STREET RADIO CARS,SN1 ,07/07/2023,"5,800.00"
93999233,School Transport,"Education, Inclusion and Skills",Special Educational Needs Transport,Transport Costs,Home to School Transport,CROSS STREET RADIO CARS,SN1 ,07/07/2023,"3,960.00"
93992233,School Transport,"Education, Inclusion and Skills",Special Educational Needs Transport,Transport Costs,Home to School Transport,CROSS STREET RADIO CARS,SN1 ,07/07/2023,"3,610.00"
93988233,School Transport,"Education, Inclusion and Skills",Special Educational Needs Transport,Transport Costs,Home to School Transport,CROSS STREET RADIO CARS,SN1 ,07/07/2023,"3,200.00"
93994233,School Transport,"Education, Inclusion and Skills",Special Educational Needs Transport,Transport Costs,Home to School Transport,CROSS STREET RADIO CARS,SN1 ,07/07/2023,"1,160.00"
93984233,School Transport,"Education, Inclusion and Skills",Special Educational Needs Transport,Transport Costs,Home to School Transport,CROSS STREET RADIO CARS,SN1 ,07/07/2023,"2,200.00"
95104233,High Needs Block,DSG Skills and Attainment,Special School Place,3rd Party Payments,HNB- Place Funding pre 16,CROWDYS HILL SCHOOL,SN2 ,14/07/2023,"170,000.00"
95103233,High Needs Block,DSG Skills and Attainment,Special School Place,3rd Party Payments,HNB- Place Funding post 16,CROWDYS HILL SCHOOL,SN2 ,14/07/2023,"38,334.00"
95120238,DSG Other Funding,DSG Skills and Attainment,DFE Additional Grants,3rd Party Payments,Payment of Pupil Premium to school,CROWDYS HILL SCHOOL,SN2 ,14/07/2023,"10,239.00"
95416270,High Needs Block,DSG Skills and Attainment,SEN Resourcing Assessment Panel,3rd Party Payments,Top up funding - Maintained providers Pre 16,CROWDYS HILL SCHOOL,SN2 ,14/07/2023,"137,485.03"
95416269,High Needs Block,DSG Skills and Attainment,SEN Resourcing Assessment Panel,3rd Party Payments,Top up funding - Maintained providers Pre 16,CROWDYS HILL SCHOOL,SN2 ,14/07/2023,"48,670.50"
95416274,High Needs Block,DSG Skills and Attainment,SEN Resourcing Assessment Panel,3rd Party Payments,Top up funding - Maintained providers Post 16,CROWDYS HILL SCHOOL,SN2 ,14/07/2023,"8,865.88"
95588242,"Volutary Sector, Equipment and Carers",Adults,Voluntary Sector Adults,3rd Party Payments,Contracts - Social Care,CRUSE BEREAVEMENT CARE,TW9 ,26/07/2023,"6,250.00"
95454233,Physical Support,Adults,Physical Support 65 and over,3rd Party Payments,Personal Budget - Domiciliary care,CRYSTAL CARING LIMITED,SN2 ,14/07/2023,"3,110.40"
95453233,Physical Support,Adults,Physical Support 65 and over,3rd Party Payments,Personal Budget - Domiciliary care,CRYSTAL CARING LIMITED,SN2 ,14/07/2023,"1,584.00"
95064233,Planned Maintenance Programme,HRA Capital Financing,Contingent Major Repairs,Capital,Contractor Payments,CRYSTAL ELECTRONICS LTD,NN6 ,14/07/2023,"3,236.83"
95605244,Planned Maintenance Programme,HRA Capital Financing,Contingent Major Repairs,Capital,Contractor Payments,CRYSTAL ELECTRONICS LTD,NN6 ,17/07/2023,"12,673.78"
95063233,Other Repairs,Repairs,Unallocated job costs from OPEN system,Premises Costs,Repairs - Buildings,CRYSTAL ELECTRONICS LTD,NN6 ,14/07/2023,"3,681.45"
95066233,Other Repairs,Repairs,Asbestos Services,Premises Costs,Permanent Fixtures and Fittings,CRYSTAL ELECTRONICS LTD,NN6 ,14/07/2023,"1,667.17"
93887233,Other Repairs,Repairs,Unallocated job costs from OPEN system,Premises Costs,Repairs - Buildings,CRYSTAL ELECTRONICS LTD,NN6 ,07/07/2023,"1,537.48"
96763239,Other Repairs,Repairs,Asbestos Services,Premises Costs,Permanent Fixtures and Fittings,CRYSTAL ELECTRONICS LTD,NN6 ,26/07/2023,"1,667.17"
95065233,Other Repairs,Repairs,Unallocated job costs from OPEN system,Premises Costs,Repairs - Buildings,CRYSTAL ELECTRONICS LTD,NN6 ,14/07/2023,845.00
93855233,Social Care,"Children, Families and Community Health Services",Looked After Children Service,3rd Party Payments,Personal Needs,CSCA MIDLANDS,B18 ,07/07/2023,937.50
95418239,Highways Inspections & Maintenance,Highway Operations and Car Parking,Streetlighting,Supplies and Services,Materials,CU PHOSCO LIGHTING LTD,SG12,14/07/2023,"14,215.20"
94972280,Early Years Block,DSG Skills and Attainment,Free Nursery Education Commissioning - three & four  year olds,3rd Party Payments,Contracts - Child Care,CURIOUS LEARNERS CHILDCARE LTD,SN5 ,12/07/2023,963.30
94972277,Early Years Block,DSG Skills and Attainment,Free Nursery Education Commissioning - two year olds,3rd Party Payments,Contracts - Child Care,CURIOUS LEARNERS CHILDCARE LTD,SN5 ,12/07/2023,"1,694.98"
94972279,Early Years Block,DSG Skills and Attainment,Free Nursery Education Commissioning - three & four  year olds,3rd Party Payments,Contracts - Child Care,CURIOUS LEARNERS CHILDCARE LTD,SN5 ,12/07/2023,963.30
94972281,Early Years Block,DSG Skills and Attainment,Free Nursery Education Commissioning - three & four  year olds,3rd Party Payments,Contracts - Child Care,CURIOUS LEARNERS CHILDCARE LTD,SN5 ,12/07/2023,608.40
94972278,Early Years Block,DSG Skills and Attainment,Free Nursery Education Commissioning - three & four  year olds,3rd Party Payments,Contracts - Child Care,CURIOUS LEARNERS CHILDCARE LTD,SN5 ,12/07/2023,"5,567.87"
97349369,Physical Support,Adults,Physical Support 18 - 64,Transfer Payments,Personal Budget - Direct Payments - Domiciliary Care,REDACTED PERSONAL DATA,SN25,31/07/2023,"3,356.42"
97349695,Physical Support,Adults,Physical Support 18 - 64,Transfer Payments,Personal Budget - Direct Payments - Domiciliary Care,REDACTED PERSONAL DATA,SP11,31/07/2023,"5,254.15"
97073233,Town Centre,"Economy, Growth and Place",Carriage Works Phase 3,Capital,Professional Fees,DANIEL AHERN ECOLOGY LTD,SP9 ,28/07/2023,988.00
97349323,Physical Support,Adults,Physical Support 18 - 64,Transfer Payments,Personal Budget - Direct Payments - Domiciliary Care,REDACTED PERSONAL DATA,SN3 ,31/07/2023,"3,025.69"
97349509,Learning Disabilities,Adults,Learning Disability 18 - 64,Transfer Payments,Personal Budget - Direct Payments - Domiciliary Care,REDACTED PERSONAL DATA,SN2 ,31/07/2023,"1,622.12"
97349554,Learning Disabilities,Adults,Learning Disability 18 - 64,Transfer Payments,Personal Budget - Direct Payments - Domiciliary Care,REDACTED PERSONAL DATA,SN2 ,31/07/2023,"11,079.23"
93083233,Museums & Heritage,Culture & Heritage,Steam:Income Generation,Supplies and Services,Goods for resale,DAPOL LTD,LL14,31/07/2023,"32,473.84"
97657233,Museums & Heritage,Culture & Heritage,Steam:Income Generation,Supplies and Services,Goods for resale,DAPOL LTD,LL14,31/07/2023,"5,333.23"
93084233,Museums & Heritage,Culture & Heritage,Steam:Income Generation,Supplies and Services,Goods for resale,DAPOL LTD,LL14,31/07/2023,"-32,473.84"
96860233,Internal Audit,Internal Audit,Internal Audit,Supplies and Services,Services,DATATANK LTD,NG1 ,26/07/2023,"2,880.00"
94682233,Museums & Heritage,Culture & Heritage,Steam:Income Generation,Income,Admissions & Events,DAVID BURROWS (STARS OF TIME EVENTS),BS22,12/07/2023,"11,398.52"
97349418,Physical Support,Adults,Physical Support 18 - 64,Transfer Payments,Personal Budget - Direct Payments - Domiciliary Care,REDACTED PERSONAL DATA,SN2 ,31/07/2023,684.38
97349489,Learning Disabilities,Adults,Learning Disability 18 - 64,Transfer Payments,Personal Budget - Direct Payments - Domiciliary Care,REDACTED PERSONAL DATA,SP11,31/07/2023,747.87
97671233,Highways & Transport,Highways & Transport,Rights of Way (ROW),Supplies and Services,Repairs & Maintenance,DAVID NEWMAN CONTRACTORS LTD,SN6 ,31/07/2023,"4,950.00"
97672233,Highways & Transport,Highways & Transport,Rights of Way (ROW),Supplies and Services,Repairs & Maintenance,DAVID NEWMAN CONTRACTORS LTD,SN6 ,31/07/2023,"6,440.00"
97673233,Highways & Transport,Highways & Transport,Rights of Way (ROW),Supplies and Services,Repairs & Maintenance,DAVID NEWMAN CONTRACTORS LTD,SN6 ,31/07/2023,"2,220.00"
94727241,Streetsmart,Streetsmart,Waterside Fleet Hires,Transport Costs,Vehicle Hire / Contract,DAWSONRENTLES SWEEPERS,HD6 ,12/07/2023,"3,324.11"
94727242,Streetsmart,Streetsmart,Waterside Fleet Hires,Transport Costs,Vehicle Hire / Contract,DAWSONRENTLES SWEEPERS,HD6 ,12/07/2023,"2,259.53"
94727239,Streetsmart,Streetsmart,Waterside Fleet Hires,Transport Costs,Vehicle Hire / Contract,DAWSONRENTLES SWEEPERS,HD6 ,12/07/2023,"2,039.00"
94727244,Streetsmart,Streetsmart,Waterside Fleet Hires,Transport Costs,Vehicle Hire / Contract,DAWSONRENTLES SWEEPERS,HD6 ,12/07/2023,"2,954.77"
94727243,Streetsmart,Streetsmart,Waterside Fleet Hires,Transport Costs,Vehicle Hire / Contract,DAWSONRENTLES SWEEPERS,HD6 ,12/07/2023,"2,954.77"
94727240,Streetsmart,Streetsmart,Waterside Fleet Hires,Transport Costs,Vehicle Hire / Contract,DAWSONRENTLES SWEEPERS,HD6 ,12/07/2023,"2,976.49"
93492233,Landlord Services,Supervision & Management,Estate Management Team,Premises Costs,Non-contract Cleaning,DEA SOUTHWEST,SN3 ,03/07/2023,525.00
95467253,Social Care,"Children, Families and Community Health Services",Placement Fostering Service,3rd Party Payments,Foster Care Basic Payments,REDACTED PERSONAL DATA,SN5 ,17/07/2023,536.00
97438233,Social Care,"Children, Families and Community Health Services",Placement Fostering Service,3rd Party Payments,Foster Care Basic Payments,REDACTED PERSONAL DATA,SN5 ,31/07/2023,382.86
95467253,Social Care,"Children, Families and Community Health Services",Placement Fostering Service,3rd Party Payments,Carers Skills Payments - Advanced,REDACTED PERSONAL DATA,SN5 ,17/07/2023,370.00
93358233,Social Care,"Children, Families and Community Health Services",Placement Fostering Service,3rd Party Payments,Foster Care Additional Allowance,REDACTED PERSONAL DATA,SN5 ,03/07/2023,100.00
95467253,Social Care,"Children, Families and Community Health Services",Placement Fostering Service,3rd Party Payments,Foster Care Additional Allowance,REDACTED PERSONAL DATA,SN5 ,17/07/2023,100.00
97438233,Social Care,"Children, Families and Community Health Services",Placement Fostering Service,3rd Party Payments,Foster Care Basic Payments,REDACTED PERSONAL DATA,SN5 ,31/07/2023,171.43
97438233,Social Care,"Children, Families and Community Health Services",Placement Fostering Service,3rd Party Payments,Carers Skills Payments - Advanced,REDACTED PERSONAL DATA,SN5 ,31/07/2023,370.00
93358233,Social Care,"Children, Families and Community Health Services",Placement Fostering Service,3rd Party Payments,Foster Care Basic Payments,REDACTED PERSONAL DATA,SN5 ,03/07/2023,536.00
97438233,Social Care,"Children, Families and Community Health Services",Placement Fostering Service,3rd Party Payments,Foster Care Additional Allowance,REDACTED PERSONAL DATA,SN5 ,31/07/2023,100.00
95467253,Social Care,"Children, Families and Community Health Services",Placement Fostering Service,3rd Party Payments,Holiday Payment,REDACTED PERSONAL DATA,SN5 ,17/07/2023,536.00
93358233,Social Care,"Children, Families and Community Health Services",Placement Fostering Service,3rd Party Payments,Carers Skills Payments - Advanced,REDACTED PERSONAL DATA,SN5 ,03/07/2023,370.00
94972285,Early Years Block,DSG Skills and Attainment,Free Nursery Education Commissioning - three & four  year olds,3rd Party Payments,Contracts - Child Care,REDACTED PERSONAL DATA,SN5 ,12/07/2023,577.98
96490233,Landscaping & Open Space,Culture & Heritage & Art,GWCF - Trees for Climate,Capital,Contractor Payments,DEEPER GREEN SERVICES LTD,BS26,24/07/2023,450.00
94754233,Landscaping & Open Space,Culture & Heritage & Art,Great Western Community Forest,Capital,Contractor Payments,DEEPER GREEN SERVICES LTD,BS26,12/07/2023,"1,225.00"
96538233,Early Help,Early Intervention & Prevention,"Holiday, Activities & Food Grant",3rd Party Payments,Contracts - Child Care,DELTA ACTIVITIES LTD,SN3 ,26/07/2023,"3,258.00"
95864233,Learning Disabilities,Adults,Learning Disability 18 - 64,3rd Party Payments,Supported Accommodation Scheme,REDACTED PERSONAL DATA,SN2 ,21/07/2023,"1,675.36"
95864233,Learning Disabilities,Adults,Learning Disability 18 - 64,3rd Party Payments,Supported Accommodation Scheme,REDACTED PERSONAL DATA,SN2 ,21/07/2023,"1,480.00"
95864233,Learning Disabilities,Adults,Learning Disability 18 - 64,3rd Party Payments,Supported Accommodation Scheme,REDACTED PERSONAL DATA,SN2 ,21/07/2023,"2,152.76"
94252233,Planning & Regulatory,Strategic Planning,Landscape & Countryside Works,Supplies and Services,Subscriptions,DESIGNCO LTD T/A CAD SOFTWARE DIRECT,CO1 ,10/07/2023,720.00
96237233,Highways & Transport,Highways & Transport,Highways Management,Employees,Temporary / Agency - by Accounts Payable,DESIGNS FOR LIGHTING LTD,SO23,21/07/2023,445.50
95388233,Human Resources and Organisational Development,"People, Culture and Organisational Resilience",Organisational Development,Employees,Training,DEVELOP TRAINING LTD,DE24,14/07/2023,"2,372.00"
93406236,Social Care,"Children, Families and Community Health Services",Placement Adoption Service,3rd Party Payments,Adoption Allowances,REDACTED PERSONAL DATA,CF44,03/07/2023,500.34
95492233,Social Care,"Children, Families and Community Health Services",Placement Adoption Service,3rd Party Payments,Adoption Allowances,REDACTED PERSONAL DATA,CF44,17/07/2023,500.34
97548233,Social Care,"Children, Families and Community Health Services",Placement Adoption Service,3rd Party Payments,Adoption Allowances,REDACTED PERSONAL DATA,CF44,31/07/2023,500.34
95416240,High Needs Block,DSG Skills and Attainment,SEN Resourcing Assessment Panel,Supplies and Services,Services,REDACTED PERSONAL DATA,SN25,14/07/2023,"1,317.92"
95347239,Physical Support,Adults,Physical Support 65 and over,Income,Client Contribution - Nursing,DIVA CARE LIMITED,GL7 ,14/07/2023,-335.90
95347239,Physical Support,Adults,Physical Support 65 and over,3rd Party Payments,Nursing Care,DIVA CARE LIMITED,GL7 ,14/07/2023,"4,338.85"
95347239,Physical Support,Adults,Physical Support 65 and over,3rd Party Payments,Nursing Care,DIVA CARE LIMITED,GL7 ,14/07/2023,218.12
97616233,Social Care,"Children, Families and Community Health Services",CP & CIN Social Work - North,3rd Party Payments,Cash Support,DNA WORLDWIDE GROUP,BA11,31/07/2023,434.00
97386233,Social Care,"Children, Families and Community Health Services",CP & CIN Social Work - North,3rd Party Payments,Cash Support,DNA WORLDWIDE GROUP,BA11,31/07/2023,434.00
97349335,Physical Support,Adults,Physical Support 18 - 64,Transfer Payments,Personal Budget - Direct Payments - Domiciliary Care,REDACTED PERSONAL DATA,SP11,31/07/2023,"4,899.42"
97444233,Social Care,"Children, Families and Community Health Services",Placement Fostering Service,3rd Party Payments,Foster Care Basic Payments,REDACTED PERSONAL DATA,SN2 ,31/07/2023,171.43
93364233,Social Care,"Children, Families and Community Health Services",Placement Fostering Service,3rd Party Payments,Carers Skills Payments - Core,REDACTED PERSONAL DATA,SN2 ,03/07/2023,216.00
97444233,Social Care,"Children, Families and Community Health Services",Placement Fostering Service,3rd Party Payments,Foster Care Basic Payments,REDACTED PERSONAL DATA,SN2 ,31/07/2023,251.43
95467259,Social Care,"Children, Families and Community Health Services",Placement Fostering Service,3rd Party Payments,Carers Skills Payments - Core,REDACTED PERSONAL DATA,SN2 ,17/07/2023,216.00
95467259,Social Care,"Children, Families and Community Health Services",Placement Fostering Service,3rd Party Payments,Foster Care Additional Allowance,REDACTED PERSONAL DATA,SN2 ,17/07/2023,18.00
93364233,Social Care,"Children, Families and Community Health Services",Placement Fostering Service,3rd Party Payments,Foster Care Basic Payments,REDACTED PERSONAL DATA,SN2 ,03/07/2023,352.00
97444233,Social Care,"Children, Families and Community Health Services",Placement Fostering Service,3rd Party Payments,Carers Skills Payments - Core,REDACTED PERSONAL DATA,SN2 ,31/07/2023,216.00
95467259,Social Care,"Children, Families and Community Health Services",Placement Fostering Service,3rd Party Payments,Foster Care Basic Payments,REDACTED PERSONAL DATA,SN2 ,17/07/2023,352.00
97444233,Social Care,"Children, Families and Community Health Services",Placement Fostering Service,3rd Party Payments,Foster Care Additional Allowance,REDACTED PERSONAL DATA,SN2 ,31/07/2023,18.00
93364233,Social Care,"Children, Families and Community Health Services",Placement Fostering Service,3rd Party Payments,Foster Care Additional Allowance,REDACTED PERSONAL DATA,SN2 ,03/07/2023,18.00
95416312,High Needs Block,DSG Skills and Attainment,SEN Resourcing Assessment Panel,3rd Party Payments,Top up funding - Academies and Free Schools Pre 16,DORCAN ACADEMY,SN3 ,14/07/2023,"5,796.25"
97349246,Physical Support,Adults,Physical Support 18 - 64,Transfer Payments,Personal Budget - Direct Payments - Domiciliary Care,REDACTED PERSONAL DATA,SP11,31/07/2023,"1,674.91"
